Workbook

Sheet Guidance
A1: Guidance and Tips
A3: This year's workbook contains 3 worksheets, one for each term, hopefully when printed each worksheet can serve as a report to governors/trustees.
A5: Cells that are in this colour are cells to select an answer from a list. Click in the cell and select using the drop-down arrow on the right.
A7: Cells in this colour are those where you can add data/text.
A9: Please do not add in children's names, where important to aid future discussions use initials e.g. SC
A11: Tip - when you are in a cell and you want to add a new line in the cell click Alt + Enter at the same time
A13: Tip - to see or edit long sentences in a cell click here
A32: Tip - if you can't see all the text that you have typed then you can resize the row by moving your mouse over the dividing line between rows
A43: Notes for the 23-24 academic year
A44: 1. there have been some changes made to the formatting of the workbooks following feedback from the summer term
A45: 2. this workbook contains three templates, one for each term
A46: 3. the saved filename is key please DO NOT rename the copy that you send back to us, you will keep your own copy which you can name
A47: whatever suits your filing system
A48: 4. the syntax of the filename is TSM Template, Academic Yr, hyphen, Term, hyphen, 8 digit DfE number
A49: e.g. for term 1 it will be: TSM Template Yr2023-24-T1-9251234
A50: term 2 TSM Template Yr2023-24-T2-9251234
A51: term 3 TSM Template Yr2023-24-T3-9251235

Sheet 23-24 Term 1
A1: Swinderby All Saints
A2: Termly Support Meeting - School Attendance - 2023/24 Term 1
B4: School - | C4: Swinderby All Saints Church of England Primary School | J4: =IF(C4="Click in cell and use drop-down arrow on right to select school","",VLOOKUP(C4,'School List'!A4:B391,2,FALSE)) -> 9253066
B5: Name of school's SLT Lead - | C5: Zoe Longstaff | H5: Present at the meeting - | J5: Yes
B6: Name of LCC's Lead - | C6: Michelle Waddell
B7: Other attendees - | C7: Tracey Sims
B8: School email address(s) for template - | C8: zoe.longstaff@swinderby.lincs.sch.uk
B10: Date of Meeting - | C10: 30.11.2023 | E10: DD/MM/YYYY | G10: =IF(C4="Click in cell and use drop-down arrow on right to select school","","Phase - ") -> Phase - | H10: =IF(C4="Click in cell and use drop-down arrow on right to select school","",VLOOKUP(C4,'School List'!A:K,6,FALSE)) -> Primary
G11: =IF(C4="Click in cell and use drop-down arrow on right to select school","","Type - ") -> Type - | H11: =IF(C4="Click in cell and use drop-down arrow on right to select school","",VLOOKUP(C4,'School List'!A:K,10,FALSE)) -> Maintained
A12: Priorities - common priorities can be copied from right to left
B13: School | G13: LCC
A14: 1. | B14: Monitor attendance of all EHCP, SEN, PP & other vulnerable children | F14: 1. | G14: Authorised absence - this is higher than national average and they are at risk of persistent absence.
A15: 2. | B15: Weekly monitoring of attendance & actions accordingly | F15: 2. | G15: Persistent Absence (PA)
A16: 3. | B16: Half termly attendance letters to all children | F16: 3. | G16: Special schools
A17: 4. | B17: Reduce the number of Persistent Absentees with the school | F17: 4. | G17: Children with Education Health & Care Plans
A18: 5. | F18: 5. | G18: Children with a social worker
A19: 6. | F19: 6. | G19: Children with anxiety/school phobia
A20: 7. | F20: 7. | G20: Children known to the youth offending service/Futures 4 Me
A22: Policies, processes and documents
B23: Is there a clear attendance policy on the school's website? | F23: Yes
B24: Has the school signed up to sharing data with the DfE? | F24: Yes
B25: Are there robust daily processes for following up absence? | F25: Yes
A27: Key data
B28: School's current % attendance - only add numbers in cells not a % sign
B30: School Profile | C30: Severe | D30: At risk of severe | E30: PA | F30: At risk of PA | G30: Expected
B31: Group | C31: 0-50% | D31: 51-79% | E31: 80-90% | F31: 91-94% | G31: 95-100% | H31: Total
B32: No of children in each band | C32: 0 | D32: 1 | E32: 5 | F32: 5 | G32: 81 | H32: =SUM(C32:G32) -> 92 | I32: Overall %
B33: % | C33: =IF(C32="","",C32/$H$32) -> 0 | D33: =IF(D32="","",D32/$H$32) -> 0.01086956522 | E33: 0.05434782609 | F33: 0.05434782609 | G33: 0.8804347826 | I33: 96.49
B34: All Lincs PRI Schools | C34: =IF($B$34="** Select Phase **"," - ",VLOOKUP($B$34,LookUps!$C$5:$N$9,4,FALSE)) -> 0.00689421706 | D34: =IF($B$34="** Select Phase **"," - ",VLOOKUP($B$34,LookUps!$C$5:$N$9,6,FALSE)) -> 0.05024510602 | E34: =IF($B$34="** Select Phase **"," - ",VLOOKUP($B$34,LookUps!$C$5:$N$9,8,FALSE)) -> 0.1991445702 | F34: =IF($B$34="** Select Phase **"," - ",VLOOKUP($B$34,LookUps!$C$5:$N$9,10,FALSE)) -> 0.1733124141 | G34: =IF($B$34="** Select Phase **"," - ",VLOOKUP($B$34,LookUps!$C$5:$N$9,12,FALSE)) -> 0.5698763728 | I34: =IF(I33>=95,"Expected attendance rate",IF(I33>=91,"At risk of persistent absence",(IF(I33>=80,"Persistent absence",IF(I33>=51,"At risk of severe absence",IF(I33>0,"Severe absence","")))))) -> Expected attendance rate
B35: Difference | C35: =IF(C32=""," - ",C33-C34) -> -0.00689421706 | D35: =IF(D32=""," - ",D33-D34) -> -0.0393755408 | E35: =IF(E32=""," - ",E33-E34) -> -0.1447967441 | F35: =IF(F32=""," - ",F33-F34) -> -0.1189645881 | G35: =IF(G32=""," - ",G33-G34) -> 0.3105584098 | H35: =IF(H32>0," One child is equal to "&ROUND(((1/H32)*100),1)&" %","") -> One child is equal to 1.1 %
B37: School's historical % attendance - school census
H38: Overall %
B39: Spring 2023 | C39: =IF(J4="","",VLOOKUP($J$4,LookUps!$AL$16:$AZ$368,5,FALSE)) -> 0 | D39: =IF(J4="","",VLOOKUP($J$4,LookUps!$AL$16:$AZ$368,7,FALSE)) -> 0.02739726027 | E39: =IF(J4="","",VLOOKUP($J$4,LookUps!$AL$16:$AZ$368,9,FALSE)) -> 0.06849315068 | F39: =IF(J4="","",VLOOKUP($J$4,LookUps!$AL$16:$AZ$368,11,FALSE)) -> 0.1780821918 | G39: =IF(J4="","",VLOOKUP($J$4,LookUps!$AL$16:$AZ$368,13,FALSE)) -> 0.7260273973 | H39: =IF(J4="","",VLOOKUP($J$4,LookUps!$AL$16:$AZ$368,14,FALSE)) -> 0.9623501199 | I39: =IF(J4="",""," "&VLOOKUP($J$4,LookUps!$AL$16:$AZ$368,15,FALSE)) -> As expected
B40: Autumn 2022 | C40: =IF(J4="","",VLOOKUP($J$4,LookUps!$U$16:$AI$368,5,FALSE)) -> 0 | D40: =IF(J4="","",VLOOKUP($J$4,LookUps!$U$16:$AI$368,7,FALSE)) -> 0.01408450704 | E40: =IF(J4="","",VLOOKUP($J$4,LookUps!$U$16:$AI$368,9,FALSE)) -> 0.1408450704 | F40: =IF(J4="","",VLOOKUP($J$4,LookUps!$U$16:$AI$368,11,FALSE)) -> 0.1690140845 | G40: =IF(J4="","",VLOOKUP($J$4,LookUps!$U$16:$AI$368,13,FALSE)) -> 0.676056338 | H40: =IF(J4="","",VLOOKUP($J$4,LookUps!$U$16:$AI$368,14,FALSE)) -> 0.9539573 | I40: =IF(J4="",""," "&VLOOKUP($J$4,LookUps!$U$16:$AI$368,15,FALSE)) -> As expected
B41: Summer 2022 | C41: =IF(J4="","",VLOOKUP($J$4,LookUps!$D$16:$R$368,5,FALSE)) -> 0 | D41: =IF(J4="","",VLOOKUP($J$4,LookUps!$D$16:$R$368,7,FALSE)) -> 0.05194805195 | E41: =IF(J4="","",VLOOKUP($J$4,LookUps!$D$16:$R$368,9,FALSE)) -> 0.1298701299 | F41: =IF(J4="","",VLOOKUP($J$4,LookUps!$D$16:$R$368,11,FALSE)) -> 0.09090909091 | G41: =IF(J4="","",VLOOKUP($J$4,LookUps!$D$16:$R$368,13,FALSE)) -> 0.7272727273 | H41: =IF(J4="","",VLOOKUP($J$4,LookUps!$D$16:$R$368,14,FALSE)) -> 0.9514189514 | I41: =IF(J4="",""," "&VLOOKUP($J$4,LookUps!$D$16:$R$368,15,FALSE)) -> As expected
A43: Discussion points
B45: Expected 100-95% | C45: * Looking at any potential patterns of absence * Reporting on newsletters, on the school website, directly to parents and staff (individual classes & whole school) * Contacting parents when children absent, bringing children into school (if missed bus for e.g.), administer any medicine * Half termly letters to all pupils * Staff updated regularly
B46: At risk of persistent absence 94-91% | C46: * 1x child off with COVID * 1x child with anxiety around school. Working with parents. In school daily but late * 1x child on TAC - child brought into school by HT if needs be. * 1x Y6 child - warning letters have been issued and parents invited in for meeting with Head * 1x Y6 child had a lot of illness at start of year. No concerns as attendance has been high throughout previous years
B47: Persistent absence 90-80% | C47: * 1x YR child temporary timetable at very start of academic year (first 2 weeks only) and illness * 2x children with unauthorised holiday. Fined and paid immediately * 2x children with unauthorised holiday, did not fine due to higher attendance previous year but warning letter. Younger sibling not of compulsory school age * *
B48: At risk of severe absence 79-51% | C48: * 1x EHCP child, complex medical needs. School to complete Early Help Assessment to support parents. Referral to WTT, Specialist nurse. * * * *
B49: Severe absence 50-0% | C49: * * * * *
A51: Groups of children
B53: Children with an Education, health & care plan | C53: * 90.4%. Complex medical needs. School to complete Early Help Assessment to support parents. Referral to WTT and Special nurse * * * *
B54: Children with a social worker | C54: * * * * *
B55: Children anxiety/school phobia | C55: * 1x Y5 child - school refuser. EP involvement, TAC, community Paediatrics and Healthy Minds * * * *
B56: Children known to youth offending service/Futures4Me | C56: * * * * *
B57: Children eligible for FSM | C57: * * * * *
B58: Gender | C58: * No Concerns * * * *
B59: Ethnicity | C59: * No Concerns * * * *
B60: Other(s) e.g. pupil leavers and joiners/ EHE / CME | C60: * 1x Y1 child left July 2023 to be home schooled. This was due to religious reasons. Reported to LCC * * * *
B61: Number of children in an alternative provision setting | C61: 0 | G61: Number of children on a reduced timetable | I61: 0
A63: What's working well for the school?
B65: * High levels of monitoring * Effective use of attendance policy * Rigorour and consistent approach to following up concerns * Introduction of fining * Making good use of external agencies to support families and pupils
A67: School's Action points
A69: 1. | B69: Continue to be vigilant and rigorous in application of attendance policy
A70: 2. | B70: Monitor the impact of fining
A71: 3. | B71: Ensure families needing support are placed on Early Help Form and help sought
A72: 4.
A73: 5.
A74: 6.
A75: 7.

Sheet 23-24 Term 2
A1: < Add your School's logo here >
A2: Termly Support Meeting - School Attendance - 2023/24 Term 2
B4: School - | C4: Click in cell and use drop-down arrow on right to select school | J4: =IF(C4="Click in cell and use drop-down arrow on right to select school","",VLOOKUP(C4,'School List'!A4:B391,2,FALSE)) -> 
B5: Name of school's SLT Lead - | H5: Present at the meeting - | J5: Select
B6: Name of LCC's Lead -
B7: Other attendees -
B8: School email address(s) for template -
B10: Date of Meeting - | E10: DD/MM/YYYY | G10: =IF(C4="Click in cell and use drop-down arrow on right to select school","","Phase - ") ->  | H10: =IF(C4="Click in cell and use drop-down arrow on right to select school","",VLOOKUP(C4,'School List'!A:K,6,FALSE)) -> 
G11: =IF(C4="Click in cell and use drop-down arrow on right to select school","","Type - ") ->  | H11: =IF(C4="Click in cell and use drop-down arrow on right to select school","",VLOOKUP(C4,'School List'!A:K,10,FALSE)) -> 
A12: Priorities - common priorities can be copied from right to left
B13: School | G13: LCC
A14: 1. | F14: 1. | G14: Authorised absence - this is higher than national average and they are at risk of persistent absence.
A15: 2. | F15: 2. | G15: Persistent Absence (PA)
A16: 3. | F16: 3. | G16: Special schools
A17: 4. | F17: 4. | G17: Children with Education Health & Care Plans
A18: 5. | F18: 5. | G18: Children with a social worker
A19: 6. | F19: 6. | G19: Children with anxiety/school phobia
A20: 7. | F20: 7. | G20: Children known to the youth offending service/Futures 4 Me
A22: Policies, processes and documents
B23: Is there a clear attendance policy on the school's website? | F23: Select
B24: Has the school signed up to sharing data with the DfE? | F24: Select
B25: Are there robust daily processes for following up absence? | F25: Select
A27: Key data
B28: School's current % attendance - only add numbers in cells not a % sign
B30: School Profile | C30: Severe | D30: At risk of severe | E30: PA | F30: At risk of PA | G30: Expected
B31: Group | C31: 0-50% | D31: 51-79% | E31: 80-90% | F31: 91-94% | G31: 95-100% | H31: Total
B32: No of children in each band | H32: =SUM(C32:G32) -> 0 | I32: Overall %
B33: % | C33: =IF(C32="","",C32/$H$32) ->  | D33: =IF(D32="","",D32/$H$32) -> 
B34: ** Select Phase ** | C34: =IF($B$34="** Select Phase **"," - ",VLOOKUP($B$34,LookUps!$C$5:$N$9,4,FALSE)) -> - | D34: =IF($B$34="** Select Phase **"," - ",VLOOKUP($B$34,LookUps!$C$5:$N$9,6,FALSE)) -> - | E34: =IF($B$34="** Select Phase **"," - ",VLOOKUP($B$34,LookUps!$C$5:$N$9,8,FALSE)) -> - | F34: =IF($B$34="** Select Phase **"," - ",VLOOKUP($B$34,LookUps!$C$5:$N$9,10,FALSE)) -> - | G34: =IF($B$34="** Select Phase **"," - ",VLOOKUP($B$34,LookUps!$C$5:$N$9,12,FALSE)) -> - | I34: =IF(I33>=95,"Expected attendance rate",IF(I33>=91,"At risk of persistent absence",(IF(I33>=80,"Persistent absence",IF(I33>=51,"At risk of severe absence",IF(I33>0,"Severe absence","")))))) -> 
B35: Difference | C35: =IF(C32=""," - ",C33-C34) -> - | D35: =IF(D32=""," - ",D33-D34) -> - | E35: =IF(E32=""," - ",E33-E34) -> - | F35: =IF(F32=""," - ",F33-F34) -> - | G35: =IF(G32=""," - ",G33-G34) -> - | H35: =IF(H32>0," One child is equal to "&ROUND(((1/H32)*100),1)&" %","") -> 
B37: School's historical % attendance - school census
H38: Overall %
B39: Spring 2023 | C39: =IF(J4="","",VLOOKUP($J$4,LookUps!$AL$16:$AZ$368,5,FALSE)) ->  | D39: =IF(J4="","",VLOOKUP($J$4,LookUps!$AL$16:$AZ$368,7,FALSE)) ->  | E39: =IF(J4="","",VLOOKUP($J$4,LookUps!$AL$16:$AZ$368,9,FALSE)) ->  | F39: =IF(J4="","",VLOOKUP($J$4,LookUps!$AL$16:$AZ$368,11,FALSE)) ->  | G39: =IF(J4="","",VLOOKUP($J$4,LookUps!$AL$16:$AZ$368,13,FALSE)) ->  | H39: =IF(J4="","",VLOOKUP($J$4,LookUps!$AL$16:$AZ$368,14,FALSE)) ->  | I39: =IF(J4="",""," "&VLOOKUP($J$4,LookUps!$AL$16:$AZ$368,15,FALSE)) -> 
B40: Autumn 2022 | C40: =IF(J4="","",VLOOKUP($J$4,LookUps!$U$16:$AI$368,5,FALSE)) ->  | D40: =IF(J4="","",VLOOKUP($J$4,LookUps!$U$16:$AI$368,7,FALSE)) ->  | E40: =IF(J4="","",VLOOKUP($J$4,LookUps!$U$16:$AI$368,9,FALSE)) ->  | F40: =IF(J4="","",VLOOKUP($J$4,LookUps!$U$16:$AI$368,11,FALSE)) ->  | G40: =IF(J4="","",VLOOKUP($J$4,LookUps!$U$16:$AI$368,13,FALSE)) ->  | H40: =IF(J4="","",VLOOKUP($J$4,LookUps!$U$16:$AI$368,14,FALSE)) ->  | I40: =IF(J4="",""," "&VLOOKUP($J$4,LookUps!$U$16:$AI$368,15,FALSE)) -> 
B41: Summer 2022 | C41: =IF(J4="","",VLOOKUP($J$4,LookUps!$D$16:$R$368,5,FALSE)) ->  | D41: =IF(J4="","",VLOOKUP($J$4,LookUps!$D$16:$R$368,7,FALSE)) ->  | E41: =IF(J4="","",VLOOKUP($J$4,LookUps!$D$16:$R$368,9,FALSE)) ->  | F41: =IF(J4="","",VLOOKUP($J$4,LookUps!$D$16:$R$368,11,FALSE)) ->  | G41: =IF(J4="","",VLOOKUP($J$4,LookUps!$D$16:$R$368,13,FALSE)) ->  | H41: =IF(J4="","",VLOOKUP($J$4,LookUps!$D$16:$R$368,14,FALSE)) ->  | I41: =IF(J4="",""," "&VLOOKUP($J$4,LookUps!$D$16:$R$368,15,FALSE)) -> 
A43: Discussion points
B45: Expected 100-95% | C45: * * * * *
B46: At risk of persistent absence 94-91% | C46: * * * * *
B47: Persistent absence 90-80% | C47: * * * * *
B48: At risk of severe absence 79-51% | C48: * * * * *
B49: Severe absence 50-0% | C49: * * * * *
A51: Groups of children
B53: Children with an Education, health & care plan | C53: * * * * *
B54: Children with a social worker | C54: * * * * *
B55: Children anxiety/school phobia | C55: * * * * *
B56: Children known to youth offending service/Futures4Me | C56: * * * * *
B57: Children eligible for FSM | C57: * * * * *
B58: Gender | C58: * * * * *
B59: Ethnicity | C59: * * * * *
B60: Other(s) e.g. pupil leavers and joiners/ EHE / CME | C60: * * * * *
B61: Number of children in an alternative provision setting | G61: Number of children on a reduced timetable
A63: What's working well for the school?
B65: * * * * *
A67: School's Action points
A69: 1.
A70: 2.
A71: 3.
A72: 4.
A73: 5.
A74: 6.
A75: 7.

Sheet 23-24 Term 3
A1: < Add your School's logo here >
A2: Termly Support Meeting - School Attendance - 2023/24 Term 3
B4: School - | C4: Click in cell and use drop-down arrow on right to select school | J4: =IF(C4="Click in cell and use drop-down arrow on right to select school","",VLOOKUP(C4,'School List'!A4:B391,2,FALSE)) -> 
B5: Name of school's SLT Lead - | H5: Present at the meeting - | J5: Select
B6: Name of LCC's Lead -
B7: Other attendees -
B8: School email address(s) for template -
B10: Date of Meeting - | E10: DD/MM/YYYY | G10: =IF(C4="Click in cell and use drop-down arrow on right to select school","","Phase - ") ->  | H10: =IF(C4="Click in cell and use drop-down arrow on right to select school","",VLOOKUP(C4,'School List'!A:K,6,FALSE)) -> 
G11: =IF(C4="Click in cell and use drop-down arrow on right to select school","","Type - ") ->  | H11: =IF(C4="Click in cell and use drop-down arrow on right to select school","",VLOOKUP(C4,'School List'!A:K,10,FALSE)) -> 
A12: Priorities - common priorities can be copied from right to left
B13: School | G13: LCC
A14: 1. | F14: 1. | G14: Authorised absence - this is higher than national average and they are at risk of persistent absence.
A15: 2. | F15: 2. | G15: Persistent Absence (PA)
A16: 3. | F16: 3. | G16: Special schools
A17: 4. | F17: 4. | G17: Children with Education Health & Care Plans
A18: 5. | F18: 5. | G18: Children with a social worker
A19: 6. | F19: 6. | G19: Children with anxiety/school phobia
A20: 7. | F20: 7. | G20: Children known to the youth offending service/Futures 4 Me
A22: Policies, processes and documents
B23: Is there a clear attendance policy on the school's website? | F23: Select
B24: Has the school signed up to sharing data with the DfE? | F24: Select
B25: Are there robust daily processes for following up absence? | F25: Select
A27: Key data
B28: School's current % attendance - only add numbers in cells not a % sign
B30: School Profile | C30: Severe | D30: At risk of severe | E30: PA | F30: At risk of PA | G30: Expected
B31: Group | C31: 0-50% | D31: 51-79% | E31: 80-90% | F31: 91-94% | G31: 95-100% | H31: Total
B32: No of children in each band | H32: =SUM(C32:G32) -> 0 | I32: Overall %
B33: % | C33: =IF(C32="","",C32/$H$32) ->  | D33: =IF(D32="","",D32/$H$32) -> 
B34: ** Select Phase ** | C34: =IF($B$34="** Select Phase **"," - ",VLOOKUP($B$34,LookUps!$C$5:$N$9,4,FALSE)) -> - | D34: =IF($B$34="** Select Phase **"," - ",VLOOKUP($B$34,LookUps!$C$5:$N$9,6,FALSE)) -> - | E34: =IF($B$34="** Select Phase **"," - ",VLOOKUP($B$34,LookUps!$C$5:$N$9,8,FALSE)) -> - | F34: =IF($B$34="** Select Phase **"," - ",VLOOKUP($B$34,LookUps!$C$5:$N$9,10,FALSE)) -> - | G34: =IF($B$34="** Select Phase **"," - ",VLOOKUP($B$34,LookUps!$C$5:$N$9,12,FALSE)) -> - | I34: =IF(I33>=95,"Expected attendance rate",IF(I33>=91,"At risk of persistent absence",(IF(I33>=80,"Persistent absence",IF(I33>=51,"At risk of severe absence",IF(I33>0,"Severe absence","")))))) -> 
B35: Difference | C35: =IF(C32=""," - ",C33-C34) -> - | D35: =IF(D32=""," - ",D33-D34) -> - | E35: =IF(E32=""," - ",E33-E34) -> - | F35: =IF(F32=""," - ",F33-F34) -> - | G35: =IF(G32=""," - ",G33-G34) -> - | H35: =IF(H32>0," One child is equal to "&ROUND(((1/H32)*100),1)&" %","") -> 
B37: School's historical % attendance - school census
H38: Overall %
B39: Spring 2023 | C39: =IF(J4="","",VLOOKUP($J$4,LookUps!$AL$16:$AZ$368,5,FALSE)) ->  | D39: =IF(J4="","",VLOOKUP($J$4,LookUps!$AL$16:$AZ$368,7,FALSE)) ->  | E39: =IF(J4="","",VLOOKUP($J$4,LookUps!$AL$16:$AZ$368,9,FALSE)) ->  | F39: =IF(J4="","",VLOOKUP($J$4,LookUps!$AL$16:$AZ$368,11,FALSE)) ->  | G39: =IF(J4="","",VLOOKUP($J$4,LookUps!$AL$16:$AZ$368,13,FALSE)) ->  | H39: =IF(J4="","",VLOOKUP($J$4,LookUps!$AL$16:$AZ$368,14,FALSE)) ->  | I39: =IF(J4="",""," "&VLOOKUP($J$4,LookUps!$AL$16:$AZ$368,15,FALSE)) -> 
B40: Autumn 2022 | C40: =IF(J4="","",VLOOKUP($J$4,LookUps!$U$16:$AI$368,5,FALSE)) ->  | D40: =IF(J4="","",VLOOKUP($J$4,LookUps!$U$16:$AI$368,7,FALSE)) ->  | E40: =IF(J4="","",VLOOKUP($J$4,LookUps!$U$16:$AI$368,9,FALSE)) ->  | F40: =IF(J4="","",VLOOKUP($J$4,LookUps!$U$16:$AI$368,11,FALSE)) ->  | G40: =IF(J4="","",VLOOKUP($J$4,LookUps!$U$16:$AI$368,13,FALSE)) ->  | H40: =IF(J4="","",VLOOKUP($J$4,LookUps!$U$16:$AI$368,14,FALSE)) ->  | I40: =IF(J4="",""," "&VLOOKUP($J$4,LookUps!$U$16:$AI$368,15,FALSE)) -> 
B41: Summer 2022 | C41: =IF(J4="","",VLOOKUP($J$4,LookUps!$D$16:$R$368,5,FALSE)) ->  | D41: =IF(J4="","",VLOOKUP($J$4,LookUps!$D$16:$R$368,7,FALSE)) ->  | E41: =IF(J4="","",VLOOKUP($J$4,LookUps!$D$16:$R$368,9,FALSE)) ->  | F41: =IF(J4="","",VLOOKUP($J$4,LookUps!$D$16:$R$368,11,FALSE)) ->  | G41: =IF(J4="","",VLOOKUP($J$4,LookUps!$D$16:$R$368,13,FALSE)) ->  | H41: =IF(J4="","",VLOOKUP($J$4,LookUps!$D$16:$R$368,14,FALSE)) ->  | I41: =IF(J4="",""," "&VLOOKUP($J$4,LookUps!$D$16:$R$368,15,FALSE)) -> 
A43: Discussion points
B45: Expected 100-95% | C45: * * * * *
B46: At risk of persistent absence 94-91% | C46: * * * * *
B47: Persistent absence 90-80% | C47: * * * * *
B48: At risk of severe absence 79-51% | C48: * * * * *
B49: Severe absence 50-0% | C49: * * * * *
A51: Groups of children
B53: Children with an Education, health & care plan | C53: * * * * *
B54: Children with a social worker | C54: * * * * *
B55: Children anxiety/school phobia | C55: * * * * *
B56: Children known to youth offending service/Futures4Me | C56: * * * * *
B57: Children eligible for FSM | C57: * * * * *
B58: Gender | C58: * * * * *
B59: Ethnicity | C59: * * * * *
B60: Other(s) e.g. pupil leavers and joiners/ EHE / CME | C60: * * * * *
B61: Number of children in an alternative provision setting | G61: Number of children on a reduced timetable
A63: What's working well for the school?
B65: * * * * *
A67: School's Action points
A69: 1.
A70: 2.
A71: 3.
A72: 4.
A73: 5.
A74: 6.
A75: 7.

Sheet LookUps (hidden)
A1: Q Lookup | C1: Aut 21 - Sum 22
A2: Select | D2: Number of Enrolments | E2: Attendance Thresholds | P2: The table left is the most recent complete year of data
A3: Yes | E3: 0-50% | G3: 51-79% | I3: 80-90% | K3: 91-94% | M3: 95-100%
A4: No | C4: ** Select Phase ** | E4: Count | F4: % | G4: Count | H4: % | I4: Count | J4: % | K4: Count | L4: % | M4: Count | N4: %
C5: All Lincs PRI Schools | D5: 153607 | E5: 1059 | F5: 0.00689421706 | G5: 7718 | H5: 0.05024510602 | I5: 30590 | J5: 0.1991445702 | K5: 26622 | L5: 0.1733124141 | M5: 87537 | N5: 0.5698763728
C6: All Lincs SEC Schools | D6: 116442 | E6: 3162 | F6: 0.0271551502 | G6: 9268 | H6: 0.0795932739 | I6: 25423 | J6: 0.2183318734 | K6: 20860 | L6: 0.1791449821 | M6: 57632 | N6: 0.4949416877
C7: All Lincs SP Schools | D7: 4562 | E7: 246 | F7: 0.05392371767 | G7: 550 | H7: 0.1205611574 | I7: 927 | J7: 0.2032003507 | K7: 706 | L7: 0.1547566857 | M7: 2109 | N7: 0.4622972381
C8: All-Through School | D8: 3735 | E8: 224 | F8: 0.05997322624 | G8: 408 | H8: 0.1092369478 | I8: 806 | J8: 0.2157965194 | K8: 626 | L8: 0.1676037483 | M8: 1664 | N8: 0.4455153949
C9: All Schools in Lincs | D9: 278346 | E9: 4691 | F9: 0.01685312525 | G9: 17944 | H9: 0.06446652727 | I9: 57746 | J9: 0.2074612173 | K9: 48814 | L9: 0.1753716597 | M9: 148942 | N9: 0.5350966064
C11: Summer 2022 | T11: Autumn 2022 | AK11: Spring 2023
G12: Attendance Thresholds | X12: Attendance Thresholds | AO12: Attendance Thresholds
C13: Phase | D13: DfE No | E13: School | F13: Number of Enrolments | G13: 0-50% | I13: 51-79% | K13: 80-90% | M13: 91-94% | O13: 95-100% | Q13: Overall Attendance % | R13: Description | T13: Phase | U13: DfE No | V13: School | W13: Number of Enrolments | X13: 0-50% | Z13: 51-79% | AB13: 80-90% | AD13: 91-94% | AF13: 95-100% | AH13: Overall Attendance % | AI13: Description | AK13: Phase | AL13: DfE No | AM13: School | AN13: Number of Enrolments | AO13: 0-50% | AQ13: 51-79% | AS13: 80-90% | AU13: 91-94% | AW13: 95-100% | AY13: Overall Attendance % | AZ13: Description
G14: Count | H14: % | I14: Count | J14: % | K14: Count | L14: % | M14: Count | N14: % | O14: Count | P14: % | X14: Count | Y14: % | Z14: Count | AA14: % | AB14: Count | AC14: % | AD14: Count | AE14: % | AF14: Count | AG14: % | AO14: Count | AP14: % | AQ14: Count | AR14: % | AS14: Count | AT14: % | AU14: Count | AV14: % | AW14: Count | AX14: %
C16: All-Through | D16: 9256905 | E16: The Priory Witham Academy | F16: 859 | G16: 31 | H16: 0.03608847497 | I16: 99 | J16: 0.115250291 | K16: 126 | L16: 0.1466821886 | M16: 128 | N16: 0.1490104773 | O16: 475 | P16: 0.5529685681 | Q16: 0.9022244565 | R16: Persistent absence | T16: Primary | U16: 9252000 | V16: Skegness Junior Academy | W16: 319 | X16: 0 | Y16: 0 | Z16: 26 | AA16: 0.08150470219 | AB16: 74 | AC16: 0.2319749216 | AD16: 61 | AE16: 0.1912225705 | AF16: 158 | AG16: 0.4952978056 | AH16: 0.9232751975 | AI16: At risk of persistent absence | AJ16: =AL16*1 -> 9252000 | AK16: Primary | AL16: 9252000 | AM16: Skegness Junior Academy | AN16: 322 | AO16: 1 | AP16: 0.003105590062 | AQ16: 17 | AR16: 0.05279503106 | AS16: 57 | AT16: 0.1770186335 | AU16: 58 | AV16: 0.1801242236 | AW16: 189 | AX16: 0.5869565217 | AY16: 0.9432574805 | AZ16: At risk of persistent absence
C17: Primary | D17: 9252000 | E17: Skegness Junior Academy | F17: 343 | G17: 6 | H17: 0.01749271137 | I17: 26 | J17: 0.07580174927 | K17: 44 | L17: 0.1282798834 | M17: 48 | N17: 0.139941691 | O17: 219 | P17: 0.638483965 | Q17: 0.9352472758 | R17: At risk of persistent absence | T17: Primary | U17: 9252002 | V17: Bassingham Primary School | W17: 167 | X17: 1 | Y17: 0.005988023952 | Z17: 5 | AA17: 0.02994011976 | AB17: 35 | AC17: 0.2095808383 | AD17: 34 | AE17: 0.2035928144 | AF17: 92 | AG17: 0.5508982036 | AH17: 0.9397628819 | AI17: At risk of persistent absence | AJ17: =AL17*1 -> 9252002 | AK17: Primary | AL17: 9252002 | AM17: Bassingham Primary School | AN17: 163 | AO17: 2 | AP17: 0.01226993865 | AQ17: 4 | AR17: 0.0245398773 | AS17: 29 | AT17: 0.1779141104 | AU17: 30 | AV17: 0.1840490798 | AW17: 98 | AX17: 0.6012269939 | AY17: 0.9435866983 | AZ17: At risk of persistent absence
C18: Primary | D18: 9252002 | E18: Bassingham Primary School | F18: 198 | G18: 1 | H18: 0.005050505051 | I18: 5 | J18: 0.02525252525 | K18: 19 | L18: 0.09595959596 | M18: 20 | N18: 0.101010101 | O18: 153 | P18: 0.7727272727 | Q18: 0.9673545966 | R18: As expected | T18: Primary | U18: 9252003 | V18: Billingborough Primary School | W18: 117 | X18: 1 | Y18: 0.008547008547 | Z18: 7 | AA18: 0.05982905983 | AB18: 16 | AC18: 0.1367521368 | AD18: 25 | AE18: 0.2136752137 | AF18: 68 | AG18: 0.5811965812 | AH18: 0.9357316605 | AI18: At risk of persistent absence | AJ18: 9252003 | AK18: Primary | AL18: 9252003 | AM18: Billingborough Primary School | AN18: 119 | AO18: 1 | AP18: 0.008403361345 | AQ18: 7 | AR18: 0.05882352941 | AS18: 25 | AT18: 0.2100840336 | AU18: 28 | AV18: 0.2352941176 | AW18: 58 | AX18: 0.487394958 | AY18: 0.9279147818 | AZ18: At risk of persistent absence
C19: Primary | D19: 9252003 | E19: Billingborough Primary School | F19: 130 | G19: 1 | H19: 0.007692307692 | I19: 8 | J19: 0.06153846154 | K19: 8 | L19: 0.06153846154 | M19: 25 | N19: 0.1923076923 | O19: 88 | P19: 0.6769230769 | Q19: 0.9495463294 | R19: At risk of persistent absence | T19: Primary | U19: 9252004 | V19: Ingoldmells Academy | W19: 101 | X19: 1 | Y19: 0.009900990099 | Z19: 13 | AA19: 0.1287128713 | AB19: 32 | AC19: 0.3168316832 | AD19: 17 | AE19: 0.1683168317 | AF19: 38 | AG19: 0.3762376238 | AH19: 0.9034275311 | AI19: Persistent absence | AJ19: 9252004 | AK19: Primary | AL19: 9252004 | AM19: Ingoldmells Academy | AN19: 98 | AO19: 1 | AP19: 0.01020408163 | AQ19: 8 | AR19: 0.08163265306 | AS19: 13 | AT19: 0.1326530612 | AU19: 23 | AV19: 0.2346938776 | AW19: 53 | AX19: 0.5408163265 | AY19: 0.9327480087 | AZ19: At risk of persistent absence
C20: Primary | D20: 9252004 | E20: Ingoldmells Academy | F20: 120 | G20: 0 | H20: 0 | I20: 9 | J20: 0.075 | K20: 18 | L20: 0.15 | M20: 17 | N20: 0.1416666667 | O20: 76 | P20: 0.6333333333 | Q20: 0.9409737828 | R20: At risk of persistent absence | T20: Primary | U20: 9252005 | V20: Mablethorpe Primary Academy | W20: 293 | X20: 4 | Y20: 0.01365187713 | Z20: 21 | AA20: 0.07167235495 | AB20: 85 | AC20: 0.2901023891 | AD20: 75 | AE20: 0.2559726962 | AF20: 108 | AG20: 0.3686006826 | AH20: 0.906296095 | AI20: Persistent absence | AJ20: 9252005 | AK20: Primary | AL20: 9252005 | AM20: Mablethorpe Primary Academy | AN20: 292 | AO20: 3 | AP20: 0.0102739726 | AQ20: 27 | AR20: 0.09246575342 | AS20: 68 | AT20: 0.2328767123 | AU20: 69 | AV20: 0.2363013699 | AW20: 125 | AX20: 0.4280821918 | AY20: 0.9125474131 | AZ20: At risk of persistent absence
C21: Primary | D21: 9252005 | E21: Mablethorpe Primary Academy | F21: 310 | G21: 4 | H21: 0.01290322581 | I21: 23 | J21: 0.07419354839 | K21: 47 | L21: 0.1516129032 | M21: 29 | N21: 0.0935483871 | O21: 207 | P21: 0.6677419355 | Q21: 0.9390975639 | R21: At risk of persistent absence | T21: Primary | U21: 9252006 | V21: Lincoln Carlton Academy | W21: 363 | X21: 0 | Y21: 0 | Z21: 12 | AA21: 0.03305785124 | AB21: 45 | AC21: 0.1239669421 | AD21: 68 | AE21: 0.1873278237 | AF21: 238 | AG21: 0.6556473829 | AH21: 0.9523270914 | AI21: As expected | AJ21: 9252006 | AK21: Primary | AL21: 9252006 | AM21: Lincoln Carlton Academy | AN21: 361 | AO21: 1 | AP21: 0.002770083102 | AQ21: 4 | AR21: 0.01108033241 | AS21: 21 | AT21: 0.05817174515 | AU21: 62 | AV21: 0.1717451524 | AW21: 273 | AX21: 0.756232687 | AY21: 0.9672464531 | AZ21: As expected
C22: Primary | D22: 9252006 | E22: Lincoln Carlton Academy | F22: 420 | G22: 2 | H22: 0.004761904762 | I22: 27 | J22: 0.06428571429 | K22: 48 | L22: 0.1142857143 | M22: 44 | N22: 0.1047619048 | O22: 299 | P22: 0.7119047619 | Q22: 0.9490592829 | R22: At risk of persistent absence | T22: Primary | U22: 9252007 | V22: Fishtoft Academy | W22: 46 | X22: 0 | Y22: 0 | Z22: 1 | AA22: 0.02173913043 | AB22: 9 | AC22: 0.1956521739 | AD22: 11 | AE22: 0.2391304348 | AF22: 25 | AG22: 0.5434782609 | AH22: 0.9399414903 | AI22: At risk of persistent absence | AJ22: 9252007 | AK22: Primary | AL22: 9252007 | AM22: Fishtoft Academy | AN22: 51 | AO22: 0 | AP22: 0 | AQ22: 0 | AR22: 0 | AS22: 8 | AT22: 0.1568627451 | AU22: 11 | AV22: 0.2156862745 | AW22: 32 | AX22: 0.6274509804 | AY22: 0.9565681737 | AZ22: As expected
C23: Primary | D23: 9252007 | E23: Fishtoft Academy | F23: 51 | G23: 3 | H23: 0.05882352941 | I23: 4 | J23: 0.07843137255 | K23: 5 | L23: 0.09803921569 | M23: 5 | N23: 0.09803921569 | O23: 34 | P23: 0.6666666667 | Q23: 0.890070922 | R23: Persistent absence | T23: Primary | U23: 9252008 | V23: Gainsborough Mercer's Wood Academy | W23: 160 | X23: 1 | Y23: 0.00625 | Z23: 10 | AA23: 0.0625 | AB23: 38 | AC23: 0.2375 | AD23: 36 | AE23: 0.225 | AF23: 75 | AG23: 0.46875 | AH23: 0.9245596869 | AI23: At risk of persistent absence | AJ23: 9252008 | AK23: Primary | AL23: 9252008 | AM23: Gainsborough Mercer's Wood Academy | AN23: 153 | AO23: 5 | AP23: 0.03267973856 | AQ23: 8 | AR23: 0.0522875817 | AS23: 29 | AT23: 0.1895424837 | AU23: 34 | AV23: 0.2222222222 | AW23: 77 | AX23: 0.5032679739 | AY23: 0.9286831586 | AZ23: At risk of persistent absence
C24: Primary | D24: 9252008 | E24: Gainsborough Mercer's Wood Academy | F24: 182 | G24: 12 | H24: 0.06593406593 | I24: 16 | J24: 0.08791208791 | K24: 26 | L24: 0.1428571429 | M24: 17 | N24: 0.09340659341 | O24: 111 | P24: 0.6098901099 | Q24: 0.9117523168 | R24: At risk of persistent absence | T24: Primary | U24: 9252009 | V24: St John's Primary Academy | W24: 341 | X24: 0 | Y24: 0 | Z24: 6 | AA24: 0.01759530792 | AB24: 53 | AC24: 0.1554252199 | AD24: 67 | AE24: 0.1964809384 | AF24: 215 | AG24: 0.6304985337 | AH24: 0.949440696 | AI24: At risk of persistent absence | AJ24: 9252009 | AK24: Primary | AL24: 9252009 | AM24: St John's Primary Academy | AN24: 341 | AO24: 0 | AP24: 0 | AQ24: 7 | AR24: 0.02052785924 | AS24: 59 | AT24: 0.1730205279 | AU24: 63 | AV24: 0.1847507331 | AW24: 212 | AX24: 0.6217008798 | AY24: 0.9515156202 | AZ24: As expected
C25: Primary | D25: 9252009 | E25: St John's Primary Academy | F25: 402 | G25: 0 | H25: 0 | I25: 29 | J25: 0.07213930348 | K25: 66 | L25: 0.1641791045 | M25: 53 | N25: 0.131840796 | O25: 254 | P25: 0.631840796 | Q25: 0.9445833333 | R25: At risk of persistent absence | T25: Primary | U25: 9252010 | V25: Boston Pioneers Free School Academy | W25: 367 | X25: 13 | Y25: 0.03542234332 | Z25: 27 | AA25: 0.07356948229 | AB25: 85 | AC25: 0.2316076294 | AD25: 66 | AE25: 0.1798365123 | AF25: 176 | AG25: 0.4795640327 | AH25: 0.9106454505 | AI25: At risk of persistent absence | AJ25: 9252010 | AK25: Primary | AL25: 9252010 | AM25: Boston Pioneers Free School Academy | AN25: 363 | AO25: 4 | AP25: 0.01101928375 | AQ25: 17 | AR25: 0.04683195592 | AS25: 62 | AT25: 0.1707988981 | AU25: 80 | AV25: 0.2203856749 | AW25: 200 | AX25: 0.5509641873 | AY25: 0.9414521038 | AZ25: At risk of persistent absence
C26: Primary | D26: 9252010 | E26: Boston Pioneers Free School Academy | F26: 410 | G26: 7 | H26: 0.01707317073 | I26: 28 | J26: 0.06829268293 | K26: 97 | L26: 0.2365853659 | M26: 56 | N26: 0.1365853659 | O26: 222 | P26: 0.5414634146 | Q26: 0.925160496 | R26: At risk of persistent absence | T26: Primary | U26: 9252012 | V26: Caythorpe Primary School | W26: 84 | X26: 4 | Y26: 0.04761904762 | Z26: 8 | AA26: 0.09523809524 | AB26: 14 | AC26: 0.1666666667 | AD26: 12 | AE26: 0.1428571429 | AF26: 46 | AG26: 0.5476190476 | AH26: 0.914659197 | AI26: At risk of persistent absence | AJ26: 9252012 | AK26: Primary | AL26: 9252012 | AM26: Caythorpe Primary School | AN26: 77 | AO26: 0 | AP26: 0 | AQ26: 7 | AR26: 0.09090909091 | AS26: 4 | AT26: 0.05194805195 | AU26: 19 | AV26: 0.2467532468 | AW26: 47 | AX26: 0.6103896104 | AY26: 0.9410817031 | AZ26: At risk of persistent absence
C27: Primary | D27: 9252012 | E27: Caythorpe Primary School | F27: 107 | G27: 3 | H27: 0.02803738318 | I27: 11 | J27: 0.1028037383 | K27: 15 | L27: 0.1401869159 | M27: 11 | N27: 0.1028037383 | O27: 67 | P27: 0.6261682243 | Q27: 0.9116099614 | R27: At risk of persistent absence | T27: Primary | U27: 9252013 | V27: Corby Glen Community Primary School | W27: 62 | X27: 0 | Y27: 0 | Z27: 6 | AA27: 0.09677419355 | AB27: 7 | AC27: 0.1129032258 | AD27: 12 | AE27: 0.1935483871 | AF27: 37 | AG27: 0.5967741935 | AH27: 0.9497918835 | AI27: At risk of persistent absence | AJ27: 9252013 | AK27: Primary | AL27: 9252013 | AM27: Corby Glen Community Primary School | AN27: 59 | AO27: 0 | AP27: 0 | AQ27: 0 | AR27: 0 | AS27: 4 | AT27: 0.06779661017 | AU27: 7 | AV27: 0.1186440678 | AW27: 48 | AX27: 0.813559322 | AY27: 0.9743279976 | AZ27: As expected
C28: Primary | D28: 9252013 | E28: Corby Glen Community Primary School | F28: 77 | G28: 0 | H28: 0 | I28: 2 | J28: 0.02597402597 | K28: 9 | L28: 0.1168831169 | M28: 15 | N28: 0.1948051948 | O28: 51 | P28: 0.6623376623 | Q28: 0.9583914458 | R28: As expected | T28: Primary | U28: 9252014 | V28: Beacon Primary Academy | W28: 179 | X28: 0 | Y28: 0 | Z28: 12 | AA28: 0.06703910615 | AB28: 26 | AC28: 0.1452513966 | AD28: 28 | AE28: 0.156424581 | AF28: 113 | AG28: 0.6312849162 | AH28: 0.9438024311 | AI28: At risk of persistent absence | AJ28: 9252014 | AK28: Primary | AL28: 9252014 | AM28: Beacon Primary Academy | AN28: 180 | AO28: 0 | AP28: 0 | AQ28: 4 | AR28: 0.02222222222 | AS28: 22 | AT28: 0.1222222222 | AU28: 26 | AV28: 0.1444444444 | AW28: 128 | AX28: 0.7111111111 | AY28: 0.9603253889 | AZ28: As expected
C29: Primary | D29: 9252014 | E29: Beacon Primary Academy | F29: 211 | G29: 2 | H29: 0.009478672986 | I29: 18 | J29: 0.08530805687 | K29: 33 | L29: 0.1563981043 | M29: 25 | N29: 0.1184834123 | O29: 133 | P29: 0.6303317536 | Q29: 0.9320578231 | R29: At risk of persistent absence | T29: Primary | U29: 9252015 | V29: The Wainfleet Magdalen Church of England Methodist School | W29: 165 | X29: 4 | Y29: 0.02424242424 | Z29: 28 | AA29: 0.1696969697 | AB29: 58 | AC29: 0.3515151515 | AD29: 21 | AE29: 0.1272727273 | AF29: 54 | AG29: 0.3272727273 | AH29: 0.8792864317 | AI29: Persistent absence | AJ29: 9252015 | AK29: Primary | AL29: 9252015 | AM29: The Wainfleet Magdalen Church of England Methodist School | AN29: 163 | AO29: 1 | AP29: 0.006134969325 | AQ29: 13 | AR29: 0.07975460123 | AS29: 41 | AT29: 0.2515337423 | AU29: 39 | AV29: 0.2392638037 | AW29: 69 | AX29: 0.4233128834 | AY29: 0.9187337335 | AZ29: At risk of persistent absence
C30: Primary | D30: 9252015 | E30: The Wainfleet Magdalen Church of England Methodist School | F30: 181 | G30: 1 | H30: 0.005524861878 | I30: 28 | J30: 0.1546961326 | K30: 50 | L30: 0.2762430939 | M30: 20 | N30: 0.1104972376 | O30: 82 | P30: 0.453038674 | Q30: 0.9035240933 | R30: Persistent absence | T30: Primary | U30: 9252016 | V30: Bourne Elsea Park C of E Primary Academy | W30: 243 | X30: 2 | Y30: 0.008230452675 | Z30: 5 | AA30: 0.02057613169 | AB30: 44 | AC30: 0.1810699588 | AD30: 55 | AE30: 0.2263374486 | AF30: 137 | AG30: 0.5637860082 | AH30: 0.9434779898 | AI30: At risk of persistent absence | AJ30: 9252016 | AK30: Primary | AL30: 9252016 | AM30: Bourne Elsea Park C of E Primary Academy | AN30: 248 | AO30: 3 | AP30: 0.01209677419 | AQ30: 5 | AR30: 0.02016129032 | AS30: 30 | AT30: 0.1209677419 | AU30: 44 | AV30: 0.1774193548 | AW30: 166 | AX30: 0.6693548387 | AY30: 0.9533153868 | AZ30: As expected
C31: Primary | D31: 9252016 | E31: Bourne Elsea Park C of E Primary Academy | F31: 296 | G31: 0 | H31: 0 | I31: 17 | J31: 0.05743243243 | K31: 46 | L31: 0.1554054054 | M31: 28 | N31: 0.09459459459 | O31: 205 | P31: 0.6925675676 | Q31: 0.9481309584 | R31: At risk of persistent absence | T31: Primary | U31: 9252017 | V31: Tedder County Primary School | W31: 96 | X31: 0 | Y31: 0 | Z31: 0 | AA31: 0 | AB31: 8 | AC31: 0.08333333333 | AD31: 13 | AE31: 0.1354166667 | AF31: 75 | AG31: 0.78125 | AH31: 0.9699623506 | AI31: As expected | AJ31: 9252017 | AK31: Primary | AL31: 9252017 | AM31: Tedder County Primary School | AN31: 95 | AO31: 1 | AP31: 0.01052631579 | AQ31: 1 | AR31: 0.01052631579 | AS31: 6 | AT31: 0.06315789474 | AU31: 15 | AV31: 0.1578947368 | AW31: 72 | AX31: 0.7578947368 | AY31: 0.9657170449 | AZ31: As expected
C32: Primary | D32: 9252017 | E32: Tedder County Primary School | F32: 114 | G32: 0 | H32: 0 | I32: 2 | J32: 0.01754385965 | K32: 11 | L32: 0.09649122807 | M32: 7 | N32: 0.06140350877 | O32: 94 | P32: 0.8245614035 | Q32: 0.9728455285 | R32: As expected | T32: Primary | U32: 9252018 | V32: Castle Wood Academy | W32: 250 | X32: 1 | Y32: 0.004 | Z32: 4 | AA32: 0.016 | AB32: 42 | AC32: 0.168 | AD32: 61 | AE32: 0.244 | AF32: 142 | AG32: 0.568 | AH32: 0.9488694296 | AI32: At risk of persistent absence | AJ32: 9252018 | AK32: Primary | AL32: 9252018 | AM32: Castle Wood Academy | AN32: 248 | AO32: 3 | AP32: 0.01209677419 | AQ32: 9 | AR32: 0.03629032258 | AS32: 23 | AT32: 0.09274193548 | AU32: 50 | AV32: 0.2016129032 | AW32: 163 | AX32: 0.6572580645 | AY32: 0.9526919746 | AZ32: As expected
C33: Primary | D33: 9252018 | E33: Castle Wood Academy | F33: 301 | G33: 4 | H33: 0.01328903654 | I33: 8 | J33: 0.02657807309 | K33: 45 | L33: 0.1495016611 | M33: 26 | N33: 0.08637873754 | O33: 218 | P33: 0.7242524917 | Q33: 0.952717796 | R33: As expected | T33: Primary | U33: 9252019 | V33: Eagle Community Primary School | W33: 64 | X33: 0 | Y33: 0 | Z33: 0 | AA33: 0 | AB33: 10 | AC33: 0.15625 | AD33: 11 | AE33: 0.171875 | AF33: 43 | AG33: 0.671875 | AH33: 0.9569521179 | AI33: As expected | AJ33: 9252019 | AK33: Primary | AL33: 9252019 | AM33: Eagle Community Primary School | AN33: 66 | AO33: 0 | AP33: 0 | AQ33: 1 | AR33: 0.01515151515 | AS33: 6 | AT33: 0.09090909091 | AU33: 13 | AV33: 0.196969697 | AW33: 46 | AX33: 0.696969697 | AY33: 0.9608337759 | AZ33: As expected
C34: Primary | D34: 9252019 | E34: Eagle Community Primary School | F34: 73 | G34: 0 | H34: 0 | I34: 5 | J34: 0.06849315068 | K34: 8 | L34: 0.1095890411 | M34: 6 | N34: 0.08219178082 | O34: 54 | P34: 0.7397260274 | Q34: 0.9498977505 | R34: At risk of persistent absence | T34: Primary | U34: 9252020 | V34: Huntingtower Community Primary Academy | W34: 363 | X34: 1 | Y34: 0.002754820937 | Z34: 7 | AA34: 0.01928374656 | AB34: 80 | AC34: 0.2203856749 | AD34: 66 | AE34: 0.1818181818 | AF34: 209 | AG34: 0.5757575758 | AH34: 0.9413089827 | AI34: At risk of persistent absence | AJ34: 9252020 | AK34: Primary | AL34: 9252020 | AM34: Huntingtower Community Primary Academy | AN34: 364 | AO34: 1 | AP34: 0.002747252747 | AQ34: 5 | AR34: 0.01373626374 | AS34: 60 | AT34: 0.1648351648 | AU34: 84 | AV34: 0.2307692308 | AW34: 214 | AX34: 0.5879120879 | AY34: 0.9488340721 | AZ34: At risk of persistent absence
C35: Primary | D35: 9252020 | E35: Huntingtower Community Primary Academy | F35: 419 | G35: 3 | H35: 0.007159904535 | I35: 23 | J35: 0.05489260143 | K35: 49 | L35: 0.1169451074 | M35: 66 | N35: 0.1575178998 | O35: 278 | P35: 0.6634844869 | Q35: 0.9464270432 | R35: At risk of persistent absence | T35: Primary | U35: 9252021 | V35: Wygate Park Academy | W35: 219 | X35: 1 | Y35: 0.004566210046 | Z35: 6 | AA35: 0.02739726027 | AB35: 45 | AC35: 0.2054794521 | AD35: 42 | AE35: 0.1917808219 | AF35: 125 | AG35: 0.5707762557 | AH35: 0.9440906638 | AI35: At risk of persistent absence | AJ35: 9252021 | AK35: Primary | AL35: 9252021 | AM35: Wygate Park Academy | AN35: 217 | AO35: 0 | AP35: 0 | AQ35: 2 | AR35: 0.009216589862 | AS35: 36 | AT35: 0.1658986175 | AU35: 52 | AV35: 0.2396313364 | AW35: 127 | AX35: 0.5852534562 | AY35: 0.9520991603 | AZ35: As expected
C36: Primary | D36: 9252021 | E36: Wygate Park Academy | F36: 238 | G36: 1 | H36: 0.004201680672 | I36: 6 | J36: 0.02521008403 | K36: 32 | L36: 0.1344537815 | M36: 32 | N36: 0.1344537815 | O36: 167 | P36: 0.7016806723 | Q36: 0.9573042169 | R36: As expected | T36: Primary | U36: 9252023 | V36: Weston St Mary Church of England Primary School | W36: 41 | X36: 0 | Y36: 0 | Z36: 2 | AA36: 0.0487804878 | AB36: 9 | AC36: 0.2195121951 | AD36: 8 | AE36: 0.1951219512 | AF36: 22 | AG36: 0.5365853659 | AH36: 0.9338336954 | AI36: At risk of persistent absence | AJ36: 9252023 | AK36: Primary | AL36: 9252023 | AM36: Weston St Mary Church of England Primary School | AN36: 35 | AO36: 2 | AP36: 0.05714285714 | AQ36: 0 | AR36: 0 | AS36: 1 | AT36: 0.02857142857 | AU36: 10 | AV36: 0.2857142857 | AW36: 22 | AX36: 0.6285714286 | AY36: 0.9239021956 | AZ36: At risk of persistent absence
C37: Primary | D37: 9252023 | E37: Weston St Mary Church of England Primary School | F37: 49 | G37: 0 | H37: 0 | I37: 4 | J37: 0.08163265306 | K37: 14 | L37: 0.2857142857 | M37: 6 | N37: 0.1224489796 | O37: 25 | P37: 0.5102040816 | Q37: 0.9222737819 | R37: At risk of persistent absence | T37: Primary | U37: 9252024 | V37: The Isaac Newton Primary School | W37: 356 | X37: 4 | Y37: 0.01123595506 | Z37: 13 | AA37: 0.03651685393 | AB37: 58 | AC37: 0.1629213483 | AD37: 47 | AE37: 0.1320224719 | AF37: 234 | AG37: 0.6573033708 | AH37: 0.9440131383 | AI37: At risk of persistent absence | AJ37: 9252024 | AK37: Primary | AL37: 9252024 | AM37: The Isaac Newton Primary School | AN37: 352 | AO37: 3 | AP37: 0.008522727273 | AQ37: 7 | AR37: 0.01988636364 | AS37: 56 | AT37: 0.1590909091 | AU37: 93 | AV37: 0.2642045455 | AW37: 193 | AX37: 0.5482954545 | AY37: 0.9422434133 | AZ37: At risk of persistent absence
C38: Primary | D38: 9252024 | E38: The Isaac Newton Primary School | F38: 411 | G38: 2 | H38: 0.004866180049 | I38: 17 | J38: 0.04136253041 | K38: 39 | L38: 0.09489051095 | M38: 55 | N38: 0.1338199513 | O38: 298 | P38: 0.7250608273 | Q38: 0.9565768206 | R38: As expected | T38: Primary | U38: 9252025 | V38: Helpringham School | W38: 82 | X38: 1 | Y38: 0.01219512195 | Z38: 8 | AA38: 0.09756097561 | AB38: 15 | AC38: 0.1829268293 | AD38: 27 | AE38: 0.3292682927 | AF38: 31 | AG38: 0.3780487805 | AH38: 0.9081110705 | AI38: Persistent absence | AJ38: 9252025 | AK38: Primary | AL38: 9252025 | AM38: Helpringham School | AN38: 81 | AO38: 0 | AP38: 0 | AQ38: 3 | AR38: 0.03703703704 | AS38: 17 | AT38: 0.2098765432 | AU38: 15 | AV38: 0.1851851852 | AW38: 46 | AX38: 0.5679012346 | AY38: 0.9375402447 | AZ38: At risk of persistent absence
C39: Primary | D39: 9252025 | E39: Helpringham School | F39: 101 | G39: 0 | H39: 0 | I39: 6 | J39: 0.05940594059 | K39: 12 | L39: 0.1188118812 | M39: 10 | N39: 0.09900990099 | O39: 73 | P39: 0.7227722772 | Q39: 0.9553800955 | R39: As expected | T39: Primary | U39: 9252028 | V39: Langtoft Primary School | W39: 176 | X39: 0 | Y39: 0 | Z39: 3 | AA39: 0.01704545455 | AB39: 18 | AC39: 0.1022727273 | AD39: 35 | AE39: 0.1988636364 | AF39: 120 | AG39: 0.6818181818 | AH39: 0.955218841 | AI39: As expected | AJ39: 9252028 | AK39: Primary | AL39: 9252028 | AM39: Langtoft Primary School | AN39: 176 | AO39: 0 | AP39: 0 | AQ39: 3 | AR39: 0.01704545455 | AS39: 14 | AT39: 0.07954545455 | AU39: 24 | AV39: 0.1363636364 | AW39: 135 | AX39: 0.7670454545 | AY39: 0.9658730159 | AZ39: As expected
C40: Primary | D40: 9252028 | E40: Langtoft Primary School | F40: 189 | G40: 0 | H40: 0 | I40: 8 | J40: 0.04232804233 | K40: 16 | L40: 0.08465608466 | M40: 18 | N40: 0.09523809524 | O40: 147 | P40: 0.7777777778 | Q40: 0.9620811287 | R40: As expected | T40: Primary | U40: 9252030 | V40: The Metheringham Primary School | W40: 229 | X40: 0 | Y40: 0 | Z40: 2 | AA40: 0.008733624454 | AB40: 42 | AC40: 0.1834061135 | AD40: 45 | AE40: 0.1965065502 | AF40: 140 | AG40: 0.6113537118 | AH40: 0.9514382242 | AI40: As expected | AJ40: 9252030 | AK40: Primary | AL40: 9252030 | AM40: The Metheringham Primary School | AN40: 230 | AO40: 1 | AP40: 0.004347826087 | AQ40: 8 | AR40: 0.0347826087 | AS40: 40 | AT40: 0.1739130435 | AU40: 40 | AV40: 0.1739130435 | AW40: 141 | AX40: 0.6130434783 | AY40: 0.9500171566 | AZ40: As expected
C41: Primary | D41: 9252030 | E41: The Metheringham Primary School | F41: 265 | G41: 1 | H41: 0.003773584906 | I41: 9 | J41: 0.03396226415 | K41: 42 | L41: 0.158490566 | M41: 19 | N41: 0.07169811321 | O41: 194 | P41: 0.7320754717 | Q41: 0.9513422819 | R41: As expected | T41: Primary | U41: 9252031 | V41: Nocton Community Primary School | W41: 26 | X41: 0 | Y41: 0 | Z41: 1 | AA41: 0.03846153846 | AB41: 4 | AC41: 0.1538461538 | AD41: 2 | AE41: 0.07692307692 | AF41: 19 | AG41: 0.7307692308 | AH41: 0.9542772861 | AI41: As expected | AJ41: 9252031 | AK41: Primary | AL41: 9252031 | AM41: Nocton Community Primary School | AN41: 25 | AO41: 0 | AP41: 0 | AQ41: 0 | AR41: 0 | AS41: 1 | AT41: 0.04 | AU41: 8 | AV41: 0.32 | AW41: 16 | AX41: 0.64 | AY41: 0.96943078 | AZ41: As expected
C42: Primary | D42: 9252031 | E42: Nocton Community Primary School | F42: 34 | G42: 0 | H42: 0 | I42: 2 | J42: 0.05882352941 | K42: 10 | L42: 0.2941176471 | M42: 4 | N42: 0.1176470588 | O42: 18 | P42: 0.5294117647 | Q42: 0.9294251565 | R42: At risk of persistent absence | T42: Primary | U42: 9252033 | V42: North Scarle Primary School | W42: 50 | X42: 0 | Y42: 0 | Z42: 0 | AA42: 0 | AB42: 13 | AC42: 0.26 | AD42: 10 | AE42: 0.2 | AF42: 27 | AG42: 0.54 | AH42: 0.9458039333 | AI42: At risk of persistent absence | AJ42: 9252033 | AK42: Primary | AL42: 9252033 | AM42: North Scarle Primary School | AN42: 50 | AO42: 0 | AP42: 0 | AQ42: 0 | AR42: 0 | AS42: 8 | AT42: 0.16 | AU42: 7 | AV42: 0.14 | AW42: 35 | AX42: 0.7 | AY42: 0.9617241379 | AZ42: As expected
C43: Primary | D43: 9252033 | E43: North Scarle Primary School | F43: 55 | G43: 0 | H43: 0 | I43: 4 | J43: 0.07272727273 | K43: 11 | L43: 0.2 | M43: 7 | N43: 0.1272727273 | O43: 33 | P43: 0.6 | Q43: 0.9418762746 | R43: At risk of persistent absence | T43: Primary | U43: 9252034 | V43: OSBOURNBY PRIMARY SCHOOL | W43: 68 | X43: 3 | Y43: 0.04411764706 | Z43: 2 | AA43: 0.02941176471 | AB43: 11 | AC43: 0.1617647059 | AD43: 9 | AE43: 0.1323529412 | AF43: 43 | AG43: 0.6323529412 | AH43: 0.9211047535 | AI43: At risk of persistent absence | AJ43: 9252034 | AK43: Primary | AL43: 9252034 | AM43: OSBOURNBY PRIMARY SCHOOL | AN43: 68 | AO43: 4 | AP43: 0.05882352941 | AQ43: 4 | AR43: 0.05882352941 | AS43: 6 | AT43: 0.08823529412 | AU43: 11 | AV43: 0.1617647059 | AW43: 43 | AX43: 0.6323529412 | AY43: 0.9012392999 | AZ43: Persistent absence
C44: Primary | D44: 9252034 | E44: OSBOURNBY PRIMARY SCHOOL | F44: 73 | G44: 1 | H44: 0.01369863014 | I44: 3 | J44: 0.04109589041 | K44: 10 | L44: 0.1369863014 | M44: 8 | N44: 0.1095890411 | O44: 51 | P44: 0.698630137 | Q44: 0.9525650941 | R44: As expected | T44: Primary | U44: 9252035 | V44: Ingoldsby Academy | W44: 54 | X44: 0 | Y44: 0 | Z44: 1 | AA44: 0.01851851852 | AB44: 4 | AC44: 0.07407407407 | AD44: 9 | AE44: 0.1666666667 | AF44: 40 | AG44: 0.7407407407 | AH44: 0.9610244989 | AI44: As expected | AJ44: 9252035 | AK44: Primary | AL44: 9252035 | AM44: Ingoldsby Academy | AN44: 58 | AO44: 0 | AP44: 0 | AQ44: 0 | AR44: 0 | AS44: 12 | AT44: 0.2068965517 | AU44: 12 | AV44: 0.2068965517 | AW44: 34 | AX44: 0.5862068966 | AY44: 0.9446683199 | AZ44: At risk of persistent absence
C45: Primary | D45: 9252035 | E45: Ingoldsby Academy | F45: 54 | G45: 0 | H45: 0 | I45: 2 | J45: 0.03703703704 | K45: 6 | L45: 0.1111111111 | M45: 2 | N45: 0.03703703704 | O45: 44 | P45: 0.8148148148 | Q45: 0.9638795987 | R45: As expected | T45: Primary | U45: 9252036 | V45: Manor Farm Academy | W45: 180 | X45: 0 | Y45: 0 | Z45: 3 | AA45: 0.01666666667 | AB45: 15 | AC45: 0.08333333333 | AD45: 34 | AE45: 0.1888888889 | AF45: 128 | AG45: 0.7111111111 | AH45: 0.9614502253 | AI45: As expected | AJ45: 9252036 | AK45: Primary | AL45: 9252036 | AM45: Manor Farm Academy | AN45: 182 | AO45: 0 | AP45: 0 | AQ45: 3 | AR45: 0.01648351648 | AS45: 15 | AT45: 0.08241758242 | AU45: 17 | AV45: 0.09340659341 | AW45: 147 | AX45: 0.8076923077 | AY45: 0.9688688213 | AZ45: As expected
C46: Primary | D46: 9252036 | E46: Manor Farm Academy | F46: 180 | G46: 0 | H46: 0 | I46: 13 | J46: 0.07222222222 | K46: 27 | L46: 0.15 | M46: 12 | N46: 0.06666666667 | O46: 128 | P46: 0.7111111111 | Q46: 0.949598021 | R46: At risk of persistent absence | T46: Primary | U46: 9252038 | V46: Sleaford Church Lane Primary School | W46: 176 | X46: 0 | Y46: 0 | Z46: 1 | AA46: 0.005681818182 | AB46: 15 | AC46: 0.08522727273 | AD46: 45 | AE46: 0.2556818182 | AF46: 115 | AG46: 0.6534090909 | AH46: 0.960683985 | AI46: As expected | AJ46: 9252038 | AK46: Primary | AL46: 9252038 | AM46: Sleaford Church Lane Primary School | AN46: 180 | AO46: 1 | AP46: 0.005555555556 | AQ46: 2 | AR46: 0.01111111111 | AS46: 24 | AT46: 0.1333333333 | AU46: 43 | AV46: 0.2388888889 | AW46: 110 | AX46: 0.6111111111 | AY46: 0.9562408936 | AZ46: As expected
C47: Primary | D47: 9252038 | E47: Sleaford Church Lane Primary School | F47: 210 | G47: 1 | H47: 0.004761904762 | I47: 13 | J47: 0.0619047619 | K47: 18 | L47: 0.08571428571 | M47: 15 | N47: 0.07142857143 | O47: 163 | P47: 0.7761904762 | Q47: 0.9612782624 | R47: As expected | T47: Primary | U47: 9252039 | V47: South Hykeham School | W47: 125 | X47: 1 | Y47: 0.008 | Z47: 2 | AA47: 0.016 | AB47: 14 | AC47: 0.112 | AD47: 24 | AE47: 0.192 | AF47: 84 | AG47: 0.672 | AH47: 0.9468764789 | AI47: At risk of persistent absence | AJ47: 9252039 | AK47: Primary | AL47: 9252039 | AM47: South Hykeham School | AN47: 124 | AO47: 1 | AP47: 0.008064516129 | AQ47: 3 | AR47: 0.02419354839 | AS47: 19 | AT47: 0.1532258065 | AU47: 23 | AV47: 0.185483871 | AW47: 78 | AX47: 0.6290322581 | AY47: 0.9496286955 | AZ47: At risk of persistent absence
C48: Primary | D48: 9252039 | E48: South Hykeham School | F48: 156 | G48: 1 | H48: 0.00641025641 | I48: 10 | J48: 0.0641025641 | K48: 20 | L48: 0.1282051282 | M48: 12 | N48: 0.07692307692 | O48: 113 | P48: 0.7243589744 | Q48: 0.9483663248 | R48: At risk of persistent absence | T48: Primary | U48: 9252040 | V48: Theddlethorpe Academy | W48: 75 | X48: 0 | Y48: 0 | Z48: 3 | AA48: 0.04 | AB48: 11 | AC48: 0.1466666667 | AD48: 12 | AE48: 0.16 | AF48: 49 | AG48: 0.6533333333 | AH48: 0.9499182339 | AI48: At risk of persistent absence | AJ48: 9252040 | AK48: Primary | AL48: 9252040 | AM48: Theddlethorpe Academy | AN48: 78 | AO48: 1 | AP48: 0.01282051282 | AQ48: 2 | AR48: 0.02564102564 | AS48: 15 | AT48: 0.1923076923 | AU48: 14 | AV48: 0.1794871795 | AW48: 46 | AX48: 0.5897435897 | AY48: 0.9457584717 | AZ48: At risk of persistent absence
C49: Primary | D49: 9252040 | E49: Theddlethorpe Academy | F49: 89 | G49: 0 | H49: 0 | I49: 4 | J49: 0.04494382022 | K49: 13 | L49: 0.1460674157 | M49: 4 | N49: 0.04494382022 | O49: 68 | P49: 0.7640449438 | Q49: 0.9584199584 | R49: As expected | T49: Primary | U49: 9252042 | V49: South Witham Academy | W49: 78 | X49: 0 | Y49: 0 | Z49: 6 | AA49: 0.07692307692 | AB49: 16 | AC49: 0.2051282051 | AD49: 13 | AE49: 0.1666666667 | AF49: 43 | AG49: 0.5512820513 | AH49: 0.9350875397 | AI49: At risk of persistent absence | AJ49: 9252042 | AK49: Primary | AL49: 9252042 | AM49: South Witham Academy | AN49: 78 | AO49: 0 | AP49: 0 | AQ49: 2 | AR49: 0.02564102564 | AS49: 8 | AT49: 0.1025641026 | AU49: 22 | AV49: 0.2820512821 | AW49: 46 | AX49: 0.5897435897 | AY49: 0.9537162162 | AZ49: As expected
C50: Primary | D50: 9252042 | E50: South Witham Academy | F50: 85 | G50: 0 | H50: 0 | I50: 8 | J50: 0.09411764706 | K50: 9 | L50: 0.1058823529 | M50: 11 | N50: 0.1294117647 | O50: 57 | P50: 0.6705882353 | Q50: 0.9424019608 | R50: At risk of persistent absence | T50: Primary | U50: 9252043 | V50: Gosberton Academy | W50: 119 | X50: 0 | Y50: 0 | Z50: 0 | AA50: 0 | AB50: 21 | AC50: 0.1764705882 | AD50: 33 | AE50: 0.2773109244 | AF50: 65 | AG50: 0.5462184874 | AH50: 0.9483399564 | AI50: At risk of persistent absence | AJ50: 9252043 | AK50: Primary | AL50: 9252043 | AM50: Gosberton Academy | AN50: 119 | AO50: 0 | AP50: 0 | AQ50: 1 | AR50: 0.008403361345 | AS50: 16 | AT50: 0.1344537815 | AU50: 23 | AV50: 0.1932773109 | AW50: 79 | AX50: 0.6638655462 | AY50: 0.9592147204 | AZ50: As expected
C51: Primary | D51: 9252043 | E51: Gosberton Academy | F51: 137 | G51: 0 | H51: 0 | I51: 13 | J51: 0.09489051095 | K51: 22 | L51: 0.1605839416 | M51: 13 | N51: 0.09489051095 | O51: 89 | P51: 0.6496350365 | Q51: 0.9375163058 | R51: At risk of persistent absence | T51: Primary | U51: 9252045 | V51: Chapel St Leonards Primary School | W51: 128 | X51: 1 | Y51: 0.0078125 | Z51: 16 | AA51: 0.125 | AB51: 19 | AC51: 0.1484375 | AD51: 24 | AE51: 0.1875 | AF51: 68 | AG51: 0.53125 | AH51: 0.9263055149 | AI51: At risk of persistent absence | AJ51: 9252045 | AK51: Primary | AL51: 9252045 | AM51: Chapel St Leonards Primary School | AN51: 125 | AO51: 0 | AP51: 0 | AQ51: 10 | AR51: 0.08 | AS51: 24 | AT51: 0.192 | AU51: 23 | AV51: 0.184 | AW51: 68 | AX51: 0.544 | AY51: 0.9290168213 | AZ51: At risk of persistent absence
C52: Primary | D52: 9252045 | E52: Chapel St Leonards Primary School | F52: 153 | G52: 2 | H52: 0.01307189542 | I52: 8 | J52: 0.0522875817 | K52: 23 | L52: 0.1503267974 | M52: 20 | N52: 0.1307189542 | O52: 100 | P52: 0.6535947712 | Q52: 0.9451790987 | R52: At risk of persistent absence | T52: Primary | U52: 9252047 | V52: Holbeach Bank Academy | W52: 64 | X52: 0 | Y52: 0 | Z52: 2 | AA52: 0.03125 | AB52: 7 | AC52: 0.109375 | AD52: 8 | AE52: 0.125 | AF52: 47 | AG52: 0.734375 | AH52: 0.9567886375 | AI52: As expected | AJ52: 9252047 | AK52: Primary | AL52: 9252047 | AM52: Holbeach Bank Academy | AN52: 67 | AO52: 0 | AP52: 0 | AQ52: 2 | AR52: 0.02985074627 | AS52: 12 | AT52: 0.1791044776 | AU52: 15 | AV52: 0.223880597 | AW52: 38 | AX52: 0.5671641791 | AY52: 0.9555164954 | AZ52: As expected
C53: Primary | D53: 9252047 | E53: Holbeach Bank Academy | F53: 70 | G53: 1 | H53: 0.01428571429 | I53: 7 | J53: 0.1 | K53: 9 | L53: 0.1285714286 | M53: 7 | N53: 0.1 | O53: 46 | P53: 0.6571428571 | Q53: 0.9381992541 | R53: At risk of persistent absence | T53: Primary | U53: 9252048 | V53: Poplar Farm School | W53: 236 | X53: 0 | Y53: 0 | Z53: 6 | AA53: 0.02542372881 | AB53: 26 | AC53: 0.1101694915 | AD53: 49 | AE53: 0.2076271186 | AF53: 155 | AG53: 0.656779661 | AH53: 0.9578698376 | AI53: As expected | AJ53: 9252048 | AK53: Primary | AL53: 9252048 | AM53: Poplar Farm School | AN53: 238 | AO53: 0 | AP53: 0 | AQ53: 5 | AR53: 0.02100840336 | AS53: 23 | AT53: 0.09663865546 | AU53: 51 | AV53: 0.2142857143 | AW53: 159 | AX53: 0.6680672269 | AY53: 0.9555027422 | AZ53: As expected
C54: Primary | D54: 9252048 | E54: Poplar Farm School | F54: 226 | G54: 0 | H54: 0 | I54: 7 | J54: 0.03097345133 | K54: 21 | L54: 0.09292035398 | M54: 23 | N54: 0.1017699115 | O54: 175 | P54: 0.7743362832 | Q54: 0.9672804998 | R54: As expected | T54: Primary | U54: 9252049 | V54: Colsterworth CE Primary School | W54: 98 | X54: 0 | Y54: 0 | Z54: 6 | AA54: 0.0612244898 | AB54: 18 | AC54: 0.1836734694 | AD54: 24 | AE54: 0.2448979592 | AF54: 50 | AG54: 0.5102040816 | AH54: 0.9311430417 | AI54: At risk of persistent absence | AJ54: 9252049 | AK54: Primary | AL54: 9252049 | AM54: Colsterworth CE Primary School | AN54: 100 | AO54: 0 | AP54: 0 | AQ54: 1 | AR54: 0.01 | AS54: 11 | AT54: 0.11 | AU54: 18 | AV54: 0.18 | AW54: 70 | AX54: 0.7 | AY54: 0.9630706857 | AZ54: As expected
C55: Primary | D55: 9252049 | E55: Colsterworth CE Primary School | F55: 111 | G55: 2 | H55: 0.01801801802 | I55: 2 | J55: 0.01801801802 | K55: 15 | L55: 0.1351351351 | M55: 4 | N55: 0.03603603604 | O55: 88 | P55: 0.7927927928 | Q55: 0.9541765303 | R55: As expected | T55: Primary | U55: 9252050 | V55: Walcott Primary School | W55: 79 | X55: 0 | Y55: 0 | Z55: 2 | AA55: 0.0253164557 | AB55: 14 | AC55: 0.1772151899 | AD55: 10 | AE55: 0.1265822785 | AF55: 53 | AG55: 0.6708860759 | AH55: 0.9502997486 | AI55: As expected | AJ55: 9252050 | AK55: Primary | AL55: 9252050 | AM55: Walcott Primary School | AN55: 80 | AO55: 0 | AP55: 0 | AQ55: 1 | AR55: 0.0125 | AS55: 6 | AT55: 0.075 | AU55: 18 | AV55: 0.225 | AW55: 55 | AX55: 0.6875 | AY55: 0.9626340301 | AZ55: As expected
C56: Primary | D56: 9252050 | E56: Walcott Primary School | F56: 85 | G56: 0 | H56: 0 | I56: 8 | J56: 0.09411764706 | K56: 23 | L56: 0.2705882353 | M56: 8 | N56: 0.09411764706 | O56: 46 | P56: 0.5411764706 | Q56: 0.9265873016 | R56: At risk of persistent absence | T56: Primary | U56: 9252054 | V56: Grantham Belton Lane Community Primary | W56: 289 | X56: 3 | Y56: 0.01038062284 | Z56: 11 | AA56: 0.03806228374 | AB56: 43 | AC56: 0.1487889273 | AD56: 64 | AE56: 0.2214532872 | AF56: 168 | AG56: 0.5813148789 | AH56: 0.9404379934 | AI56: At risk of persistent absence | AJ56: 9252054 | AK56: Primary | AL56: 9252054 | AM56: Grantham Belton Lane Community Primary | AN56: 291 | AO56: 2 | AP56: 0.006872852234 | AQ56: 3 | AR56: 0.01030927835 | AS56: 41 | AT56: 0.1408934708 | AU56: 65 | AV56: 0.2233676976 | AW56: 180 | AX56: 0.618556701 | AY56: 0.9520466445 | AZ56: As expected
C57: Primary | D57: 9252054 | E57: Grantham Belton Lane Community Primary | F57: 325 | G57: 2 | H57: 0.006153846154 | I57: 17 | J57: 0.05230769231 | K57: 56 | L57: 0.1723076923 | M57: 32 | N57: 0.09846153846 | O57: 218 | P57: 0.6707692308 | Q57: 0.94522198 | R57: At risk of persistent absence | T57: Primary | U57: 9252055 | V57: Grantham Cliffedale Primary School | W57: 255 | X57: 1 | Y57: 0.003921568627 | Z57: 5 | AA57: 0.01960784314 | AB57: 26 | AC57: 0.1019607843 | AD57: 36 | AE57: 0.1411764706 | AF57: 187 | AG57: 0.7333333333 | AH57: 0.9586642171 | AI57: As expected | AJ57: 9252055 | AK57: Primary | AL57: 9252055 | AM57: Grantham Cliffedale Primary School | AN57: 256 | AO57: 0 | AP57: 0 | AQ57: 4 | AR57: 0.015625 | AS57: 29 | AT57: 0.11328125 | AU57: 59 | AV57: 0.23046875 | AW57: 164 | AX57: 0.640625 | AY57: 0.9568892359 | AZ57: As expected
C58: Primary | D58: 9252055 | E58: Grantham Cliffedale Primary School | F58: 293 | G58: 0 | H58: 0 | I58: 9 | J58: 0.03071672355 | K58: 29 | L58: 0.09897610922 | M58: 34 | N58: 0.1160409556 | O58: 221 | P58: 0.7542662116 | Q58: 0.9645938519 | R58: As expected | T58: Primary | U58: 9252057 | V58: Fosse Way Academy | W58: 417 | X58: 0 | Y58: 0 | Z58: 9 | AA58: 0.02158273381 | AB58: 62 | AC58: 0.1486810552 | AD58: 81 | AE58: 0.1942446043 | AF58: 265 | AG58: 0.6354916067 | AH58: 0.9523281596 | AI58: As expected | AJ58: 9252057 | AK58: Primary | AL58: 9252057 | AM58: Fosse Way Academy | AN58: 418 | AO58: 1 | AP58: 0.002392344498 | AQ58: 7 | AR58: 0.01674641148 | AS58: 50 | AT58: 0.1196172249 | AU58: 85 | AV58: 0.2033492823 | AW58: 275 | AX58: 0.6578947368 | AY58: 0.9552776958 | AZ58: As expected
C59: Primary | D59: 9252057 | E59: Fosse Way Academy | F59: 496 | G59: 1 | H59: 0.002016129032 | I59: 19 | J59: 0.03830645161 | K59: 68 | L59: 0.1370967742 | M59: 72 | N59: 0.1451612903 | O59: 336 | P59: 0.6774193548 | Q59: 0.953125 | R59: As expected | T59: Primary | U59: 9252058 | V59: Hartsholme Academy | W59: 346 | X59: 2 | Y59: 0.005780346821 | Z59: 24 | AA59: 0.06936416185 | AB59: 60 | AC59: 0.1734104046 | AD59: 63 | AE59: 0.1820809249 | AF59: 197 | AG59: 0.5693641618 | AH59: 0.9331094318 | AI59: At risk of persistent absence | AJ59: 9252058 | AK59: Primary | AL59: 9252058 | AM59: Hartsholme Academy | AN59: 350 | AO59: 3 | AP59: 0.008571428571 | AQ59: 17 | AR59: 0.04857142857 | AS59: 58 | AT59: 0.1657142857 | AU59: 74 | AV59: 0.2114285714 | AW59: 198 | AX59: 0.5657142857 | AY59: 0.9394138786 | AZ59: At risk of persistent absence
C60: Primary | D60: 9252058 | E60: Hartsholme Academy | F60: 398 | G60: 3 | H60: 0.007537688442 | I60: 31 | J60: 0.07788944724 | K60: 64 | L60: 0.1608040201 | M60: 76 | N60: 0.1909547739 | O60: 224 | P60: 0.5628140704 | Q60: 0.9325600216 | R60: At risk of persistent absence | T60: Primary | U60: 9252061 | V60: Waddington Redwood Primary Academy | W60: 269 | X60: 6 | Y60: 0.02230483271 | Z60: 8 | AA60: 0.02973977695 | AB60: 34 | AC60: 0.126394052 | AD60: 46 | AE60: 0.1710037175 | AF60: 175 | AG60: 0.6505576208 | AH60: 0.9463599414 | AI60: At risk of persistent absence | AJ60: 9252061 | AK60: Primary | AL60: 9252061 | AM60: Waddington Redwood Primary Academy | AN60: 264 | AO60: 3 | AP60: 0.01136363636 | AQ60: 4 | AR60: 0.01515151515 | AS60: 23 | AT60: 0.08712121212 | AU60: 57 | AV60: 0.2159090909 | AW60: 177 | AX60: 0.6704545455 | AY60: 0.9544899508 | AZ60: As expected
C61: Primary | D61: 9252061 | E61: Waddington Redwood Primary Academy | F61: 297 | G61: 2 | H61: 0.006734006734 | I61: 13 | J61: 0.04377104377 | K61: 35 | L61: 0.1178451178 | M61: 38 | N61: 0.1279461279 | O61: 209 | P61: 0.7037037037 | Q61: 0.9469441771 | R61: At risk of persistent absence | T61: Primary | U61: 9252062 | V61: Deeping St. James C.P. School | W61: 183 | X61: 0 | Y61: 0 | Z61: 6 | AA61: 0.03278688525 | AB61: 28 | AC61: 0.1530054645 | AD61: 42 | AE61: 0.2295081967 | AF61: 107 | AG61: 0.5846994536 | AH61: 0.9418567039 | AI61: At risk of persistent absence | AJ61: 9252062 | AK61: Primary | AL61: 9252062 | AM61: Deeping St. James C.P. School | AN61: 183 | AO61: 1 | AP61: 0.005464480874 | AQ61: 0 | AR61: 0 | AS61: 17 | AT61: 0.09289617486 | AU61: 39 | AV61: 0.2131147541 | AW61: 126 | AX61: 0.6885245902 | AY61: 0.961099806 | AZ61: As expected
C62: Primary | D62: 9252062 | E62: Deeping St. James C.P. School | F62: 212 | G62: 0 | H62: 0 | I62: 3 | J62: 0.0141509434 | K62: 29 | L62: 0.1367924528 | M62: 19 | N62: 0.08962264151 | O62: 161 | P62: 0.7594339623 | Q62: 0.964955318 | R62: As expected | T62: Primary | U62: 9252063 | V62: St. Giles Academy | W62: 360 | X62: 18 | Y62: 0.05 | Z62: 45 | AA62: 0.125 | AB62: 62 | AC62: 0.1722222222 | AD62: 79 | AE62: 0.2194444444 | AF62: 156 | AG62: 0.4333333333 | AH62: 0.9041605078 | AI62: Persistent absence | AJ62: 9252063 | AK62: Primary | AL62: 9252063 | AM62: St. Giles Academy | AN62: 355 | AO62: 11 | AP62: 0.03098591549 | AQ62: 31 | AR62: 0.08732394366 | AS62: 72 | AT62: 0.2028169014 | AU62: 82 | AV62: 0.2309859155 | AW62: 159 | AX62: 0.4478873239 | AY62: 0.9174846158 | AZ62: At risk of persistent absence
C63: Primary | D63: 9252063 | E63: St. Giles Academy | F63: 404 | G63: 5 | H63: 0.01237623762 | I63: 28 | J63: 0.06930693069 | K63: 73 | L63: 0.1806930693 | M63: 59 | N63: 0.146039604 | O63: 239 | P63: 0.5915841584 | Q63: 0.9338058304 | R63: At risk of persistent absence | T63: Primary | U63: 9252064 | V63: North Hykeham Ling Moor Primary Academy | W63: 361 | X63: 1 | Y63: 0.002770083102 | Z63: 2 | AA63: 0.005540166205 | AB63: 25 | AC63: 0.06925207756 | AD63: 66 | AE63: 0.1828254848 | AF63: 267 | AG63: 0.7396121884 | AH63: 0.9660588663 | AI63: As expected | AJ63: 9252064 | AK63: Primary | AL63: 9252064 | AM63: North Hykeham Ling Moor Primary Academy | AN63: 361 | AO63: 1 | AP63: 0.002770083102 | AQ63: 4 | AR63: 0.01108033241 | AS63: 42 | AT63: 0.1163434903 | AU63: 72 | AV63: 0.1994459834 | AW63: 242 | AX63: 0.6703601108 | AY63: 0.9589229011 | AZ63: As expected
C64: Primary | D64: 9252064 | E64: North Hykeham Ling Moor Primary Academy | F64: 419 | G64: 1 | H64: 0.002386634845 | I64: 18 | J64: 0.04295942721 | K64: 38 | L64: 0.09069212411 | M64: 56 | N64: 0.1336515513 | O64: 306 | P64: 0.7303102625 | Q64: 0.9593363835 | R64: As expected | T64: Primary | U64: 9252065 | V64: Market Deeping Community Primary School | W64: 271 | X64: 1 | Y64: 0.0036900369 | Z64: 11 | AA64: 0.0405904059 | AB64: 37 | AC64: 0.1365313653 | AD64: 56 | AE64: 0.2066420664 | AF64: 166 | AG64: 0.6125461255 | AH64: 0.9438658042 | AI64: At risk of persistent absence | AJ64: 9252065 | AK64: Primary | AL64: 9252065 | AM64: Market Deeping Community Primary School | AN64: 272 | AO64: 1 | AP64: 0.003676470588 | AQ64: 6 | AR64: 0.02205882353 | AS64: 20 | AT64: 0.07352941176 | AU64: 57 | AV64: 0.2095588235 | AW64: 188 | AX64: 0.6911764706 | AY64: 0.9575543686 | AZ64: As expected
C65: Primary | D65: 9252065 | E65: Market Deeping Community Primary School | F65: 318 | G65: 3 | H65: 0.009433962264 | I65: 13 | J65: 0.04088050314 | K65: 45 | L65: 0.141509434 | M65: 46 | N65: 0.1446540881 | O65: 211 | P65: 0.6635220126 | Q65: 0.9476710079 | R65: At risk of persistent absence | T65: Primary | U65: 9252066 | V65: The Bluecoat School | W65: 161 | X65: 0 | Y65: 0 | Z65: 0 | AA65: 0 | AB65: 0 | AC65: 0 | AD65: 0 | AE65: 0 | AF65: 161 | AG65: 1 | AH65: 1 | AI65: As expected | AJ65: 9252066 | AK65: Primary | AL65: 9252066 | AM65: The Bluecoat School | AN65: 154 | AO65: 0 | AP65: 0 | AQ65: 0 | AR65: 0 | AS65: 0 | AT65: 0 | AU65: 0 | AV65: 0 | AW65: 154 | AX65: 1 | AY65: 1 | AZ65: As expected
C66: Primary | D66: 9252066 | E66: The Bluecoat School | F66: 181 | G66: 0 | H66: 0 | I66: 0 | J66: 0 | K66: 0 | L66: 0 | M66: 0 | N66: 0 | O66: 181 | P66: 1 | Q66: 1 | R66: As expected | T66: Primary | U66: 9252067 | V66: The Holt Primary School | W66: 165 | X66: 0 | Y66: 0 | Z66: 1 | AA66: 0.006060606061 | AB66: 18 | AC66: 0.1090909091 | AD66: 30 | AE66: 0.1818181818 | AF66: 116 | AG66: 0.703030303 | AH66: 0.9608170259 | AI66: As expected | AJ66: 9252067 | AK66: Primary | AL66: 9252067 | AM66: The Holt Primary School | AN66: 165 | AO66: 0 | AP66: 0 | AQ66: 2 | AR66: 0.01212121212 | AS66: 16 | AT66: 0.09696969697 | AU66: 33 | AV66: 0.2 | AW66: 114 | AX66: 0.6909090909 | AY66: 0.960595263 | AZ66: As expected
C67: Primary | D67: 9252067 | E67: The Holt Primary School | F67: 195 | G67: 1 | H67: 0.005128205128 | I67: 28 | J67: 0.1435897436 | K67: 33 | L67: 0.1692307692 | M67: 24 | N67: 0.1230769231 | O67: 109 | P67: 0.558974359 | Q67: 0.9218556897 | R67: At risk of persistent absence | T67: Primary | U67: 9252069 | V67: Thurlby Community Primary | W67: 175 | X67: 0 | Y67: 0 | Z67: 9 | AA67: 0.05142857143 | AB67: 37 | AC67: 0.2114285714 | AD67: 34 | AE67: 0.1942857143 | AF67: 95 | AG67: 0.5428571429 | AH67: 0.9330569765 | AI67: At risk of persistent absence | AJ67: 9252069 | AK67: Primary | AL67: 9252069 | AM67: Thurlby Community Primary | AN67: 176 | AO67: 0 | AP67: 0 | AQ67: 6 | AR67: 0.03409090909 | AS67: 18 | AT67: 0.1022727273 | AU67: 41 | AV67: 0.2329545455 | AW67: 111 | AX67: 0.6306818182 | AY67: 0.9578482537 | AZ67: As expected
C68: Primary | D68: 9252069 | E68: Thurlby Community Primary | F68: 187 | G68: 0 | H68: 0 | I68: 7 | J68: 0.03743315508 | K68: 25 | L68: 0.1336898396 | M68: 15 | N68: 0.08021390374 | O68: 139 | P68: 0.743315508 | Q68: 0.958225065 | R68: As expected | T68: Primary | U68: 9252070 | V68: Grantham Belmont CP School | W68: 183 | X68: 6 | Y68: 0.03278688525 | Z68: 11 | AA68: 0.06010928962 | AB68: 34 | AC68: 0.1857923497 | AD68: 42 | AE68: 0.2295081967 | AF68: 90 | AG68: 0.4918032787 | AH68: 0.9186573311 | AI68: At risk of persistent absence | AJ68: 9252070 | AK68: Primary | AL68: 9252070 | AM68: Grantham Belmont CP School | AN68: 179 | AO68: 0 | AP68: 0 | AQ68: 12 | AR68: 0.06703910615 | AS68: 27 | AT68: 0.1508379888 | AU68: 33 | AV68: 0.1843575419 | AW68: 107 | AX68: 0.5977653631 | AY68: 0.9400638545 | AZ68: At risk of persistent absence
C69: Primary | D69: 9252070 | E69: Grantham Belmont CP School | F69: 211 | G69: 2 | H69: 0.009478672986 | I69: 16 | J69: 0.07582938389 | K69: 36 | L69: 0.1706161137 | M69: 21 | N69: 0.09952606635 | O69: 135 | P69: 0.6398104265 | Q69: 0.9307180133 | R69: At risk of persistent absence | T69: Primary | U69: 9252072 | V69: Bourne Westfield Primary Academy | W69: 543 | X69: 0 | Y69: 0 | Z69: 9 | AA69: 0.01657458564 | AB69: 64 | AC69: 0.1178637201 | AD69: 95 | AE69: 0.1749539595 | AF69: 375 | AG69: 0.6906077348 | AH69: 0.9557715409 | AI69: As expected | AJ69: 9252072 | AK69: Primary | AL69: 9252072 | AM69: Bourne Westfield Primary Academy | AN69: 542 | AO69: 4 | AP69: 0.007380073801 | AQ69: 13 | AR69: 0.02398523985 | AS69: 55 | AT69: 0.1014760148 | AU69: 112 | AV69: 0.2066420664 | AW69: 358 | AX69: 0.6605166052 | AY69: 0.9549439805 | AZ69: As expected
C70: Primary | D70: 9252072 | E70: Bourne Westfield Primary Academy | F70: 627 | G70: 1 | H70: 0.001594896332 | I70: 17 | J70: 0.02711323764 | K70: 80 | L70: 0.1275917065 | M70: 73 | N70: 0.1164274322 | O70: 456 | P70: 0.7272727273 | Q70: 0.9610312463 | R70: As expected | T70: Primary | U70: 9252073 | V70: St Nicholas CE Primary Academy | W70: 176 | X70: 2 | Y70: 0.01136363636 | Z70: 5 | AA70: 0.02840909091 | AB70: 39 | AC70: 0.2215909091 | AD70: 42 | AE70: 0.2386363636 | AF70: 88 | AG70: 0.5 | AH70: 0.9338085097 | AI70: At risk of persistent absence | AJ70: 9252073 | AK70: Primary | AL70: 9252073 | AM70: St Nicholas CE Primary Academy | AN70: 177 | AO70: 5 | AP70: 0.02824858757 | AQ70: 10 | AR70: 0.05649717514 | AS70: 37 | AT70: 0.209039548 | AU70: 36 | AV70: 0.2033898305 | AW70: 89 | AX70: 0.5028248588 | AY70: 0.9240647118 | AZ70: At risk of persistent absence
C71: Primary | D71: 9252073 | E71: St Nicholas CE Primary Academy | F71: 201 | G71: 2 | H71: 0.009950248756 | I71: 12 | J71: 0.05970149254 | K71: 41 | L71: 0.2039800995 | M71: 30 | N71: 0.1492537313 | O71: 116 | P71: 0.5771144279 | Q71: 0.9356490967 | R71: At risk of persistent absence | T71: Primary | U71: 9252074 | V71: Branston Junior Academy | W71: 171 | X71: 0 | Y71: 0 | Z71: 7 | AA71: 0.04093567251 | AB71: 21 | AC71: 0.1228070175 | AD71: 40 | AE71: 0.2339181287 | AF71: 103 | AG71: 0.6023391813 | AH71: 0.9462891051 | AI71: At risk of persistent absence | AJ71: 9252074 | AK71: Primary | AL71: 9252074 | AM71: Branston Junior Academy | AN71: 171 | AO71: 1 | AP71: 0.005847953216 | AQ71: 11 | AR71: 0.06432748538 | AS71: 22 | AT71: 0.1286549708 | AU71: 29 | AV71: 0.1695906433 | AW71: 108 | AX71: 0.6315789474 | AY71: 0.9448619009 | AZ71: At risk of persistent absence
C72: Primary | D72: 9252074 | E72: Branston Junior Academy | F72: 164 | G72: 1 | H72: 0.006097560976 | I72: 8 | J72: 0.0487804878 | K72: 22 | L72: 0.1341463415 | M72: 28 | N72: 0.1707317073 | O72: 105 | P72: 0.6402439024 | Q72: 0.9474932249 | R72: At risk of persistent absence | T72: Primary | U72: 9252075 | V72: Heighington Millfield Primary Academy | W72: 228 | X72: 0 | Y72: 0 | Z72: 8 | AA72: 0.0350877193 | AB72: 35 | AC72: 0.1535087719 | AD72: 56 | AE72: 0.2456140351 | AF72: 129 | AG72: 0.5657894737 | AH72: 0.9452186142 | AI72: At risk of persistent absence | AJ72: 9252075 | AK72: Primary | AL72: 9252075 | AM72: Heighington Millfield Primary Academy | AN72: 229 | AO72: 0 | AP72: 0 | AQ72: 3 | AR72: 0.01310043668 | AS72: 19 | AT72: 0.08296943231 | AU72: 40 | AV72: 0.1746724891 | AW72: 167 | AX72: 0.7292576419 | AY72: 0.9665881101 | AZ72: As expected
C73: Primary | D73: 9252075 | E73: Heighington Millfield Primary Academy | F73: 272 | G73: 0 | H73: 0 | I73: 3 | J73: 0.01102941176 | K73: 29 | L73: 0.1066176471 | M73: 31 | N73: 0.1139705882 | O73: 209 | P73: 0.7683823529 | Q73: 0.969659076 | R73: As expected | T73: Primary | U73: 9252077 | V73: The Spalding Parish Church of England Day School | W73: 498 | X73: 1 | Y73: 0.002008032129 | Z73: 14 | AA73: 0.0281124498 | AB73: 109 | AC73: 0.218875502 | AD73: 104 | AE73: 0.2088353414 | AF73: 270 | AG73: 0.5421686747 | AH73: 0.9406965893 | AI73: At risk of persistent absence | AJ73: 9252077 | AK73: Primary | AL73: 9252077 | AM73: The Spalding Parish Church of England Day School | AN73: 501 | AO73: 1 | AP73: 0.001996007984 | AQ73: 13 | AR73: 0.02594810379 | AS73: 62 | AT73: 0.123752495 | AU73: 112 | AV73: 0.2235528942 | AW73: 313 | AX73: 0.624750499 | AY73: 0.9531189868 | AZ73: As expected
C74: Primary | D74: 9252077 | E74: The Spalding Parish Church of England Day School | F74: 579 | G74: 4 | H74: 0.006908462867 | I74: 35 | J74: 0.06044905009 | K74: 91 | L74: 0.1571675302 | M74: 77 | N74: 0.1329879102 | O74: 372 | P74: 0.6424870466 | Q74: 0.9409893993 | R74: At risk of persistent absence | T74: Primary | U74: 9252078 | V74: Ermine Primary Academy | W74: 340 | X74: 3 | Y74: 0.008823529412 | Z74: 22 | AA74: 0.06470588235 | AB74: 78 | AC74: 0.2294117647 | AD74: 78 | AE74: 0.2294117647 | AF74: 159 | AG74: 0.4676470588 | AH74: 0.9198698798 | AI74: At risk of persistent absence | AJ74: 9252078 | AK74: Primary | AL74: 9252078 | AM74: Ermine Primary Academy | AN74: 346 | AO74: 9 | AP74: 0.02601156069 | AQ74: 6 | AR74: 0.01734104046 | AS74: 56 | AT74: 0.161849711 | AU74: 83 | AV74: 0.2398843931 | AW74: 192 | AX74: 0.5549132948 | AY74: 0.9325618311 | AZ74: At risk of persistent absence
C75: Primary | D75: 9252078 | E75: Ermine Primary Academy | F75: 387 | G75: 5 | H75: 0.01291989664 | I75: 20 | J75: 0.05167958656 | K75: 69 | L75: 0.1782945736 | M75: 71 | N75: 0.1834625323 | O75: 222 | P75: 0.5736434109 | Q75: 0.937079282 | R75: At risk of persistent absence | T75: Primary | U75: 9252079 | V75: Linchfield Academy | W75: 297 | X75: 4 | Y75: 0.01346801347 | Z75: 4 | AA75: 0.01346801347 | AB75: 37 | AC75: 0.1245791246 | AD75: 60 | AE75: 0.202020202 | AF75: 192 | AG75: 0.6464646465 | AH75: 0.9502808989 | AI75: As expected | AJ75: 9252079 | AK75: Primary | AL75: 9252079 | AM75: Linchfield Academy | AN75: 301 | AO75: 5 | AP75: 0.01661129568 | AQ75: 5 | AR75: 0.01661129568 | AS75: 33 | AT75: 0.1096345515 | AU75: 58 | AV75: 0.1926910299 | AW75: 200 | AX75: 0.6644518272 | AY75: 0.9563075289 | AZ75: As expected
C76: Primary | D76: 9252079 | E76: Linchfield Academy | F76: 347 | G76: 0 | H76: 0 | I76: 9 | J76: 0.02593659942 | K76: 37 | L76: 0.1066282421 | M76: 48 | N76: 0.1383285303 | O76: 253 | P76: 0.7291066282 | Q76: 0.9636275461 | R76: As expected | T76: Primary | U76: 9252080 | V76: St Pauls County Primary School | W76: 177 | X76: 1 | Y76: 0.005649717514 | Z76: 20 | AA76: 0.1129943503 | AB76: 66 | AC76: 0.3728813559 | AD76: 30 | AE76: 0.1694915254 | AF76: 60 | AG76: 0.3389830508 | AH76: 0.8988473507 | AI76: Persistent absence | AJ76: 9252080 | AK76: Primary | AL76: 9252080 | AM76: St Pauls County Primary School | AN76: 177 | AO76: 1 | AP76: 0.005649717514 | AQ76: 14 | AR76: 0.0790960452 | AS76: 33 | AT76: 0.186440678 | AU76: 53 | AV76: 0.2994350282 | AW76: 76 | AX76: 0.4293785311 | AY76: 0.9260419432 | AZ76: At risk of persistent absence
C77: Primary | D77: 9252080 | E77: St Pauls County Primary School | F77: 200 | G77: 2 | H77: 0.01 | I77: 16 | J77: 0.08 | K77: 48 | L77: 0.24 | M77: 23 | N77: 0.115 | O77: 111 | P77: 0.555 | Q77: 0.9277505652 | R77: At risk of persistent absence | T77: Primary | U77: 9252084 | V77: Crowland South View CP School | W77: 352 | X77: 1 | Y77: 0.002840909091 | Z77: 18 | AA77: 0.05113636364 | AB77: 60 | AC77: 0.1704545455 | AD77: 93 | AE77: 0.2642045455 | AF77: 180 | AG77: 0.5113636364 | AH77: 0.9347627834 | AI77: At risk of persistent absence | AJ77: 9252084 | AK77: Primary | AL77: 9252084 | AM77: Crowland South View CP School | AN77: 358 | AO77: 1 | AP77: 0.002793296089 | AQ77: 10 | AR77: 0.02793296089 | AS77: 58 | AT77: 0.1620111732 | AU77: 76 | AV77: 0.2122905028 | AW77: 213 | AX77: 0.594972067 | AY77: 0.9457640345 | AZ77: At risk of persistent absence
C78: Primary | D78: 9252084 | E78: Crowland South View CP School | F78: 388 | G78: 2 | H78: 0.005154639175 | I78: 29 | J78: 0.07474226804 | K78: 62 | L78: 0.1597938144 | M78: 48 | N78: 0.1237113402 | O78: 247 | P78: 0.6365979381 | Q78: 0.9393852616 | R78: At risk of persistent absence | T78: Primary | U78: 9252085 | V78: Deeping St Nicholas Primary School | W78: 51 | X78: 0 | Y78: 0 | Z78: 1 | AA78: 0.01960784314 | AB78: 10 | AC78: 0.1960784314 | AD78: 15 | AE78: 0.2941176471 | AF78: 25 | AG78: 0.4901960784 | AH78: 0.941884058 | AI78: At risk of persistent absence | AJ78: 9252085 | AK78: Primary | AL78: 9252085 | AM78: Deeping St Nicholas Primary School | AN78: 53 | AO78: 0 | AP78: 0 | AQ78: 0 | AR78: 0 | AS78: 11 | AT78: 0.2075471698 | AU78: 13 | AV78: 0.2452830189 | AW78: 29 | AX78: 0.5471698113 | AY78: 0.9496758785 | AZ78: At risk of persistent absence
C79: Primary | D79: 9252085 | E79: Deeping St Nicholas Primary School | F79: 63 | G79: 0 | H79: 0 | I79: 1 | J79: 0.01587301587 | K79: 17 | L79: 0.2698412698 | M79: 3 | N79: 0.04761904762 | O79: 42 | P79: 0.6666666667 | Q79: 0.9501718213 | R79: As expected | T79: Primary | U79: 9252086 | V79: Surfleet Primary School | W79: 69 | X79: 1 | Y79: 0.01449275362 | Z79: 4 | AA79: 0.05797101449 | AB79: 8 | AC79: 0.115942029 | AD79: 13 | AE79: 0.1884057971 | AF79: 43 | AG79: 0.6231884058 | AH79: 0.9378378378 | AI79: At risk of persistent absence | AJ79: 9252086 | AK79: Primary | AL79: 9252086 | AM79: Surfleet Primary School | AN79: 71 | AO79: 1 | AP79: 0.01408450704 | AQ79: 3 | AR79: 0.04225352113 | AS79: 13 | AT79: 0.1830985915 | AU79: 17 | AV79: 0.2394366197 | AW79: 37 | AX79: 0.5211267606 | AY79: 0.93681605 | AZ79: At risk of persistent absence
C80: Primary | D80: 9252086 | E80: Surfleet Primary School | F80: 77 | G80: 1 | H80: 0.01298701299 | I80: 4 | J80: 0.05194805195 | K80: 10 | L80: 0.1298701299 | M80: 8 | N80: 0.1038961039 | O80: 54 | P80: 0.7012987013 | Q80: 0.949205585 | R80: At risk of persistent absence | T80: Primary | U80: 9252087 | V80: Fleet Wood Lane Primary School | W80: 162 | X80: 0 | Y80: 0 | Z80: 12 | AA80: 0.07407407407 | AB80: 33 | AC80: 0.2037037037 | AD80: 40 | AE80: 0.2469135802 | AF80: 77 | AG80: 0.475308642 | AH80: 0.9270422535 | AI80: At risk of persistent absence | AJ80: 9252087 | AK80: Primary | AL80: 9252087 | AM80: Fleet Wood Lane Primary School | AN80: 159 | AO80: 1 | AP80: 0.006289308176 | AQ80: 8 | AR80: 0.05031446541 | AS80: 30 | AT80: 0.1886792453 | AU80: 36 | AV80: 0.2264150943 | AW80: 84 | AX80: 0.5283018868 | AY80: 0.9362983425 | AZ80: At risk of persistent absence
C81: Primary | D81: 9252087 | E81: Fleet Wood Lane Primary School | F81: 187 | G81: 5 | H81: 0.02673796791 | I81: 5 | J81: 0.02673796791 | K81: 24 | L81: 0.128342246 | M81: 25 | N81: 0.1336898396 | O81: 128 | P81: 0.6844919786 | Q81: 0.9438652767 | R81: At risk of persistent absence | T81: Primary | U81: 9252088 | V81: Gedney Church End Primary Academy | W81: 66 | X81: 0 | Y81: 0 | Z81: 7 | AA81: 0.1060606061 | AB81: 24 | AC81: 0.3636363636 | AD81: 13 | AE81: 0.196969697 | AF81: 22 | AG81: 0.3333333333 | AH81: 0.90076249 | AI81: Persistent absence | AJ81: =AL81*1 -> 9252088 | AK81: Primary | AL81: 9252088 | AM81: Gedney Church End Primary Academy | AN81: 70 | AO81: 2 | AP81: 0.02857142857 | AQ81: 10 | AR81: 0.1428571429 | AS81: 17 | AT81: 0.2428571429 | AU81: 24 | AV81: 0.3428571429 | AW81: 17 | AX81: 0.2428571429 | AY81: 0.8886237072 | AZ81: Persistent absence
C82: Primary | D82: 9252088 | E82: Gedney Church End Primary Academy | F82: 76 | G82: 0 | H82: 0 | I82: 7 | J82: 0.09210526316 | K82: 12 | L82: 0.1578947368 | M82: 11 | N82: 0.1447368421 | O82: 46 | P82: 0.6052631579 | Q82: 0.937745098 | R82: At risk of persistent absence | T82: Primary | U82: 9252089 | V82: Gedney Drove End School | W82: 37 | X82: 0 | Y82: 0 | Z82: 2 | AA82: 0.05405405405 | AB82: 13 | AC82: 0.3513513514 | AD82: 5 | AE82: 0.1351351351 | AF82: 17 | AG82: 0.4594594595 | AH82: 0.9236311239 | AI82: At risk of persistent absence | AJ82: 9252089 | AK82: Primary | AL82: 9252089 | AM82: Gedney Drove End School | AN82: 37 | AO82: 2 | AP82: 0.05405405405 | AQ82: 2 | AR82: 0.05405405405 | AS82: 9 | AT82: 0.2432432432 | AU82: 8 | AV82: 0.2162162162 | AW82: 16 | AX82: 0.4324324324 | AY82: 0.9195607763 | AZ82: At risk of persistent absence
C83: Primary | D83: 9252089 | E83: Gedney Drove End School | F83: 39 | G83: 0 | H83: 0 | I83: 5 | J83: 0.1282051282 | K83: 3 | L83: 0.07692307692 | M83: 2 | N83: 0.05128205128 | O83: 29 | P83: 0.7435897436 | Q83: 0.952991453 | R83: As expected | T83: Primary | U83: 9252091 | V83: Clough and Risegate CP School | W83: 77 | X83: 0 | Y83: 0 | Z83: 0 | AA83: 0 | AB83: 4 | AC83: 0.05194805195 | AD83: 16 | AE83: 0.2077922078 | AF83: 57 | AG83: 0.7402597403 | AH83: 0.9656304306 | AI83: As expected | AJ83: 9252091 | AK83: Primary | AL83: 9252091 | AM83: Clough and Risegate CP School | AN83: 78 | AO83: 0 | AP83: 0 | AQ83: 0 | AR83: 0 | AS83: 5 | AT83: 0.0641025641 | AU83: 17 | AV83: 0.2179487179 | AW83: 56 | AX83: 0.7179487179 | AY83: 0.9693375112 | AZ83: As expected
C84: Primary | D84: 9252091 | E84: Clough and Risegate CP School | F84: 87 | G84: 0 | H84: 0 | I84: 3 | J84: 0.03448275862 | K84: 15 | L84: 0.1724137931 | M84: 7 | N84: 0.08045977011 | O84: 62 | P84: 0.7126436782 | Q84: 0.9581365393 | R84: As expected | T84: Primary | U84: 9252093 | V84: Holbeach Primary | W84: 275 | X84: 0 | Y84: 0 | Z84: 13 | AA84: 0.04727272727 | AB84: 49 | AC84: 0.1781818182 | AD84: 65 | AE84: 0.2363636364 | AF84: 148 | AG84: 0.5381818182 | AH84: 0.9365602138 | AI84: At risk of persistent absence | AJ84: 9252093 | AK84: Primary | AL84: 9252093 | AM84: Holbeach Primary | AN84: 277 | AO84: 2 | AP84: 0.007220216606 | AQ84: 10 | AR84: 0.03610108303 | AS84: 38 | AT84: 0.1371841155 | AU84: 64 | AV84: 0.2310469314 | AW84: 163 | AX84: 0.5884476534 | AY84: 0.946936852 | AZ84: At risk of persistent absence
C85: Primary | D85: 9252093 | E85: Holbeach Primary | F85: 312 | G85: 4 | H85: 0.01282051282 | I85: 21 | J85: 0.06730769231 | K85: 51 | L85: 0.1634615385 | M85: 47 | N85: 0.1506410256 | O85: 189 | P85: 0.6057692308 | Q85: 0.9318776773 | R85: At risk of persistent absence | T85: Primary | U85: 9252094 | V85: KIRTON PRIMARY SCHOOL | W85: 452 | X85: 2 | Y85: 0.004424778761 | Z85: 18 | AA85: 0.03982300885 | AB85: 126 | AC85: 0.2787610619 | AD85: 87 | AE85: 0.1924778761 | AF85: 219 | AG85: 0.4845132743 | AH85: 0.9282596092 | AI85: At risk of persistent absence | AJ85: 9252094 | AK85: Primary | AL85: 9252094 | AM85: KIRTON PRIMARY SCHOOL | AN85: 456 | AO85: 8 | AP85: 0.01754385965 | AQ85: 19 | AR85: 0.04166666667 | AS85: 65 | AT85: 0.1425438596 | AU85: 111 | AV85: 0.2434210526 | AW85: 253 | AX85: 0.5548245614 | AY85: 0.9369360759 | AZ85: At risk of persistent absence
C86: Primary | D86: 9252094 | E86: KIRTON PRIMARY SCHOOL | F86: 527 | G86: 9 | H86: 0.01707779886 | I86: 35 | J86: 0.06641366224 | K86: 87 | L86: 0.165085389 | M86: 69 | N86: 0.1309297913 | O86: 326 | P86: 0.6185958254 | Q86: 0.9349426589 | R86: At risk of persistent absence | T86: Primary | U86: 9252095 | V86: Long Sutton Primary | W86: 352 | X86: 2 | Y86: 0.005681818182 | Z86: 19 | AA86: 0.05397727273 | AB86: 66 | AC86: 0.1875 | AD86: 90 | AE86: 0.2556818182 | AF86: 175 | AG86: 0.4971590909 | AH86: 0.9319800347 | AI86: At risk of persistent absence | AJ86: 9252095 | AK86: Primary | AL86: 9252095 | AM86: Long Sutton Primary | AN86: 350 | AO86: 1 | AP86: 0.002857142857 | AQ86: 16 | AR86: 0.04571428571 | AS86: 57 | AT86: 0.1628571429 | AU86: 80 | AV86: 0.2285714286 | AW86: 196 | AX86: 0.56 | AY86: 0.9414075124 | AZ86: At risk of persistent absence
C87: Primary | D87: 9252095 | E87: Long Sutton Primary | F87: 404 | G87: 4 | H87: 0.009900990099 | I87: 30 | J87: 0.07425742574 | K87: 58 | L87: 0.1435643564 | M87: 42 | N87: 0.103960396 | O87: 270 | P87: 0.6683168317 | Q87: 0.9394287289 | R87: At risk of persistent absence | T87: Primary | U87: 9252096 | V87: Moulton Chapel Primary School | W87: 64 | X87: 0 | Y87: 0 | Z87: 1 | AA87: 0.015625 | AB87: 10 | AC87: 0.15625 | AD87: 12 | AE87: 0.1875 | AF87: 41 | AG87: 0.640625 | AH87: 0.9519806541 | AI87: As expected | AJ87: 9252096 | AK87: Primary | AL87: 9252096 | AM87: Moulton Chapel Primary School | AN87: 65 | AO87: 0 | AP87: 0 | AQ87: 1 | AR87: 0.01538461538 | AS87: 8 | AT87: 0.1230769231 | AU87: 13 | AV87: 0.2 | AW87: 43 | AX87: 0.6615384615 | AY87: 0.9570970329 | AZ87: As expected
C88: Primary | D88: 9252096 | E88: Moulton Chapel Primary School | F88: 74 | G88: 0 | H88: 0 | I88: 2 | J88: 0.02702702703 | K88: 5 | L88: 0.06756756757 | M88: 8 | N88: 0.1081081081 | O88: 59 | P88: 0.7972972973 | Q88: 0.9732232232 | R88: As expected | T88: Primary | U88: 9252097 | V88: The John Harrox Primary School | W88: 225 | X88: 3 | Y88: 0.01333333333 | Z88: 5 | AA88: 0.02222222222 | AB88: 29 | AC88: 0.1288888889 | AD88: 51 | AE88: 0.2266666667 | AF88: 137 | AG88: 0.6088888889 | AH88: 0.9473276791 | AI88: At risk of persistent absence | AJ88: 9252097 | AK88: Primary | AL88: 9252097 | AM88: The John Harrox Primary School | AN88: 225 | AO88: 1 | AP88: 0.004444444444 | AQ88: 2 | AR88: 0.008888888889 | AS88: 24 | AT88: 0.1066666667 | AU88: 37 | AV88: 0.1644444444 | AW88: 161 | AX88: 0.7155555556 | AY88: 0.9598739005 | AZ88: As expected
C89: Primary | D89: 9252097 | E89: The John Harrox Primary School | F89: 259 | G89: 1 | H89: 0.003861003861 | I89: 20 | J89: 0.07722007722 | K89: 37 | L89: 0.1428571429 | M89: 23 | N89: 0.0888030888 | O89: 178 | P89: 0.6872586873 | Q89: 0.9451416278 | R89: At risk of persistent absence | T89: Primary | U89: 9252099 | V89: The West Grantham Church of England Primary Academy | W89: 224 | X89: 8 | Y89: 0.03571428571 | Z89: 24 | AA89: 0.1071428571 | AB89: 42 | AC89: 0.1875 | AD89: 49 | AE89: 0.21875 | AF89: 101 | AG89: 0.4508928571 | AH89: 0.9145150035 | AI89: At risk of persistent absence | AJ89: 9252099 | AK89: Primary | AL89: 9252099 | AM89: The West Grantham Church of England Primary Academy | AN89: 217 | AO89: 2 | AP89: 0.009216589862 | AQ89: 13 | AR89: 0.0599078341 | AS89: 51 | AT89: 0.2350230415 | AU89: 43 | AV89: 0.198156682 | AW89: 108 | AX89: 0.4976958525 | AY89: 0.9292836581 | AZ89: At risk of persistent absence
C90: Primary | D90: 9252099 | E90: The West Grantham Church of England Primary Academy | F90: 268 | G90: 3 | H90: 0.01119402985 | I90: 18 | J90: 0.0671641791 | K90: 64 | L90: 0.2388059701 | M90: 35 | N90: 0.1305970149 | O90: 148 | P90: 0.552238806 | Q90: 0.928541256 | R90: At risk of persistent absence | T90: Primary | U90: 9252104 | V90: Sutton St James Community Primary School | W90: 99 | X90: 0 | Y90: 0 | Z90: 3 | AA90: 0.0303030303 | AB90: 13 | AC90: 0.1313131313 | AD90: 20 | AE90: 0.202020202 | AF90: 63 | AG90: 0.6363636364 | AH90: 0.951354214 | AI90: As expected | AJ90: 9252104 | AK90: Primary | AL90: 9252104 | AM90: Sutton St James Community Primary School | AN90: 98 | AO90: 0 | AP90: 0 | AQ90: 2 | AR90: 0.02040816327 | AS90: 20 | AT90: 0.2040816327 | AU90: 27 | AV90: 0.2755102041 | AW90: 49 | AX90: 0.5 | AY90: 0.9411868287 | AZ90: At risk of persistent absence
C91: Primary | D91: 9252104 | E91: Sutton St James Community Primary School | F91: 105 | G91: 0 | H91: 0 | I91: 1 | J91: 0.009523809524 | K91: 9 | L91: 0.08571428571 | M91: 11 | N91: 0.1047619048 | O91: 84 | P91: 0.8 | Q91: 0.9718783162 | R91: As expected | T91: Primary | U91: 9252105 | V91: Lutton St.Nicholas Primary Academy | W91: 88 | X91: 0 | Y91: 0 | Z91: 2 | AA91: 0.02272727273 | AB91: 16 | AC91: 0.1818181818 | AD91: 19 | AE91: 0.2159090909 | AF91: 51 | AG91: 0.5795454545 | AH91: 0.942687747 | AI91: At risk of persistent absence | AJ91: 9252105 | AK91: Primary | AL91: 9252105 | AM91: Lutton St.Nicholas Primary Academy | AN91: 90 | AO91: 0 | AP91: 0 | AQ91: 2 | AR91: 0.02222222222 | AS91: 30 | AT91: 0.3333333333 | AU91: 17 | AV91: 0.1888888889 | AW91: 41 | AX91: 0.4555555556 | AY91: 0.929223301 | AZ91: At risk of persistent absence
C92: Primary | D92: 9252105 | E92: Lutton St.Nicholas Primary Academy | F92: 95 | G92: 1 | H92: 0.01052631579 | I92: 4 | J92: 0.04210526316 | K92: 14 | L92: 0.1473684211 | M92: 9 | N92: 0.09473684211 | O92: 67 | P92: 0.7052631579 | Q92: 0.9511857708 | R92: As expected | T92: Primary | U92: 9252107 | V92: Shepeau Stow Primary | W92: 60 | X92: 1 | Y92: 0.01666666667 | Z92: 1 | AA92: 0.01666666667 | AB92: 17 | AC92: 0.2833333333 | AD92: 17 | AE92: 0.2833333333 | AF92: 24 | AG92: 0.4 | AH92: 0.9238704053 | AI92: At risk of persistent absence | AJ92: 9252107 | AK92: Primary | AL92: 9252107 | AM92: Shepeau Stow Primary | AN92: 64 | AO92: 2 | AP92: 0.03125 | AQ92: 2 | AR92: 0.03125 | AS92: 22 | AT92: 0.34375 | AU92: 9 | AV92: 0.140625 | AW92: 29 | AX92: 0.453125 | AY92: 0.9133285816 | AZ92: At risk of persistent absence
C93: Primary | D93: 9252107 | E93: Shepeau Stow Primary | F93: 59 | G93: 1 | H93: 0.01694915254 | I93: 5 | J93: 0.08474576271 | K93: 4 | L93: 0.06779661017 | M93: 6 | N93: 0.1016949153 | O93: 43 | P93: 0.7288135593 | Q93: 0.9391086001 | R93: At risk of persistent absence | T93: Primary | U93: 9252113 | V93: Boston Hawthorn Tree School | W93: 311 | X93: 3 | Y93: 0.009646302251 | Z93: 17 | AA93: 0.05466237942 | AB93: 74 | AC93: 0.2379421222 | AD93: 77 | AE93: 0.2475884244 | AF93: 140 | AG93: 0.4501607717 | AH93: 0.9243222157 | AI93: At risk of persistent absence | AJ93: 9252113 | AK93: Primary | AL93: 9252113 | AM93: Boston Hawthorn Tree School | AN93: 310 | AO93: 9 | AP93: 0.02903225806 | AQ93: 12 | AR93: 0.03870967742 | AS93: 53 | AT93: 0.1709677419 | AU93: 68 | AV93: 0.2193548387 | AW93: 168 | AX93: 0.5419354839 | AY93: 0.933428165 | AZ93: At risk of persistent absence
C94: Primary | D94: 9252113 | E94: Boston Hawthorn Tree School | F94: 359 | G94: 3 | H94: 0.008356545961 | I94: 20 | J94: 0.05571030641 | K94: 57 | L94: 0.1587743733 | M94: 39 | N94: 0.1086350975 | O94: 240 | P94: 0.6685236769 | Q94: 0.9435508976 | R94: At risk of persistent absence | T94: Primary | U94: 9252114 | V94: The Spalding Monkshouse Primary School | W94: 361 | X94: 1 | Y94: 0.002770083102 | Z94: 20 | AA94: 0.05540166205 | AB94: 86 | AC94: 0.2382271468 | AD94: 87 | AE94: 0.2409972299 | AF94: 167 | AG94: 0.4626038781 | AH94: 0.9253253376 | AI94: At risk of persistent absence | AJ94: 9252114 | AK94: Primary | AL94: 9252114 | AM94: The Spalding Monkshouse Primary School | AN94: 362 | AO94: 3 | AP94: 0.008287292818 | AQ94: 9 | AR94: 0.02486187845 | AS94: 71 | AT94: 0.1961325967 | AU94: 57 | AV94: 0.1574585635 | AW94: 222 | AX94: 0.6132596685 | AY94: 0.9452686159 | AZ94: At risk of persistent absence
C95: Primary | D95: 9252114 | E95: The Spalding Monkshouse Primary School | F95: 422 | G95: 2 | H95: 0.004739336493 | I95: 25 | J95: 0.05924170616 | K95: 69 | L95: 0.163507109 | M95: 45 | N95: 0.1066350711 | O95: 280 | P95: 0.663507109 | Q95: 0.9408202952 | R95: At risk of persistent absence | T95: Primary | U95: 9252116 | V95: Boston West Academy | W95: 359 | X95: 1 | Y95: 0.00278551532 | Z95: 16 | AA95: 0.04456824513 | AB95: 65 | AC95: 0.1810584958 | AD95: 89 | AE95: 0.2479108635 | AF95: 188 | AG95: 0.5236768802 | AH95: 0.9343103736 | AI95: At risk of persistent absence | AJ95: 9252116 | AK95: Primary | AL95: 9252116 | AM95: Boston West Academy | AN95: 362 | AO95: 0 | AP95: 0 | AQ95: 7 | AR95: 0.01933701657 | AS95: 63 | AT95: 0.1740331492 | AU95: 73 | AV95: 0.2016574586 | AW95: 219 | AX95: 0.6049723757 | AY95: 0.9498704166 | AZ95: At risk of persistent absence
C96: Primary | D96: 9252116 | E96: Boston West Academy | F96: 412 | G96: 3 | H96: 0.007281553398 | I96: 19 | J96: 0.04611650485 | K96: 58 | L96: 0.140776699 | M96: 52 | N96: 0.1262135922 | O96: 280 | P96: 0.6796116505 | Q96: 0.9487572046 | R96: At risk of persistent absence | T96: Primary | U96: 9252120 | V96: Sir Francis Hill Community Primary School | W96: 509 | X96: 5 | Y96: 0.009823182711 | Z96: 28 | AA96: 0.05500982318 | AB96: 92 | AC96: 0.1807465619 | AD96: 100 | AE96: 0.1964636542 | AF96: 284 | AG96: 0.557956778 | AH96: 0.9339507933 | AI96: At risk of persistent absence | AJ96: 9252120 | AK96: Primary | AL96: 9252120 | AM96: Sir Francis Hill Community Primary School | AN96: 512 | AO96: 6 | AP96: 0.01171875 | AQ96: 31 | AR96: 0.060546875 | AS96: 80 | AT96: 0.15625 | AU96: 95 | AV96: 0.185546875 | AW96: 300 | AX96: 0.5859375 | AY96: 0.934322649 | AZ96: At risk of persistent absence
C97: Primary | D97: 9252120 | E97: Sir Francis Hill Community Primary School | F97: 540 | G97: 10 | H97: 0.01851851852 | I97: 22 | J97: 0.04074074074 | K97: 99 | L97: 0.1833333333 | M97: 82 | N97: 0.1518518519 | O97: 327 | P97: 0.6055555556 | Q97: 0.9329258109 | R97: At risk of persistent absence | T97: Primary | U97: 9252122 | V97: Bracebridge Infant and Nursery Sch | W97: 40 | X97: 1 | Y97: 0.025 | Z97: 0 | AA97: 0 | AB97: 6 | AC97: 0.15 | AD97: 8 | AE97: 0.2 | AF97: 25 | AG97: 0.625 | AH97: 0.9430379747 | AI97: At risk of persistent absence | AJ97: 9252122 | AK97: Primary | AL97: 9252122 | AM97: Bracebridge Infant and Nursery Sch | AN97: 44 | AO97: 1 | AP97: 0.02272727273 | AQ97: 1 | AR97: 0.02272727273 | AS97: 6 | AT97: 0.1363636364 | AU97: 8 | AV97: 0.1818181818 | AW97: 28 | AX97: 0.6363636364 | AY97: 0.9312473393 | AZ97: At risk of persistent absence
C98: Primary | D98: 9252122 | E98: Bracebridge Infant and Nursery Sch | F98: 56 | G98: 1 | H98: 0.01785714286 | I98: 2 | J98: 0.03571428571 | K98: 12 | L98: 0.2142857143 | M98: 10 | N98: 0.1785714286 | O98: 31 | P98: 0.5535714286 | Q98: 0.9343501326 | R98: At risk of persistent absence | T98: Primary | U98: 9252124 | V98: Lincoln Monks Abbey Primary School | W98: 443 | X98: 0 | Y98: 0 | Z98: 17 | AA98: 0.03837471783 | AB98: 54 | AC98: 0.1218961625 | AD98: 88 | AE98: 0.1986455982 | AF98: 284 | AG98: 0.6410835214 | AH98: 0.9494707856 | AI98: At risk of persistent absence | AJ98: 9252124 | AK98: Primary | AL98: 9252124 | AM98: Lincoln Monks Abbey Primary School | AN98: 443 | AO98: 3 | AP98: 0.006772009029 | AQ98: 22 | AR98: 0.04966139955 | AS98: 97 | AT98: 0.2189616253 | AU98: 76 | AV98: 0.1715575621 | AW98: 245 | AX98: 0.5530474041 | AY98: 0.9383325531 | AZ98: At risk of persistent absence
C99: Primary | D99: 9252124 | E99: Lincoln Monks Abbey Primary School | F99: 495 | G99: 1 | H99: 0.00202020202 | I99: 44 | J99: 0.08888888889 | K99: 100 | L99: 0.202020202 | M99: 62 | N99: 0.1252525253 | O99: 287 | P99: 0.5797979798 | Q99: 0.9305323194 | R99: At risk of persistent absence | T99: Primary | U99: 9252135 | V99: Woodlands Infant and Nursery School | W99: 75 | X99: 0 | Y99: 0 | Z99: 4 | AA99: 0.05333333333 | AB99: 15 | AC99: 0.2 | AD99: 16 | AE99: 0.2133333333 | AF99: 40 | AG99: 0.5333333333 | AH99: 0.9396059113 | AI99: At risk of persistent absence | AJ99: 9252135 | AK99: Primary | AL99: 9252135 | AM99: Woodlands Infant and Nursery School | AN99: 74 | AO99: 0 | AP99: 0 | AQ99: 1 | AR99: 0.01351351351 | AS99: 12 | AT99: 0.1621621622 | AU99: 16 | AV99: 0.2162162162 | AW99: 45 | AX99: 0.6081081081 | AY99: 0.9524697111 | AZ99: As expected
C100: Primary | D100: 9252135 | E100: Woodlands Infant and Nursery School | F100: 106 | G100: 0 | H100: 0 | I100: 10 | J100: 0.09433962264 | K100: 25 | L100: 0.2358490566 | M100: 19 | N100: 0.179245283 | O100: 52 | P100: 0.4905660377 | Q100: 0.9236547869 | R100: At risk of persistent absence | T100: Primary | U100: 9252136 | V100: Lincoln Manor Leas Junior Academy | W100: 278 | X100: 1 | Y100: 0.003597122302 | Z100: 11 | AA100: 0.03956834532 | AB100: 32 | AC100: 0.1151079137 | AD100: 44 | AE100: 0.1582733813 | AF100: 190 | AG100: 0.6834532374 | AH100: 0.9536600088 | AI100: As expected | AJ100: 9252136 | AK100: Primary | AL100: 9252136 | AM100: Lincoln Manor Leas Junior Academy | AN100: 281 | AO100: 0 | AP100: 0 | AQ100: 15 | AR100: 0.05338078292 | AS100: 32 | AT100: 0.1138790036 | AU100: 59 | AV100: 0.2099644128 | AW100: 175 | AX100: 0.6227758007 | AY100: 0.94567342 | AZ100: At risk of persistent absence
C101: Primary | D101: 9252136 | E101: Lincoln Manor Leas Junior Academy | F101: 279 | G101: 2 | H101: 0.007168458781 | I101: 13 | J101: 0.04659498208 | K101: 36 | L101: 0.1290322581 | M101: 37 | N101: 0.1326164875 | O101: 191 | P101: 0.6845878136 | Q101: 0.9518808986 | R101: As expected | T101: Primary | U101: 9252137 | V101: Lincoln, Manor Leas Infants | W101: 115 | X101: 1 | Y101: 0.008695652174 | Z101: 1 | AA101: 0.008695652174 | AB101: 15 | AC101: 0.1304347826 | AD101: 26 | AE101: 0.2260869565 | AF101: 72 | AG101: 0.6260869565 | AH101: 0.9508207485 | AI101: As expected | AJ101: 9252137 | AK101: Primary | AL101: 9252137 | AM101: Lincoln, Manor Leas Infants | AN101: 116 | AO101: 1 | AP101: 0.008620689655 | AQ101: 1 | AR101: 0.008620689655 | AS101: 11 | AT101: 0.09482758621 | AU101: 28 | AV101: 0.2413793103 | AW101: 75 | AX101: 0.6465517241 | AY101: 0.9532696327 | AZ101: As expected
C102: Primary | D102: 9252137 | E102: Lincoln, Manor Leas Infants | F102: 154 | G102: 2 | H102: 0.01298701299 | I102: 8 | J102: 0.05194805195 | K102: 22 | L102: 0.1428571429 | M102: 18 | N102: 0.1168831169 | O102: 104 | P102: 0.6753246753 | Q102: 0.9442686785 | R102: At risk of persistent absence | T102: Primary | U102: 9252142 | V102: Alford Primary School | W102: 288 | X102: 1 | Y102: 0.003472222222 | Z102: 15 | AA102: 0.05208333333 | AB102: 66 | AC102: 0.2291666667 | AD102: 49 | AE102: 0.1701388889 | AF102: 157 | AG102: 0.5451388889 | AH102: 0.9317874245 | AI102: At risk of persistent absence | AJ102: 9252142 | AK102: Primary | AL102: 9252142 | AM102: Alford Primary School | AN102: 288 | AO102: 1 | AP102: 0.003472222222 | AQ102: 15 | AR102: 0.05208333333 | AS102: 54 | AT102: 0.1875 | AU102: 64 | AV102: 0.2222222222 | AW102: 154 | AX102: 0.5347222222 | AY102: 0.9351420093 | AZ102: At risk of persistent absence
C103: Primary | D103: 9252142 | E103: Alford Primary School | F103: 343 | G103: 1 | H103: 0.002915451895 | I103: 25 | J103: 0.07288629738 | K103: 51 | L103: 0.1486880466 | M103: 34 | N103: 0.09912536443 | O103: 232 | P103: 0.6763848397 | Q103: 0.9437132913 | R103: At risk of persistent absence | T103: Primary | U103: 9252146 | V103: Bucknall Primary School | W103: 27 | X103: 1 | Y103: 0.03703703704 | Z103: 0 | AA103: 0 | AB103: 1 | AC103: 0.03703703704 | AD103: 6 | AE103: 0.2222222222 | AF103: 19 | AG103: 0.7037037037 | AH103: 0.9253157606 | AI103: At risk of persistent absence | AJ103: 9252146 | AK103: Primary | AL103: 9252146 | AM103: Bucknall Primary School | AN103: 31 | AO103: 2 | AP103: 0.06451612903 | AQ103: 2 | AR103: 0.06451612903 | AS103: 3 | AT103: 0.09677419355 | AU103: 5 | AV103: 0.1612903226 | AW103: 19 | AX103: 0.6129032258 | AY103: 0.8993476235 | AZ103: Persistent absence
C104: Primary | D104: 9252146 | E104: Bucknall Primary School | F104: 40 | G104: 2 | H104: 0.05 | I104: 0 | J104: 0 | K104: 8 | L104: 0.2 | M104: 4 | N104: 0.1 | O104: 26 | P104: 0.65 | Q104: 0.9164319249 | R104: At risk of persistent absence | T104: Primary | U104: 9252149 | V104: The Donington-on-Bain School | W104: 79 | X104: 0 | Y104: 0 | Z104: 1 | AA104: 0.01265822785 | AB104: 6 | AC104: 0.07594936709 | AD104: 22 | AE104: 0.2784810127 | AF104: 50 | AG104: 0.6329113924 | AH104: 0.9593773728 | AI104: As expected | AJ104: 9252149 | AK104: Primary | AL104: 9252149 | AM104: The Donington-on-Bain School | AN104: 79 | AO104: 0 | AP104: 0 | AQ104: 0 | AR104: 0 | AS104: 9 | AT104: 0.1139240506 | AU104: 13 | AV104: 0.164556962 | AW104: 57 | AX104: 0.7215189873 | AY104: 0.9677384077 | AZ104: As expected
C105: Primary | D105: 9252149 | E105: The Donington-on-Bain School | F105: 94 | G105: 1 | H105: 0.01063829787 | I105: 7 | J105: 0.07446808511 | K105: 9 | L105: 0.09574468085 | M105: 9 | N105: 0.09574468085 | O105: 68 | P105: 0.7234042553 | Q105: 0.9412923562 | R105: At risk of persistent absence | T105: Primary | U105: 9252151 | V105: Faldingworth Community Primary | W105: 62 | X105: 2 | Y105: 0.03225806452 | Z105: 6 | AA105: 0.09677419355 | AB105: 5 | AC105: 0.08064516129 | AD105: 12 | AE105: 0.1935483871 | AF105: 37 | AG105: 0.5967741935 | AH105: 0.9254032258 | AI105: At risk of persistent absence | AJ105: 9252151 | AK105: Primary | AL105: 9252151 | AM105: Faldingworth Community Primary | AN105: 64 | AO105: 2 | AP105: 0.03125 | AQ105: 2 | AR105: 0.03125 | AS105: 13 | AT105: 0.203125 | AU105: 19 | AV105: 0.296875 | AW105: 28 | AX105: 0.4375 | AY105: 0.9208913649 | AZ105: At risk of persistent absence
C106: Primary | D106: 9252151 | E106: Faldingworth Community Primary | F106: 73 | G106: 0 | H106: 0 | I106: 3 | J106: 0.04109589041 | K106: 9 | L106: 0.1232876712 | M106: 7 | N106: 0.09589041096 | O106: 54 | P106: 0.7397260274 | Q106: 0.9581430746 | R106: As expected | T106: Primary | U106: 9252152 | V106: Frithville Primary School | W106: 34 | X106: 0 | Y106: 0 | Z106: 0 | AA106: 0 | AB106: 10 | AC106: 0.2941176471 | AD106: 6 | AE106: 0.1764705882 | AF106: 18 | AG106: 0.5294117647 | AH106: 0.9332876399 | AI106: At risk of persistent absence | AJ106: 9252152 | AK106: Primary | AL106: 9252152 | AM106: Frithville Primary School | AN106: 34 | AO106: 0 | AP106: 0 | AQ106: 1 | AR106: 0.02941176471 | AS106: 9 | AT106: 0.2647058824 | AU106: 4 | AV106: 0.1176470588 | AW106: 20 | AX106: 0.5882352941 | AY106: 0.9414322251 | AZ106: At risk of persistent absence
C107: Primary | D107: 9252152 | E107: Frithville Primary School | F107: 38 | G107: 0 | H107: 0 | I107: 4 | J107: 0.1052631579 | K107: 5 | L107: 0.1315789474 | M107: 1 | N107: 0.02631578947 | O107: 28 | P107: 0.7368421053 | Q107: 0.9461633663 | R107: At risk of persistent absence | T107: Primary | U107: 9252153 | V107: Fulstow Community Primary School | W107: 35 | X107: 0 | Y107: 0 | Z107: 0 | AA107: 0 | AB107: 6 | AC107: 0.1714285714 | AD107: 12 | AE107: 0.3428571429 | AF107: 17 | AG107: 0.4857142857 | AH107: 0.9440471182 | AI107: At risk of persistent absence | AJ107: 9252153 | AK107: Primary | AL107: 9252153 | AM107: Fulstow Community Primary School | AN107: 35 | AO107: 1 | AP107: 0.02857142857 | AQ107: 2 | AR107: 0.05714285714 | AS107: 4 | AT107: 0.1142857143 | AU107: 9 | AV107: 0.2571428571 | AW107: 19 | AX107: 0.5428571429 | AY107: 0.9218516675 | AZ107: At risk of persistent absence
C108: Primary | D108: 9252153 | E108: Fulstow Community Primary School | F108: 35 | G108: 0 | H108: 0 | I108: 0 | J108: 0 | K108: 5 | L108: 0.1428571429 | M108: 3 | N108: 0.08571428571 | O108: 27 | P108: 0.7714285714 | Q108: 0.9751322751 | R108: As expected | T108: Primary | U108: 9252157 | V108: Gipsey Bridge Academy | W108: 87 | X108: 1 | Y108: 0.01149425287 | Z108: 3 | AA108: 0.03448275862 | AB108: 18 | AC108: 0.2068965517 | AD108: 19 | AE108: 0.2183908046 | AF108: 46 | AG108: 0.5287356322 | AH108: 0.932079684 | AI108: At risk of persistent absence | AJ108: 9252157 | AK108: Primary | AL108: 9252157 | AM108: Gipsey Bridge Academy | AN108: 86 | AO108: 0 | AP108: 0 | AQ108: 1 | AR108: 0.01162790698 | AS108: 13 | AT108: 0.1511627907 | AU108: 29 | AV108: 0.3372093023 | AW108: 43 | AX108: 0.5 | AY108: 0.9452761481 | AZ108: At risk of persistent absence
C109: Primary | D109: 9252157 | E109: Gipsey Bridge Academy | F109: 96 | G109: 0 | H109: 0 | I109: 4 | J109: 0.04166666667 | K109: 14 | L109: 0.1458333333 | M109: 17 | N109: 0.1770833333 | O109: 61 | P109: 0.6354166667 | Q109: 0.9567158385 | R109: As expected | T109: Primary | U109: 9252158 | V109: Grainthorpe School | W109: 42 | X109: 0 | Y109: 0 | Z109: 0 | AA109: 0 | AB109: 2 | AC109: 0.04761904762 | AD109: 10 | AE109: 0.2380952381 | AF109: 30 | AG109: 0.7142857143 | AH109: 0.9656637168 | AI109: As expected | AJ109: 9252158 | AK109: Primary | AL109: 9252158 | AM109: Grainthorpe School | AN109: 42 | AO109: 0 | AP109: 0 | AQ109: 0 | AR109: 0 | AS109: 4 | AT109: 0.09523809524 | AU109: 14 | AV109: 0.3333333333 | AW109: 24 | AX109: 0.5714285714 | AY109: 0.9573675497 | AZ109: As expected
C110: Primary | D110: 9252158 | E110: Grainthorpe School | F110: 43 | G110: 0 | H110: 0 | I110: 3 | J110: 0.06976744186 | K110: 4 | L110: 0.09302325581 | M110: 3 | N110: 0.06976744186 | O110: 33 | P110: 0.7674418605 | Q110: 0.9572687225 | R110: As expected | T110: Primary | U110: 9252159 | V110: Great Steeping Primary School | W110: 87 | X110: 0 | Y110: 0 | Z110: 1 | AA110: 0.01149425287 | AB110: 15 | AC110: 0.1724137931 | AD110: 15 | AE110: 0.1724137931 | AF110: 56 | AG110: 0.6436781609 | AH110: 0.9481127983 | AI110: At risk of persistent absence | AJ110: 9252159 | AK110: Primary | AL110: 9252159 | AM110: Great Steeping Primary School | AN110: 88 | AO110: 0 | AP110: 0 | AQ110: 5 | AR110: 0.05681818182 | AS110: 19 | AT110: 0.2159090909 | AU110: 24 | AV110: 0.2727272727 | AW110: 40 | AX110: 0.4545454545 | AY110: 0.9334789515 | AZ110: At risk of persistent absence
C111: Primary | D111: 9252159 | E111: Great Steeping Primary School | F111: 101 | G111: 2 | H111: 0.0198019802 | I111: 10 | J111: 0.09900990099 | K111: 12 | L111: 0.1188118812 | M111: 6 | N111: 0.05940594059 | O111: 71 | P111: 0.702970297 | Q111: 0.9431361287 | R111: At risk of persistent absence | T111: Primary | U111: 9252161 | V111: Hogsthorpe Community Primary Academy | W111: 55 | X111: 0 | Y111: 0 | Z111: 8 | AA111: 0.1454545455 | AB111: 16 | AC111: 0.2909090909 | AD111: 5 | AE111: 0.09090909091 | AF111: 26 | AG111: 0.4727272727 | AH111: 0.9109882516 | AI111: At risk of persistent absence | AJ111: 9252161 | AK111: Primary | AL111: 9252161 | AM111: Hogsthorpe Community Primary Academy | AN111: 54 | AO111: 0 | AP111: 0 | AQ111: 1 | AR111: 0.01851851852 | AS111: 8 | AT111: 0.1481481481 | AU111: 9 | AV111: 0.1666666667 | AW111: 36 | AX111: 0.6666666667 | AY111: 0.9530426449 | AZ111: As expected
C112: Primary | D112: 9252161 | E112: Hogsthorpe Community Primary Academy | F112: 59 | G112: 2 | H112: 0.03389830508 | I112: 8 | J112: 0.1355932203 | K112: 10 | L112: 0.1694915254 | M112: 4 | N112: 0.06779661017 | O112: 35 | P112: 0.593220339 | Q112: 0.917529006 | R112: At risk of persistent absence | T112: Primary | U112: 9252162 | V112: HOLTON LE CLAY INFANTS SCHOOL | W112: 63 | X112: 0 | Y112: 0 | Z112: 2 | AA112: 0.03174603175 | AB112: 14 | AC112: 0.2222222222 | AD112: 16 | AE112: 0.253968254 | AF112: 31 | AG112: 0.4920634921 | AH112: 0.9335131332 | AI112: At risk of persistent absence | AJ112: 9252162 | AK112: Primary | AL112: 9252162 | AM112: HOLTON LE CLAY INFANTS SCHOOL | AN112: 66 | AO112: 0 | AP112: 0 | AQ112: 3 | AR112: 0.04545454545 | AS112: 5 | AT112: 0.07575757576 | AU112: 16 | AV112: 0.2424242424 | AW112: 42 | AX112: 0.6363636364 | AY112: 0.9530090684 | AZ112: As expected
C113: Primary | D113: 9252162 | E113: HOLTON LE CLAY INFANTS SCHOOL | F113: 87 | G113: 0 | H113: 0 | I113: 8 | J113: 0.09195402299 | K113: 17 | L113: 0.1954022989 | M113: 10 | N113: 0.1149425287 | O113: 52 | P113: 0.5977011494 | Q113: 0.9357173265 | R113: At risk of persistent absence | T113: Primary | U113: 9252166 | V113: Ingham Primary School | W113: 72 | X113: 0 | Y113: 0 | Z113: 0 | AA113: 0 | AB113: 7 | AC113: 0.09722222222 | AD113: 9 | AE113: 0.125 | AF113: 56 | AG113: 0.7777777778 | AH113: 0.9691948162 | AI113: As expected | AJ113: 9252166 | AK113: Primary | AL113: 9252166 | AM113: Ingham Primary School | AN113: 73 | AO113: 0 | AP113: 0 | AQ113: 1 | AR113: 0.01369863014 | AS113: 1 | AT113: 0.01369863014 | AU113: 13 | AV113: 0.1780821918 | AW113: 58 | AX113: 0.7945205479 | AY113: 0.9748322148 | AZ113: As expected
C114: Primary | D114: 9252166 | E114: Ingham Primary School | F114: 88 | G114: 0 | H114: 0 | I114: 2 | J114: 0.02272727273 | K114: 7 | L114: 0.07954545455 | M114: 8 | N114: 0.09090909091 | O114: 71 | P114: 0.8068181818 | Q114: 0.9688552189 | R114: As expected | T114: Primary | U114: 9252168 | V114: Keelby Primary Academy | W114: 156 | X114: 0 | Y114: 0 | Z114: 2 | AA114: 0.01282051282 | AB114: 30 | AC114: 0.1923076923 | AD114: 26 | AE114: 0.1666666667 | AF114: 98 | AG114: 0.6282051282 | AH114: 0.9506535948 | AI114: As expected | AJ114: 9252168 | AK114: Primary | AL114: 9252168 | AM114: Keelby Primary Academy | AN114: 157 | AO114: 0 | AP114: 0 | AQ114: 1 | AR114: 0.006369426752 | AS114: 20 | AT114: 0.127388535 | AU114: 28 | AV114: 0.178343949 | AW114: 108 | AX114: 0.6878980892 | AY114: 0.9602827331 | AZ114: As expected
C115: Primary | D115: 9252168 | E115: Keelby Primary Academy | F115: 177 | G115: 0 | H115: 0 | I115: 6 | J115: 0.03389830508 | K115: 20 | L115: 0.1129943503 | M115: 9 | N115: 0.05084745763 | O115: 142 | P115: 0.802259887 | Q115: 0.9638719191 | R115: As expected | T115: Primary | U115: 9252169 | V115: Benjamin Murray | W115: 41 | X115: 1 | Y115: 0.0243902439 | Z115: 3 | AA115: 0.07317073171 | AB115: 13 | AC115: 0.3170731707 | AD115: 5 | AE115: 0.1219512195 | AF115: 19 | AG115: 0.4634146341 | AH115: 0.9142388929 | AI115: At risk of persistent absence | AJ115: 9252169 | AK115: Primary | AL115: 9252169 | AM115: Benjamin Murray | AN115: 42 | AO115: 0 | AP115: 0 | AQ115: 3 | AR115: 0.07142857143 | AS115: 10 | AT115: 0.2380952381 | AU115: 10 | AV115: 0.2380952381 | AW115: 19 | AX115: 0.4523809524 | AY115: 0.9188632619 | AZ115: At risk of persistent absence
C116: Primary | D116: 9252169 | E116: Legsby Primary School | F116: 49 | G116: 0 | H116: 0 | I116: 8 | J116: 0.1632653061 | K116: 15 | L116: 0.306122449 | M116: 5 | N116: 0.1020408163 | O116: 21 | P116: 0.4285714286 | Q116: 0.8991660349 | R116: Persistent absence | T116: Primary | U116: 9252170 | V116: Eastfield Infants and Nursery Academy | W116: 164 | X116: 2 | Y116: 0.01219512195 | Z116: 17 | AA116: 0.1036585366 | AB116: 45 | AC116: 0.2743902439 | AD116: 29 | AE116: 0.1768292683 | AF116: 71 | AG116: 0.4329268293 | AH116: 0.9073013428 | AI116: Persistent absence | AJ116: 9252170 | AK116: Primary | AL116: 9252170 | AM116: Eastfield Infants and Nursery Academy | AN116: 162 | AO116: 5 | AP116: 0.03086419753 | AQ116: 16 | AR116: 0.0987654321 | AS116: 47 | AT116: 0.2901234568 | AU116: 24 | AV116: 0.1481481481 | AW116: 70 | AX116: 0.4320987654 | AY116: 0.904853165 | AZ116: Persistent absence
C117: Primary | D117: 9252170 | E117: Eastfield Infants and Nursery Academy | F117: 235 | G117: 2 | H117: 0.008510638298 | I117: 37 | J117: 0.1574468085 | K117: 67 | L117: 0.285106383 | M117: 38 | N117: 0.1617021277 | O117: 91 | P117: 0.3872340426 | Q117: 0.8890343447 | R117: Persistent absence | T117: Primary | U117: 9252171 | V117: Louth Kidgate Primary Academy | W117: 363 | X117: 1 | Y117: 0.002754820937 | Z117: 14 | AA117: 0.03856749311 | AB117: 65 | AC117: 0.1790633609 | AD117: 63 | AE117: 0.173553719 | AF117: 220 | AG117: 0.6060606061 | AH117: 0.9417057407 | AI117: At risk of persistent absence | AJ117: 9252171 | AK117: Primary | AL117: 9252171 | AM117: Louth Kidgate Primary Academy | AN117: 361 | AO117: 2 | AP117: 0.005540166205 | AQ117: 13 | AR117: 0.03601108033 | AS117: 51 | AT117: 0.1412742382 | AU117: 74 | AV117: 0.2049861496 | AW117: 221 | AX117: 0.6121883657 | AY117: 0.9480423834 | AZ117: At risk of persistent absence
C118: Primary | D118: 9252171 | E118: Louth Kidgate Primary Academy | F118: 421 | G118: 6 | H118: 0.01425178147 | I118: 14 | J118: 0.03325415677 | K118: 75 | L118: 0.1781472684 | M118: 60 | N118: 0.1425178147 | O118: 266 | P118: 0.6318289786 | Q118: 0.939608845 | R118: At risk of persistent absence | T118: Primary | U118: 9252174 | V118: Marshchapel Primary School | W118: 22 | X118: 0 | Y118: 0 | Z118: 1 | AA118: 0.04545454545 | AB118: 6 | AC118: 0.2727272727 | AD118: 3 | AE118: 0.1363636364 | AF118: 12 | AG118: 0.5454545455 | AH118: 0.9393431635 | AI118: At risk of persistent absence | AJ118: 9252174 | AK118: Primary | AL118: 9252174 | AM118: Marshchapel Primary School | AN118: 22 | AO118: 0 | AP118: 0 | AQ118: 1 | AR118: 0.04545454545 | AS118: 9 | AT118: 0.4090909091 | AU118: 4 | AV118: 0.1818181818 | AW118: 8 | AX118: 0.3636363636 | AY118: 0.9102664577 | AZ118: At risk of persistent absence
C119: Primary | D119: 9252174 | E119: Marshchapel Primary School | F119: 29 | G119: 0 | H119: 0 | I119: 3 | J119: 0.1034482759 | K119: 3 | L119: 0.1034482759 | M119: 4 | N119: 0.1379310345 | O119: 19 | P119: 0.6551724138 | Q119: 0.9369310793 | R119: At risk of persistent absence | T119: Primary | U119: 9252175 | V119: The Marton Academy | W119: 67 | X119: 0 | Y119: 0 | Z119: 0 | AA119: 0 | AB119: 4 | AC119: 0.05970149254 | AD119: 17 | AE119: 0.2537313433 | AF119: 46 | AG119: 0.6865671642 | AH119: 0.9667479495 | AI119: As expected | AJ119: 9252175 | AK119: Primary | AL119: 9252175 | AM119: The Marton Academy | AN119: 71 | AO119: 0 | AP119: 0 | AQ119: 1 | AR119: 0.01408450704 | AS119: 5 | AT119: 0.07042253521 | AU119: 14 | AV119: 0.1971830986 | AW119: 51 | AX119: 0.7183098592 | AY119: 0.9664480323 | AZ119: As expected
C120: Primary | D120: 9252175 | E120: The Marton Academy | F120: 69 | G120: 0 | H120: 0 | I120: 6 | J120: 0.08695652174 | K120: 6 | L120: 0.08695652174 | M120: 4 | N120: 0.05797101449 | O120: 53 | P120: 0.768115942 | Q120: 0.9543163201 | R120: As expected | T120: Primary | U120: 9252176 | V120: Middle Rasen Primary School | W120: 114 | X120: 0 | Y120: 0 | Z120: 9 | AA120: 0.07894736842 | AB120: 19 | AC120: 0.1666666667 | AD120: 20 | AE120: 0.1754385965 | AF120: 66 | AG120: 0.5789473684 | AH120: 0.9358136525 | AI120: At risk of persistent absence | AJ120: 9252176 | AK120: Primary | AL120: 9252176 | AM120: Middle Rasen Primary School | AN120: 114 | AO120: 1 | AP120: 0.008771929825 | AQ120: 5 | AR120: 0.04385964912 | AS120: 13 | AT120: 0.1140350877 | AU120: 29 | AV120: 0.2543859649 | AW120: 66 | AX120: 0.5789473684 | AY120: 0.9390835988 | AZ120: At risk of persistent absence
C121: Primary | D121: 9252176 | E121: Middle Rasen Primary School | F121: 126 | G121: 3 | H121: 0.02380952381 | I121: 6 | J121: 0.04761904762 | K121: 20 | L121: 0.1587301587 | M121: 15 | N121: 0.119047619 | O121: 82 | P121: 0.6507936508 | Q121: 0.9310699588 | R121: At risk of persistent absence | T121: Primary | U121: 9252177 | V121: Morton Trentside Primary School | W121: 175 | X121: 0 | Y121: 0 | Z121: 5 | AA121: 0.02857142857 | AB121: 30 | AC121: 0.1714285714 | AD121: 49 | AE121: 0.28 | AF121: 91 | AG121: 0.52 | AH121: 0.9407613345 | AI121: At risk of persistent absence | AJ121: 9252177 | AK121: Primary | AL121: 9252177 | AM121: Morton Trentside Primary School | AN121: 171 | AO121: 1 | AP121: 0.005847953216 | AQ121: 6 | AR121: 0.0350877193 | AS121: 19 | AT121: 0.1111111111 | AU121: 42 | AV121: 0.2456140351 | AW121: 103 | AX121: 0.6023391813 | AY121: 0.9480353584 | AZ121: At risk of persistent absence
C122: Primary | D122: 9252177 | E122: Morton Trentside Primary School | F122: 202 | G122: 3 | H122: 0.01485148515 | I122: 13 | J122: 0.06435643564 | K122: 36 | L122: 0.1782178218 | M122: 25 | N122: 0.1237623762 | O122: 125 | P122: 0.6188118812 | Q122: 0.9357899585 | R122: At risk of persistent absence | T122: Primary | U122: 9252178 | V122: Nettleton Community Primary School | W122: 68 | X122: 0 | Y122: 0 | Z122: 5 | AA122: 0.07352941176 | AB122: 7 | AC122: 0.1029411765 | AD122: 12 | AE122: 0.1764705882 | AF122: 44 | AG122: 0.6470588235 | AH122: 0.9474838285 | AI122: At risk of persistent absence | AJ122: 9252178 | AK122: Primary | AL122: 9252178 | AM122: Nettleton Community Primary School | AN122: 69 | AO122: 1 | AP122: 0.01449275362 | AQ122: 4 | AR122: 0.05797101449 | AS122: 9 | AT122: 0.1304347826 | AU122: 19 | AV122: 0.2753623188 | AW122: 36 | AX122: 0.5217391304 | AY122: 0.9342105263 | AZ122: At risk of persistent absence
C123: Primary | D123: 9252178 | E123: Nettleton Community Primary School | F123: 77 | G123: 0 | H123: 0 | I123: 3 | J123: 0.03896103896 | K123: 10 | L123: 0.1298701299 | M123: 7 | N123: 0.09090909091 | O123: 57 | P123: 0.7402597403 | Q123: 0.9547641963 | R123: As expected | T123: Primary | U123: 9252179 | V123: New Leake Primary School | W123: 32 | X123: 0 | Y123: 0 | Z123: 1 | AA123: 0.03125 | AB123: 4 | AC123: 0.125 | AD123: 5 | AE123: 0.15625 | AF123: 22 | AG123: 0.6875 | AH123: 0.9586581621 | AI123: As expected | AJ123: 9252179 | AK123: Primary | AL123: 9252179 | AM123: New Leake Primary School | AN123: 32 | AO123: 0 | AP123: 0 | AQ123: 1 | AR123: 0.03125 | AS123: 5 | AT123: 0.15625 | AU123: 8 | AV123: 0.25 | AW123: 18 | AX123: 0.5625 | AY123: 0.9452574526 | AZ123: At risk of persistent absence
C124: Primary | D124: 9252179 | E124: New Leake Primary School | F124: 47 | G124: 0 | H124: 0 | I124: 1 | J124: 0.02127659574 | K124: 4 | L124: 0.08510638298 | M124: 11 | N124: 0.2340425532 | O124: 31 | P124: 0.6595744681 | Q124: 0.9642570281 | R124: As expected | T124: Primary | U124: 9252180 | V124: New York Primary School | W124: 37 | X124: 0 | Y124: 0 | Z124: 2 | AA124: 0.05405405405 | AB124: 4 | AC124: 0.1081081081 | AD124: 12 | AE124: 0.3243243243 | AF124: 19 | AG124: 0.5135135135 | AH124: 0.9387057878 | AI124: At risk of persistent absence | AJ124: 9252180 | AK124: Primary | AL124: 9252180 | AM124: New York Primary School | AN124: 39 | AO124: 0 | AP124: 0 | AQ124: 1 | AR124: 0.02564102564 | AS124: 9 | AT124: 0.2307692308 | AU124: 5 | AV124: 0.1282051282 | AW124: 24 | AX124: 0.6153846154 | AY124: 0.9433461909 | AZ124: At risk of persistent absence
C125: Primary | D125: 9252180 | E125: New York Primary School | F125: 46 | G125: 0 | H125: 0 | I125: 2 | J125: 0.04347826087 | K125: 14 | L125: 0.3043478261 | M125: 3 | N125: 0.0652173913 | O125: 27 | P125: 0.5869565217 | Q125: 0.9380032206 | R125: At risk of persistent absence | T125: Primary | U125: 9252181 | V125: Normanby-by-Spital Primary School | W125: 45 | X125: 0 | Y125: 0 | Z125: 1 | AA125: 0.02222222222 | AB125: 11 | AC125: 0.2444444444 | AD125: 12 | AE125: 0.2666666667 | AF125: 21 | AG125: 0.4666666667 | AH125: 0.9407519302 | AI125: At risk of persistent absence | AJ125: 9252181 | AK125: Primary | AL125: 9252181 | AM125: Normanby-by-Spital Primary School | AN125: 46 | AO125: 0 | AP125: 0 | AQ125: 0 | AR125: 0 | AS125: 10 | AT125: 0.2173913043 | AU125: 9 | AV125: 0.1956521739 | AW125: 27 | AX125: 0.5869565217 | AY125: 0.9490811639 | AZ125: At risk of persistent absence
C126: Primary | D126: 9252181 | E126: Normanby-by-Spital Primary School | F126: 53 | G126: 0 | H126: 0 | I126: 6 | J126: 0.1132075472 | K126: 9 | L126: 0.1698113208 | M126: 6 | N126: 0.1132075472 | O126: 32 | P126: 0.6037735849 | Q126: 0.92732355 | R126: At risk of persistent absence | T126: Primary | U126: 9252182 | V126: Kelsey Primary School | W126: 92 | X126: 0 | Y126: 0 | Z126: 0 | AA126: 0 | AB126: 3 | AC126: 0.03260869565 | AD126: 17 | AE126: 0.1847826087 | AF126: 72 | AG126: 0.7826086957 | AH126: 0.9693221972 | AI126: As expected | AJ126: 9252182 | AK126: Primary | AL126: 9252182 | AM126: Kelsey Primary School | AN126: 93 | AO126: 0 | AP126: 0 | AQ126: 1 | AR126: 0.01075268817 | AS126: 9 | AT126: 0.09677419355 | AU126: 18 | AV126: 0.1935483871 | AW126: 65 | AX126: 0.6989247312 | AY126: 0.9636736215 | AZ126: As expected
C127: Primary | D127: 9252182 | E127: Kelsey Primary School | F127: 103 | G127: 0 | H127: 0 | I127: 1 | J127: 0.009708737864 | K127: 11 | L127: 0.1067961165 | M127: 14 | N127: 0.1359223301 | O127: 77 | P127: 0.7475728155 | Q127: 0.9713248639 | R127: As expected | T127: Primary | U127: 9252183 | V127: North Thoresby Primary Academy | W127: 85 | X127: 0 | Y127: 0 | Z127: 7 | AA127: 0.08235294118 | AB127: 17 | AC127: 0.2 | AD127: 18 | AE127: 0.2117647059 | AF127: 43 | AG127: 0.5058823529 | AH127: 0.9266169154 | AI127: At risk of persistent absence | AJ127: 9252183 | AK127: Primary | AL127: 9252183 | AM127: North Thoresby Primary Academy | AN127: 84 | AO127: 0 | AP127: 0 | AQ127: 3 | AR127: 0.03571428571 | AS127: 19 | AT127: 0.2261904762 | AU127: 17 | AV127: 0.2023809524 | AW127: 45 | AX127: 0.5357142857 | AY127: 0.9392112791 | AZ127: At risk of persistent absence
C128: Primary | D128: 9252183 | E128: North Thoresby Primary Academy | F128: 95 | G128: 0 | H128: 0 | I128: 2 | J128: 0.02105263158 | K128: 13 | L128: 0.1368421053 | M128: 11 | N128: 0.1157894737 | O128: 69 | P128: 0.7263157895 | Q128: 0.9596678529 | R128: As expected | T128: Primary | U128: 9252185 | V128: Osgodby Primary School | W128: 70 | X128: 0 | Y128: 0 | Z128: 0 | AA128: 0 | AB128: 9 | AC128: 0.1285714286 | AD128: 10 | AE128: 0.1428571429 | AF128: 51 | AG128: 0.7285714286 | AH128: 0.963230537 | AI128: As expected | AJ128: 9252185 | AK128: Primary | AL128: 9252185 | AM128: Osgodby Primary School | AN128: 74 | AO128: 0 | AP128: 0 | AQ128: 0 | AR128: 0 | AS128: 11 | AT128: 0.1486486486 | AU128: 15 | AV128: 0.2027027027 | AW128: 48 | AX128: 0.6486486486 | AY128: 0.9591932458 | AZ128: As expected
C129: Primary | D129: 9252185 | E129: Osgodby Primary School | F129: 81 | G129: 0 | H129: 0 | I129: 1 | J129: 0.01234567901 | K129: 8 | L129: 0.0987654321 | M129: 11 | N129: 0.1358024691 | O129: 61 | P129: 0.7530864198 | Q129: 0.9677787934 | R129: As expected | T129: Primary | U129: 9252187 | V129: Scampton Pollyplatt Primary School | W129: 90 | X129: 0 | Y129: 0 | Z129: 3 | AA129: 0.03333333333 | AB129: 7 | AC129: 0.07777777778 | AD129: 15 | AE129: 0.1666666667 | AF129: 65 | AG129: 0.7222222222 | AH129: 0.9596645702 | AI129: As expected | AJ129: 9252187 | AK129: Primary | AL129: 9252187 | AM129: Scampton Pollyplatt Primary School | AN129: 90 | AO129: 0 | AP129: 0 | AQ129: 0 | AR129: 0 | AS129: 8 | AT129: 0.08888888889 | AU129: 17 | AV129: 0.1888888889 | AW129: 65 | AX129: 0.7222222222 | AY129: 0.9667322835 | AZ129: As expected
C130: Primary | D130: 9252187 | E130: Scampton Pollyplatt Primary School | F130: 99 | G130: 0 | H130: 0 | I130: 1 | J130: 0.0101010101 | K130: 11 | L130: 0.1111111111 | M130: 11 | N130: 0.1111111111 | O130: 76 | P130: 0.7676767677 | Q130: 0.9699586932 | R130: As expected | T130: Primary | U130: 9252188 | V130: Scotter Primary School | W130: 253 | X130: 1 | Y130: 0.00395256917 | Z130: 8 | AA130: 0.03162055336 | AB130: 45 | AC130: 0.1778656126 | AD130: 49 | AE130: 0.1936758893 | AF130: 150 | AG130: 0.5928853755 | AH130: 0.938357369 | AI130: At risk of persistent absence | AJ130: 9252188 | AK130: Primary | AL130: 9252188 | AM130: Scotter Primary School | AN130: 252 | AO130: 3 | AP130: 0.0119047619 | AQ130: 3 | AR130: 0.0119047619 | AS130: 14 | AT130: 0.05555555556 | AU130: 51 | AV130: 0.2023809524 | AW130: 181 | AX130: 0.7182539683 | AY130: 0.954947818 | AZ130: As expected
C131: Primary | D131: 9252188 | E131: Scotter Primary School | F131: 288 | G131: 2 | H131: 0.006944444444 | I131: 19 | J131: 0.06597222222 | K131: 35 | L131: 0.1215277778 | M131: 29 | N131: 0.1006944444 | O131: 203 | P131: 0.7048611111 | Q131: 0.9471005155 | R131: At risk of persistent absence | T131: Primary | U131: 9252190 | V131: Skegness Infant Academy | W131: 183 | X131: 1 | Y131: 0.005464480874 | Z131: 22 | AA131: 0.1202185792 | AB131: 66 | AC131: 0.3606557377 | AD131: 27 | AE131: 0.1475409836 | AF131: 67 | AG131: 0.3661202186 | AH131: 0.9021415824 | AI131: Persistent absence | AJ131: 9252190 | AK131: Primary | AL131: 9252190 | AM131: Skegness Infant Academy | AN131: 180 | AO131: 0 | AP131: 0 | AQ131: 13 | AR131: 0.07222222222 | AS131: 35 | AT131: 0.1944444444 | AU131: 32 | AV131: 0.1777777778 | AW131: 100 | AX131: 0.5555555556 | AY131: 0.9372756471 | AZ131: At risk of persistent absence
C132: Primary | D132: 9252190 | E132: Skegness Infant Academy | F132: 248 | G132: 3 | H132: 0.01209677419 | I132: 24 | J132: 0.09677419355 | K132: 63 | L132: 0.2540322581 | M132: 42 | N132: 0.1693548387 | O132: 116 | P132: 0.4677419355 | Q132: 0.9127890173 | R132: At risk of persistent absence | T132: Primary | U132: 9252191 | V132: Seathorne Primary Academy | W132: 205 | X132: 1 | Y132: 0.00487804878 | Z132: 11 | AA132: 0.05365853659 | AB132: 49 | AC132: 0.2390243902 | AD132: 34 | AE132: 0.1658536585 | AF132: 110 | AG132: 0.5365853659 | AH132: 0.9286726852 | AI132: At risk of persistent absence | AJ132: 9252191 | AK132: Primary | AL132: 9252191 | AM132: Seathorne Primary Academy | AN132: 205 | AO132: 3 | AP132: 0.01463414634 | AQ132: 6 | AR132: 0.02926829268 | AS132: 35 | AT132: 0.1707317073 | AU132: 48 | AV132: 0.2341463415 | AW132: 113 | AX132: 0.5512195122 | AY132: 0.9391281467 | AZ132: At risk of persistent absence
C133: Primary | D133: 9252191 | E133: Seathorne Primary Academy | F133: 266 | G133: 2 | H133: 0.007518796992 | I133: 15 | J133: 0.05639097744 | K133: 46 | L133: 0.1729323308 | M133: 44 | N133: 0.1654135338 | O133: 159 | P133: 0.5977443609 | Q133: 0.9389436715 | R133: At risk of persistent absence | T133: Primary | U133: 9252193 | V133: Spilsby Primary Academy | W133: 195 | X133: 1 | Y133: 0.005128205128 | Z133: 9 | AA133: 0.04615384615 | AB133: 38 | AC133: 0.1948717949 | AD133: 51 | AE133: 0.2615384615 | AF133: 96 | AG133: 0.4923076923 | AH133: 0.9325260833 | AI133: At risk of persistent absence | AJ133: 9252193 | AK133: Primary | AL133: 9252193 | AM133: Spilsby Primary Academy | AN133: 199 | AO133: 2 | AP133: 0.01005025126 | AQ133: 13 | AR133: 0.06532663317 | AS133: 62 | AT133: 0.3115577889 | AU133: 38 | AV133: 0.1909547739 | AW133: 84 | AX133: 0.4221105528 | AY133: 0.9168814433 | AZ133: At risk of persistent absence
C134: Primary | D134: 9252193 | E134: Spilsby Primary Academy | F134: 229 | G134: 2 | H134: 0.008733624454 | I134: 20 | J134: 0.08733624454 | K134: 44 | L134: 0.192139738 | M134: 23 | N134: 0.1004366812 | O134: 139 | P134: 0.6069868996 | Q134: 0.9312921303 | R134: At risk of persistent absence | T134: Primary | U134: 9252195 | V134: STURTON BY STOW PRIMARY SCHOOL | W134: 154 | X134: 0 | Y134: 0 | Z134: 6 | AA134: 0.03896103896 | AB134: 28 | AC134: 0.1818181818 | AD134: 44 | AE134: 0.2857142857 | AF134: 76 | AG134: 0.4935064935 | AH134: 0.9395017794 | AI134: At risk of persistent absence | AJ134: 9252195 | AK134: Primary | AL134: 9252195 | AM134: STURTON BY STOW PRIMARY SCHOOL | AN134: 154 | AO134: 0 | AP134: 0 | AQ134: 3 | AR134: 0.01948051948 | AS134: 26 | AT134: 0.1688311688 | AU134: 31 | AV134: 0.2012987013 | AW134: 94 | AX134: 0.6103896104 | AY134: 0.9512567935 | AZ134: As expected
C135: Primary | D135: 9252195 | E135: STURTON BY STOW PRIMARY SCHOOL | F135: 175 | G135: 0 | H135: 0 | I135: 11 | J135: 0.06285714286 | K135: 15 | L135: 0.08571428571 | M135: 12 | N135: 0.06857142857 | O135: 137 | P135: 0.7828571429 | Q135: 0.9631008082 | R135: As expected | T135: Primary | U135: 9252196 | V135: Sutton-on-Sea CP School | W135: 146 | X135: 0 | Y135: 0 | Z135: 5 | AA135: 0.03424657534 | AB135: 33 | AC135: 0.2260273973 | AD135: 36 | AE135: 0.2465753425 | AF135: 72 | AG135: 0.4931506849 | AH135: 0.9345837145 | AI135: At risk of persistent absence | AJ135: 9252196 | AK135: Primary | AL135: 9252196 | AM135: Sutton-on-Sea CP School | AN135: 147 | AO135: 2 | AP135: 0.01360544218 | AQ135: 8 | AR135: 0.05442176871 | AS135: 30 | AT135: 0.2040816327 | AU135: 31 | AV135: 0.2108843537 | AW135: 76 | AX135: 0.5170068027 | AY135: 0.9335337769 | AZ135: At risk of persistent absence
C136: Primary | D136: 9252196 | E136: Sutton-on-Sea CP School | F136: 172 | G136: 1 | H136: 0.005813953488 | I136: 7 | J136: 0.04069767442 | K136: 37 | L136: 0.2151162791 | M136: 18 | N136: 0.1046511628 | O136: 109 | P136: 0.6337209302 | Q136: 0.9404218308 | R136: At risk of persistent absence | T136: Primary | U136: 9252197 | V136: Tealby School | W136: 66 | X136: 1 | Y136: 0.01515151515 | Z136: 2 | AA136: 0.0303030303 | AB136: 12 | AC136: 0.1818181818 | AD136: 18 | AE136: 0.2727272727 | AF136: 33 | AG136: 0.5 | AH136: 0.9330377975 | AI136: At risk of persistent absence | AJ136: 9252197 | AK136: Primary | AL136: 9252197 | AM136: Tealby School | AN136: 68 | AO136: 0 | AP136: 0 | AQ136: 3 | AR136: 0.04411764706 | AS136: 13 | AT136: 0.1911764706 | AU136: 17 | AV136: 0.25 | AW136: 35 | AX136: 0.5147058824 | AY136: 0.9353363815 | AZ136: At risk of persistent absence
C137: Primary | D137: 9252197 | E137: Tealby School | F137: 76 | G137: 0 | H137: 0 | I137: 6 | J137: 0.07894736842 | K137: 7 | L137: 0.09210526316 | M137: 13 | N137: 0.1710526316 | O137: 50 | P137: 0.6578947368 | Q137: 0.9455882353 | R137: At risk of persistent absence | T137: Primary | U137: 9252198 | V137: Edward Richardson Primary School | W137: 95 | X137: 0 | Y137: 0 | Z137: 0 | AA137: 0 | AB137: 3 | AC137: 0.03157894737 | AD137: 18 | AE137: 0.1894736842 | AF137: 74 | AG137: 0.7789473684 | AH137: 0.9689426268 | AI137: As expected | AJ137: 9252198 | AK137: Primary | AL137: 9252198 | AM137: Edward Richardson Primary School | AN137: 95 | AO137: 0 | AP137: 0 | AQ137: 2 | AR137: 0.02105263158 | AS137: 13 | AT137: 0.1368421053 | AU137: 19 | AV137: 0.2 | AW137: 61 | AX137: 0.6421052632 | AY137: 0.9557239365 | AZ137: As expected
C138: Primary | D138: 9252198 | E138: Edward Richardson Primary School | F138: 97 | G138: 0 | H138: 0 | I138: 5 | J138: 0.05154639175 | K138: 10 | L138: 0.1030927835 | M138: 13 | N138: 0.1340206186 | O138: 69 | P138: 0.7113402062 | Q138: 0.9531727829 | R138: As expected | T138: Primary | U138: 9252199 | V138: Tetney Primary School | W138: 95 | X138: 1 | Y138: 0.01052631579 | Z138: 1 | AA138: 0.01052631579 | AB138: 12 | AC138: 0.1263157895 | AD138: 18 | AE138: 0.1894736842 | AF138: 63 | AG138: 0.6631578947 | AH138: 0.9451476793 | AI138: At risk of persistent absence | AJ138: 9252199 | AK138: Primary | AL138: 9252199 | AM138: Tetney Primary School | AN138: 98 | AO138: 1 | AP138: 0.01020408163 | AQ138: 2 | AR138: 0.02040816327 | AS138: 17 | AT138: 0.1734693878 | AU138: 11 | AV138: 0.112244898 | AW138: 67 | AX138: 0.6836734694 | AY138: 0.9426006529 | AZ138: At risk of persistent absence
C139: Primary | D139: 9252199 | E139: Tetney Primary School | F139: 101 | G139: 0 | H139: 0 | I139: 10 | J139: 0.09900990099 | K139: 21 | L139: 0.2079207921 | M139: 13 | N139: 0.1287128713 | O139: 57 | P139: 0.5643564356 | Q139: 0.9295929593 | R139: At risk of persistent absence | T139: Primary | U139: 9252201 | V139: Toynton All Saints Primary School | W139: 130 | X139: 0 | Y139: 0 | Z139: 1 | AA139: 0.007692307692 | AB139: 23 | AC139: 0.1769230769 | AD139: 30 | AE139: 0.2307692308 | AF139: 76 | AG139: 0.5846153846 | AH139: 0.9480526919 | AI139: At risk of persistent absence | AJ139: 9252201 | AK139: Primary | AL139: 9252201 | AM139: Toynton All Saints Primary School | AN139: 127 | AO139: 0 | AP139: 0 | AQ139: 1 | AR139: 0.007874015748 | AS139: 15 | AT139: 0.1181102362 | AU139: 34 | AV139: 0.2677165354 | AW139: 77 | AX139: 0.6062992126 | AY139: 0.9571192963 | AZ139: As expected
C140: Primary | D140: 9252201 | E140: Toynton All Saints Primary School | F140: 147 | G140: 0 | H140: 0 | I140: 4 | J140: 0.02721088435 | K140: 18 | L140: 0.1224489796 | M140: 14 | N140: 0.09523809524 | O140: 111 | P140: 0.7551020408 | Q140: 0.9592480444 | R140: As expected | T140: Primary | U140: 9252202 | V140: Utterby Primary Academy | W140: 57 | X140: 0 | Y140: 0 | Z140: 3 | AA140: 0.05263157895 | AB140: 11 | AC140: 0.1929824561 | AD140: 14 | AE140: 0.2456140351 | AF140: 29 | AG140: 0.5087719298 | AH140: 0.9360599078 | AI140: At risk of persistent absence | AJ140: 9252202 | AK140: Primary | AL140: 9252202 | AM140: Utterby Primary Academy | AN140: 55 | AO140: 0 | AP140: 0 | AQ140: 1 | AR140: 0.01818181818 | AS140: 8 | AT140: 0.1454545455 | AU140: 7 | AV140: 0.1272727273 | AW140: 39 | AX140: 0.7090909091 | AY140: 0.961329399 | AZ140: As expected
C141: Primary | D141: 9252202 | E141: Utterby Primary Academy | F141: 67 | G141: 0 | H141: 0 | I141: 2 | J141: 0.02985074627 | K141: 9 | L141: 0.1343283582 | M141: 7 | N141: 0.1044776119 | O141: 49 | P141: 0.7313432836 | Q141: 0.9636313159 | R141: As expected | T141: Primary | U141: 9252203 | V141: Waddingham Primary School | W141: 66 | X141: 0 | Y141: 0 | Z141: 1 | AA141: 0.01515151515 | AB141: 10 | AC141: 0.1515151515 | AD141: 15 | AE141: 0.2272727273 | AF141: 40 | AG141: 0.6060606061 | AH141: 0.9486518171 | AI141: At risk of persistent absence | AJ141: 9252203 | AK141: Primary | AL141: 9252203 | AM141: Waddingham Primary School | AN141: 63 | AO141: 0 | AP141: 0 | AQ141: 2 | AR141: 0.03174603175 | AS141: 10 | AT141: 0.1587301587 | AU141: 10 | AV141: 0.1587301587 | AW141: 41 | AX141: 0.6507936508 | AY141: 0.9579426365 | AZ141: As expected
C142: Primary | D142: 9252203 | E142: Waddingham Primary School | F142: 74 | G142: 0 | H142: 0 | I142: 3 | J142: 0.04054054054 | K142: 11 | L142: 0.1486486486 | M142: 5 | N142: 0.06756756757 | O142: 55 | P142: 0.7432432432 | Q142: 0.9584615385 | R142: As expected | T142: Primary | U142: 9252205 | V142: Willoughton School | W142: 45 | X142: 0 | Y142: 0 | Z142: 3 | AA142: 0.06666666667 | AB142: 10 | AC142: 0.2222222222 | AD142: 10 | AE142: 0.2222222222 | AF142: 22 | AG142: 0.4888888889 | AH142: 0.9324439884 | AI142: At risk of persistent absence | AJ142: 9252205 | AK142: Primary | AL142: 9252205 | AM142: Willoughton School | AN142: 44 | AO142: 0 | AP142: 0 | AQ142: 2 | AR142: 0.04545454545 | AS142: 3 | AT142: 0.06818181818 | AU142: 11 | AV142: 0.25 | AW142: 28 | AX142: 0.6363636364 | AY142: 0.9529780564 | AZ142: As expected
C143: Primary | D143: 9252205 | E143: Willoughton School | F143: 52 | G143: 0 | H143: 0 | I143: 2 | J143: 0.03846153846 | K143: 7 | L143: 0.1346153846 | M143: 6 | N143: 0.1153846154 | O143: 37 | P143: 0.7115384615 | Q143: 0.9569088319 | R143: As expected | T143: Primary | U143: 9252206 | V143: Wragby Primary School | W143: 162 | X143: 0 | Y143: 0 | Z143: 4 | AA143: 0.02469135802 | AB143: 33 | AC143: 0.2037037037 | AD143: 36 | AE143: 0.2222222222 | AF143: 89 | AG143: 0.549382716 | AH143: 0.9423322392 | AI143: At risk of persistent absence | AJ143: 9252206 | AK143: Primary | AL143: 9252206 | AM143: Wragby Primary School | AN143: 162 | AO143: 0 | AP143: 0 | AQ143: 8 | AR143: 0.04938271605 | AS143: 21 | AT143: 0.1296296296 | AU143: 33 | AV143: 0.2037037037 | AW143: 100 | AX143: 0.6172839506 | AY143: 0.9446534121 | AZ143: At risk of persistent absence
C144: Primary | D144: 9252206 | E144: Wragby Primary School | F144: 191 | G144: 2 | H144: 0.01047120419 | I144: 16 | J144: 0.08376963351 | K144: 30 | L144: 0.1570680628 | M144: 22 | N144: 0.1151832461 | O144: 121 | P144: 0.6335078534 | Q144: 0.9299902629 | R144: At risk of persistent absence | T144: Primary | U144: 9252207 | V144: Gainsborough White's Wood Academy | W144: 209 | X144: 3 | Y144: 0.01435406699 | Z144: 12 | AA144: 0.05741626794 | AB144: 33 | AC144: 0.1578947368 | AD144: 31 | AE144: 0.1483253589 | AF144: 130 | AG144: 0.6220095694 | AH144: 0.93742741 | AI144: At risk of persistent absence | AJ144: 9252207 | AK144: Primary | AL144: 9252207 | AM144: Gainsborough White's Wood Academy | AN144: 209 | AO144: 3 | AP144: 0.01435406699 | AQ144: 9 | AR144: 0.04306220096 | AS144: 40 | AT144: 0.1913875598 | AU144: 39 | AV144: 0.1866028708 | AW144: 118 | AX144: 0.5645933014 | AY144: 0.9422523722 | AZ144: At risk of persistent absence
C145: Primary | D145: 9252207 | E145: Gainsborough White's Wood Academy | F145: 219 | G145: 2 | H145: 0.009132420091 | I145: 14 | J145: 0.06392694064 | K145: 41 | L145: 0.1872146119 | M145: 24 | N145: 0.1095890411 | O145: 138 | P145: 0.6301369863 | Q145: 0.9374892519 | R145: At risk of persistent absence | T145: Primary | U145: 9252208 | V145: Hillcrest Early Years Academy | W145: 121 | X145: 2 | Y145: 0.01652892562 | Z145: 12 | AA145: 0.09917355372 | AB145: 27 | AC145: 0.2231404959 | AD145: 16 | AE145: 0.132231405 | AF145: 64 | AG145: 0.5289256198 | AH145: 0.9134357006 | AI145: At risk of persistent absence | AJ145: =AL145*1 -> 9252208 | AK145: Primary | AL145: 9252208 | AM145: Hillcrest Early Years Academy | AN145: 116 | AO145: 1 | AP145: 0.008620689655 | AQ145: 9 | AR145: 0.0775862069 | AS145: 25 | AT145: 0.2155172414 | AU145: 27 | AV145: 0.2327586207 | AW145: 54 | AX145: 0.4655172414 | AY145: 0.9270045386 | AZ145: At risk of persistent absence
C146: Primary | D146: 9252208 | E146: Hillcrest Early Years Academy | F146: 159 | G146: 1 | H146: 0.006289308176 | I146: 15 | J146: 0.09433962264 | K146: 31 | L146: 0.1949685535 | M146: 14 | N146: 0.08805031447 | O146: 98 | P146: 0.6163522013 | Q146: 0.9329896907 | R146: At risk of persistent absence | T146: Primary | U146: 9252210 | V146: Hemswell Cliff Primary School | W146: 36 | X146: 0 | Y146: 0 | Z146: 1 | AA146: 0.02777777778 | AB146: 5 | AC146: 0.1388888889 | AD146: 11 | AE146: 0.3055555556 | AF146: 19 | AG146: 0.5277777778 | AH146: 0.9405450041 | AI146: At risk of persistent absence | AJ146: 9252210 | AK146: Primary | AL146: 9252210 | AM146: Hemswell Cliff Primary School | AN146: 36 | AO146: 0 | AP146: 0 | AQ146: 2 | AR146: 0.05555555556 | AS146: 8 | AT146: 0.2222222222 | AU146: 11 | AV146: 0.3055555556 | AW146: 15 | AX146: 0.4166666667 | AY146: 0.9370646766 | AZ146: At risk of persistent absence
C147: Primary | D147: 9252210 | E147: Hemswell Cliff Primary School | F147: 44 | G147: 0 | H147: 0 | I147: 7 | J147: 0.1590909091 | K147: 5 | L147: 0.1136363636 | M147: 4 | N147: 0.09090909091 | O147: 28 | P147: 0.6363636364 | Q147: 0.922979798 | R147: At risk of persistent absence | T147: Primary | U147: 9252214 | V147: Gainsborough Charles Baines Primary | W147: 176 | X147: 0 | Y147: 0 | Z147: 15 | AA147: 0.08522727273 | AB147: 45 | AC147: 0.2556818182 | AD147: 31 | AE147: 0.1761363636 | AF147: 85 | AG147: 0.4829545455 | AH147: 0.9217724755 | AI147: At risk of persistent absence | AJ147: 9252214 | AK147: Primary | AL147: 9252214 | AM147: Gainsborough Charles Baines Primary | AN147: 178 | AO147: 2 | AP147: 0.01123595506 | AQ147: 12 | AR147: 0.06741573034 | AS147: 32 | AT147: 0.1797752809 | AU147: 33 | AV147: 0.1853932584 | AW147: 99 | AX147: 0.5561797753 | AY147: 0.9319579449 | AZ147: At risk of persistent absence
C148: Primary | D148: 9252214 | E148: Gainsborough Charles Baines Primary | F148: 202 | G148: 1 | H148: 0.00495049505 | I148: 22 | J148: 0.1089108911 | K148: 40 | L148: 0.198019802 | M148: 20 | N148: 0.09900990099 | O148: 119 | P148: 0.5891089109 | Q148: 0.9295437822 | R148: At risk of persistent absence | T148: Primary | U148: 9252215 | V148: Tattershall Primary School | W148: 115 | X148: 0 | Y148: 0 | Z148: 6 | AA148: 0.05217391304 | AB148: 11 | AC148: 0.09565217391 | AD148: 26 | AE148: 0.2260869565 | AF148: 72 | AG148: 0.6260869565 | AH148: 0.9526404567 | AI148: As expected | AJ148: 9252215 | AK148: Primary | AL148: 9252215 | AM148: Tattershall Primary School | AN148: 119 | AO148: 0 | AP148: 0 | AQ148: 2 | AR148: 0.01680672269 | AS148: 10 | AT148: 0.08403361345 | AU148: 26 | AV148: 0.218487395 | AW148: 81 | AX148: 0.6806722689 | AY148: 0.9588492353 | AZ148: As expected
C149: Primary | D149: 9252215 | E149: Tattershall Primary School | F149: 140 | G149: 1 | H149: 0.007142857143 | I149: 5 | J149: 0.03571428571 | K149: 16 | L149: 0.1142857143 | M149: 10 | N149: 0.07142857143 | O149: 108 | P149: 0.7714285714 | Q149: 0.9601930036 | R149: As expected | T149: Primary | U149: 9252219 | V149: THE RICHMOND SCHOOL | W149: 351 | X149: 0 | Y149: 0 | Z149: 25 | AA149: 0.07122507123 | AB149: 103 | AC149: 0.2934472934 | AD149: 56 | AE149: 0.1595441595 | AF149: 167 | AG149: 0.4757834758 | AH149: 0.9199475925 | AI149: At risk of persistent absence | AJ149: 9252219 | AK149: Primary | AL149: 9252219 | AM149: THE RICHMOND SCHOOL | AN149: 348 | AO149: 3 | AP149: 0.008620689655 | AQ149: 22 | AR149: 0.0632183908 | AS149: 76 | AT149: 0.2183908046 | AU149: 69 | AV149: 0.1982758621 | AW149: 178 | AX149: 0.5114942529 | AY149: 0.9294008477 | AZ149: At risk of persistent absence
C150: Primary | D150: 9252219 | E150: THE RICHMOND SCHOOL | F150: 407 | G150: 8 | H150: 0.01965601966 | I150: 78 | J150: 0.1916461916 | K150: 110 | L150: 0.2702702703 | M150: 90 | N150: 0.2211302211 | O150: 121 | P150: 0.2972972973 | Q150: 0.8759441813 | R150: Persistent absence | T150: Primary | U150: 9252224 | V150: Ruskington Winchelsea Primary School | W150: 192 | X150: 1 | Y150: 0.005208333333 | Z150: 4 | AA150: 0.02083333333 | AB150: 23 | AC150: 0.1197916667 | AD150: 47 | AE150: 0.2447916667 | AF150: 117 | AG150: 0.609375 | AH150: 0.9472387359 | AI150: At risk of persistent absence | AJ150: 9252224 | AK150: Primary | AL150: 9252224 | AM150: Ruskington Winchelsea Primary School | AN150: 194 | AO150: 0 | AP150: 0 | AQ150: 3 | AR150: 0.01546391753 | AS150: 24 | AT150: 0.1237113402 | AU150: 38 | AV150: 0.1958762887 | AW150: 129 | AX150: 0.6649484536 | AY150: 0.9563076089 | AZ150: As expected
C151: Primary | D151: 9252224 | E151: Ruskington Winchelsea Primary School | F151: 220 | G151: 0 | H151: 0 | I151: 12 | J151: 0.05454545455 | K151: 24 | L151: 0.1090909091 | M151: 25 | N151: 0.1136363636 | O151: 159 | P151: 0.7227272727 | Q151: 0.9554916229 | R151: As expected | T151: Primary | U151: 9252229 | V151: Holton-Le-Clay Junior School | W151: 122 | X151: 0 | Y151: 0 | Z151: 1 | AA151: 0.008196721311 | AB151: 21 | AC151: 0.1721311475 | AD151: 30 | AE151: 0.2459016393 | AF151: 70 | AG151: 0.5737704918 | AH151: 0.9504461056 | AI151: As expected | AJ151: 9252229 | AK151: Primary | AL151: 9252229 | AM151: Holton-Le-Clay Junior School | AN151: 126 | AO151: 0 | AP151: 0 | AQ151: 1 | AR151: 0.007936507937 | AS151: 17 | AT151: 0.1349206349 | AU151: 25 | AV151: 0.1984126984 | AW151: 83 | AX151: 0.6587301587 | AY151: 0.9589011925 | AZ151: As expected
C152: Primary | D152: 9252229 | E152: Holton-Le-Clay Junior School | F152: 126 | G152: 0 | H152: 0 | I152: 5 | J152: 0.03968253968 | K152: 19 | L152: 0.1507936508 | M152: 17 | N152: 0.1349206349 | O152: 85 | P152: 0.6746031746 | Q152: 0.9524022014 | R152: As expected | T152: Primary | U152: 9252234 | V152: Carlton Road Academy | W152: 389 | X152: 13 | Y152: 0.03341902314 | Z152: 47 | AA152: 0.1208226221 | AB152: 118 | AC152: 0.3033419023 | AD152: 70 | AE152: 0.1799485861 | AF152: 141 | AG152: 0.3624678663 | AH152: 0.8953351048 | AI152: Persistent absence | AJ152: 9252234 | AK152: Primary | AL152: 9252234 | AM152: Carlton Road Academy | AN152: 378 | AO152: 7 | AP152: 0.01851851852 | AQ152: 39 | AR152: 0.1031746032 | AS152: 76 | AT152: 0.2010582011 | AU152: 80 | AV152: 0.2116402116 | AW152: 176 | AX152: 0.4656084656 | AY152: 0.9190303547 | AZ152: At risk of persistent absence
C153: Primary | D153: 9252234 | E153: Carlton Road Academy | F153: 429 | G153: 13 | H153: 0.0303030303 | I153: 38 | J153: 0.08857808858 | K153: 61 | L153: 0.1421911422 | M153: 60 | N153: 0.1398601399 | O153: 257 | P153: 0.5990675991 | Q153: 0.9192432525 | R153: At risk of persistent absence | T153: Primary | U153: 9252237 | V153: Park Academy | W153: 329 | X153: 14 | Y153: 0.04255319149 | Z153: 30 | AA153: 0.09118541033 | AB153: 67 | AC153: 0.2036474164 | AD153: 63 | AE153: 0.1914893617 | AF153: 155 | AG153: 0.4711246201 | AH153: 0.9115261609 | AI153: At risk of persistent absence | AJ153: 9252237 | AK153: Primary | AL153: 9252237 | AM153: Park Academy | AN153: 326 | AO153: 8 | AP153: 0.0245398773 | AQ153: 31 | AR153: 0.09509202454 | AS153: 74 | AT153: 0.226993865 | AU153: 77 | AV153: 0.236196319 | AW153: 136 | AX153: 0.4171779141 | AY153: 0.9100283439 | AZ153: At risk of persistent absence
C154: Primary | D154: 9252237 | E154: Park Academy | F154: 366 | G154: 2 | H154: 0.005464480874 | I154: 19 | J154: 0.05191256831 | K154: 69 | L154: 0.1885245902 | M154: 30 | N154: 0.08196721311 | O154: 246 | P154: 0.6721311475 | Q154: 0.9442661975 | R154: At risk of persistent absence | T154: Primary | U154: 9252238 | V154: Sutton Bridge Westmere Community Primary | W154: 212 | X154: 0 | Y154: 0 | Z154: 17 | AA154: 0.08018867925 | AB154: 66 | AC154: 0.3113207547 | AD154: 38 | AE154: 0.179245283 | AF154: 91 | AG154: 0.429245283 | AH154: 0.9085850556 | AI154: Persistent absence | AJ154: 9252238 | AK154: Primary | AL154: 9252238 | AM154: Sutton Bridge Westmere Community Primary | AN154: 216 | AO154: 6 | AP154: 0.02777777778 | AQ154: 21 | AR154: 0.09722222222 | AS154: 43 | AT154: 0.1990740741 | AU154: 34 | AV154: 0.1574074074 | AW154: 112 | AX154: 0.5185185185 | AY154: 0.9130760273 | AZ154: At risk of persistent absence
C155: Primary | D155: 9252238 | E155: Sutton Bridge Westmere Community Primary | F155: 231 | G155: 1 | H155: 0.004329004329 | I155: 17 | J155: 0.07359307359 | K155: 42 | L155: 0.1818181818 | M155: 28 | N155: 0.1212121212 | O155: 142 | P155: 0.6147186147 | Q155: 0.9357753752 | R155: At risk of persistent absence | T155: Primary | U155: 9252239 | V155: Staniland Academy | W155: 506 | X155: 18 | Y155: 0.03557312253 | Z155: 29 | AA155: 0.05731225296 | AB155: 124 | AC155: 0.2450592885 | AD155: 92 | AE155: 0.1818181818 | AF155: 243 | AG155: 0.4802371542 | AH155: 0.9163683186 | AI155: At risk of persistent absence | AJ155: 9252239 | AK155: Primary | AL155: 9252239 | AM155: Staniland Academy | AN155: 507 | AO155: 8 | AP155: 0.0157790927 | AQ155: 28 | AR155: 0.05522682446 | AS155: 99 | AT155: 0.1952662722 | AU155: 120 | AV155: 0.2366863905 | AW155: 252 | AX155: 0.4970414201 | AY155: 0.9303844957 | AZ155: At risk of persistent absence
C156: Primary | D156: 9252239 | E156: Staniland Academy | F156: 570 | G156: 6 | H156: 0.01052631579 | I156: 52 | J156: 0.09122807018 | K156: 111 | L156: 0.1947368421 | M156: 87 | N156: 0.1526315789 | O156: 314 | P156: 0.550877193 | Q156: 0.9249194211 | R156: At risk of persistent absence | T156: Primary | U156: 9252240 | V156: Waddington All Saints Academy | W156: 341 | X156: 3 | Y156: 0.008797653959 | Z156: 3 | AA156: 0.008797653959 | AB156: 43 | AC156: 0.1260997067 | AD156: 77 | AE156: 0.2258064516 | AF156: 215 | AG156: 0.6304985337 | AH156: 0.948537219 | AI156: At risk of persistent absence | AJ156: 9252240 | AK156: Primary | AL156: 9252240 | AM156: Waddington All Saints Academy | AN156: 330 | AO156: 2 | AP156: 0.006060606061 | AQ156: 10 | AR156: 0.0303030303 | AS156: 43 | AT156: 0.1303030303 | AU156: 56 | AV156: 0.1696969697 | AW156: 219 | AX156: 0.6636363636 | AY156: 0.9501461469 | AZ156: As expected
C157: Primary | D157: 9252240 | E157: Waddington All Saints Academy | F157: 390 | G157: 2 | H157: 0.005128205128 | I157: 12 | J157: 0.03076923077 | K157: 38 | L157: 0.09743589744 | M157: 39 | N157: 0.1 | O157: 299 | P157: 0.7666666667 | Q157: 0.9619863343 | R157: As expected | T157: Primary | U157: 9252241 | V157: Cherry Willingham Primary Academy | W157: 177 | X157: 1 | Y157: 0.005649717514 | Z157: 8 | AA157: 0.04519774011 | AB157: 28 | AC157: 0.1581920904 | AD157: 29 | AE157: 0.1638418079 | AF157: 111 | AG157: 0.6271186441 | AH157: 0.9443134335 | AI157: At risk of persistent absence | AJ157: 9252241 | AK157: Primary | AL157: 9252241 | AM157: Cherry Willingham Primary Academy | AN157: 175 | AO157: 0 | AP157: 0 | AQ157: 3 | AR157: 0.01714285714 | AS157: 31 | AT157: 0.1771428571 | AU157: 35 | AV157: 0.2 | AW157: 106 | AX157: 0.6057142857 | AY157: 0.9493897883 | AZ157: At risk of persistent absence
C158: Primary | D158: 9252241 | E158: Cherry Willingham Primary Academy | F158: 201 | G158: 0 | H158: 0 | I158: 16 | J158: 0.07960199005 | K158: 30 | L158: 0.1492537313 | M158: 26 | N158: 0.1293532338 | O158: 129 | P158: 0.6417910448 | Q158: 0.9414278084 | R158: At risk of persistent absence | T158: Primary | U158: 9252243 | V158: Bythams Primary School | W158: 71 | X158: 1 | Y158: 0.01408450704 | Z158: 5 | AA158: 0.07042253521 | AB158: 16 | AC158: 0.2253521127 | AD158: 17 | AE158: 0.2394366197 | AF158: 32 | AG158: 0.4507042254 | AH158: 0.9109201653 | AI158: At risk of persistent absence | AJ158: 9252243 | AK158: Primary | AL158: 9252243 | AM158: Bythams Primary School | AN158: 71 | AO158: 2 | AP158: 0.02816901408 | AQ158: 3 | AR158: 0.04225352113 | AS158: 4 | AT158: 0.05633802817 | AU158: 12 | AV158: 0.1690140845 | AW158: 50 | AX158: 0.7042253521 | AY158: 0.9482326398 | AZ158: At risk of persistent absence
C159: Primary | D159: 9252243 | E159: Bythams Primary School | F159: 84 | G159: 1 | H159: 0.0119047619 | I159: 6 | J159: 0.07142857143 | K159: 9 | L159: 0.1071428571 | M159: 8 | N159: 0.09523809524 | O159: 60 | P159: 0.7142857143 | Q159: 0.9338624339 | R159: At risk of persistent absence | T159: Primary | U159: 9252244 | V159: Horncastle Primary School | W159: 373 | X159: 5 | Y159: 0.01340482574 | Z159: 26 | AA159: 0.06970509383 | AB159: 49 | AC159: 0.1313672922 | AD159: 92 | AE159: 0.2466487936 | AF159: 201 | AG159: 0.5388739946 | AH159: 0.9333774012 | AI159: At risk of persistent absence | AJ159: 9252244 | AK159: Primary | AL159: 9252244 | AM159: Horncastle Primary School | AN159: 369 | AO159: 4 | AP159: 0.0108401084 | AQ159: 22 | AR159: 0.05962059621 | AS159: 57 | AT159: 0.1544715447 | AU159: 74 | AV159: 0.2005420054 | AW159: 212 | AX159: 0.5745257453 | AY159: 0.9396539046 | AZ159: At risk of persistent absence
C160: Primary | D160: 9252244 | E160: Horncastle Primary School | F160: 421 | G160: 5 | H160: 0.01187648456 | I160: 20 | J160: 0.04750593824 | K160: 68 | L160: 0.16152019 | M160: 41 | N160: 0.0973871734 | O160: 287 | P160: 0.6817102138 | Q160: 0.9470348373 | R160: At risk of persistent absence | T160: Primary | U160: 9252245 | V160: Lincoln Birchwood Junior School | W160: 259 | X160: 4 | Y160: 0.01544401544 | Z160: 4 | AA160: 0.01544401544 | AB160: 47 | AC160: 0.1814671815 | AD160: 61 | AE160: 0.2355212355 | AF160: 143 | AG160: 0.5521235521 | AH160: 0.9433581172 | AI160: At risk of persistent absence | AJ160: 9252245 | AK160: Primary | AL160: 9252245 | AM160: Lincoln Birchwood Junior School | AN160: 254 | AO160: 0 | AP160: 0 | AQ160: 7 | AR160: 0.02755905512 | AS160: 32 | AT160: 0.125984252 | AU160: 57 | AV160: 0.2244094488 | AW160: 158 | AX160: 0.6220472441 | AY160: 0.9509923872 | AZ160: As expected
C161: Primary | D161: 9252245 | E161: Lincoln Birchwood Junior School | F161: 257 | G161: 5 | H161: 0.01945525292 | I161: 14 | J161: 0.05447470817 | K161: 43 | L161: 0.1673151751 | M161: 25 | N161: 0.09727626459 | O161: 170 | P161: 0.6614785992 | Q161: 0.9416373755 | R161: At risk of persistent absence | T161: Primary | U161: 9252246 | V161: Lincoln Leslie Manser C P School | W161: 210 | X161: 1 | Y161: 0.004761904762 | Z161: 13 | AA161: 0.0619047619 | AB161: 35 | AC161: 0.1666666667 | AD161: 50 | AE161: 0.2380952381 | AF161: 111 | AG161: 0.5285714286 | AH161: 0.9334611766 | AI161: At risk of persistent absence | AJ161: 9252246 | AK161: Primary | AL161: 9252246 | AM161: Lincoln Leslie Manser C P School | AN161: 213 | AO161: 1 | AP161: 0.004694835681 | AQ161: 9 | AR161: 0.04225352113 | AS161: 31 | AT161: 0.1455399061 | AU161: 35 | AV161: 0.1643192488 | AW161: 137 | AX161: 0.6431924883 | AY161: 0.946554843 | AZ161: At risk of persistent absence
C162: Primary | D162: 9252246 | E162: Lincoln Leslie Manser C P School | F162: 248 | G162: 4 | H162: 0.01612903226 | I162: 11 | J162: 0.04435483871 | K162: 34 | L162: 0.1370967742 | M162: 25 | N162: 0.1008064516 | O162: 174 | P162: 0.7016129032 | Q162: 0.9472819594 | R162: At risk of persistent absence | T162: Primary | U162: 9252247 | V162: Gainsborough Benjamin Adlard School | W162: 187 | X162: 5 | Y162: 0.02673796791 | Z162: 6 | AA162: 0.0320855615 | AB162: 38 | AC162: 0.2032085561 | AD162: 35 | AE162: 0.1871657754 | AF162: 103 | AG162: 0.550802139 | AH162: 0.9316675811 | AI162: At risk of persistent absence | AJ162: 9252247 | AK162: Primary | AL162: 9252247 | AM162: Gainsborough Benjamin Adlard School | AN162: 182 | AO162: 2 | AP162: 0.01098901099 | AQ162: 6 | AR162: 0.03296703297 | AS162: 32 | AT162: 0.1758241758 | AU162: 43 | AV162: 0.2362637363 | AW162: 99 | AX162: 0.543956044 | AY162: 0.9391262602 | AZ162: At risk of persistent absence
C163: Primary | D163: 9252247 | E163: Gainsborough Benjamin Adlard School | F163: 210 | G163: 2 | H163: 0.009523809524 | I163: 15 | J163: 0.07142857143 | K163: 29 | L163: 0.1380952381 | M163: 19 | N163: 0.09047619048 | O163: 145 | P163: 0.6904761905 | Q163: 0.9385918475 | R163: At risk of persistent absence | T163: Primary | U163: 9252248 | V163: Sleaford St Botolph's CE Primary School | W163: 346 | X163: 2 | Y163: 0.005780346821 | Z163: 12 | AA163: 0.03468208092 | AB163: 55 | AC163: 0.1589595376 | AD163: 58 | AE163: 0.1676300578 | AF163: 219 | AG163: 0.6329479769 | AH163: 0.9436789836 | AI163: At risk of persistent absence | AJ163: 9252248 | AK163: Primary | AL163: 9252248 | AM163: Sleaford St Botolph's CE Primary School | AN163: 348 | AO163: 0 | AP163: 0 | AQ163: 7 | AR163: 0.02011494253 | AS163: 37 | AT163: 0.1063218391 | AU163: 38 | AV163: 0.1091954023 | AW163: 266 | AX163: 0.7643678161 | AY163: 0.9602512988 | AZ163: As expected
C164: Primary | D164: 9252248 | E164: Sleaford St Botolph's CE Primary School | F164: 404 | G164: 0 | H164: 0 | I164: 18 | J164: 0.04455445545 | K164: 51 | L164: 0.1262376238 | M164: 58 | N164: 0.1435643564 | O164: 277 | P164: 0.6856435644 | Q164: 0.9561387326 | R164: As expected | T164: Primary | U164: 9253000 | V164: Allington with Sedgebrook CE Primary | W164: 96 | X164: 0 | Y164: 0 | Z164: 1 | AA164: 0.01041666667 | AB164: 12 | AC164: 0.125 | AD164: 17 | AE164: 0.1770833333 | AF164: 66 | AG164: 0.6875 | AH164: 0.9594056373 | AI164: As expected | AJ164: 9253000 | AK164: Primary | AL164: 9253000 | AM164: Allington with Sedgebrook CE Primary | AN164: 95 | AO164: 0 | AP164: 0 | AQ164: 2 | AR164: 0.02105263158 | AS164: 12 | AT164: 0.1263157895 | AU164: 18 | AV164: 0.1894736842 | AW164: 63 | AX164: 0.6631578947 | AY164: 0.9573770492 | AZ164: As expected
C165: Primary | D165: 9253000 | E165: Allington with Sedgebrook CE Primary | F165: 112 | G165: 0 | H165: 0 | I165: 2 | J165: 0.01785714286 | K165: 5 | L165: 0.04464285714 | M165: 15 | N165: 0.1339285714 | O165: 90 | P165: 0.8035714286 | Q165: 0.9749681122 | R165: As expected | T165: Primary | U165: 9253001 | V165: Ancaster CE Primary | W165: 160 | X165: 0 | Y165: 0 | Z165: 2 | AA165: 0.0125 | AB165: 33 | AC165: 0.20625 | AD165: 37 | AE165: 0.23125 | AF165: 88 | AG165: 0.55 | AH165: 0.9457965629 | AI165: At risk of persistent absence | AJ165: 9253001 | AK165: Primary | AL165: 9253001 | AM165: Ancaster CE Primary | AN165: 163 | AO165: 1 | AP165: 0.006134969325 | AQ165: 0 | AR165: 0 | AS165: 27 | AT165: 0.1656441718 | AU165: 32 | AV165: 0.1963190184 | AW165: 103 | AX165: 0.6319018405 | AY165: 0.9507640981 | AZ165: As expected
C166: Primary | D166: 9253001 | E166: Ancaster CE Primary | F166: 191 | G166: 0 | H166: 0 | I166: 14 | J166: 0.07329842932 | K166: 35 | L166: 0.1832460733 | M166: 25 | N166: 0.1308900524 | O166: 117 | P166: 0.612565445 | Q166: 0.9360603654 | R166: At risk of persistent absence | T166: Primary | U166: 9253004 | V166: Barrowby Church of England Primary | W166: 205 | X166: 0 | Y166: 0 | Z166: 0 | AA166: 0 | AB166: 8 | AC166: 0.03902439024 | AD166: 35 | AE166: 0.1707317073 | AF166: 162 | AG166: 0.7902439024 | AH166: 0.9703102453 | AI166: As expected | AJ166: 9253004 | AK166: Primary | AL166: 9253004 | AM166: Barrowby Church of England Primary | AN166: 203 | AO166: 0 | AP166: 0 | AQ166: 1 | AR166: 0.004926108374 | AS166: 11 | AT166: 0.05418719212 | AU166: 25 | AV166: 0.1231527094 | AW166: 166 | AX166: 0.8177339901 | AY166: 0.9755802917 | AZ166: As expected
C167: Primary | D167: 9253004 | E167: Barrowby Church of England Primary | F167: 231 | G167: 0 | H167: 0 | I167: 3 | J167: 0.01298701299 | K167: 23 | L167: 0.09956709957 | M167: 26 | N167: 0.1125541126 | O167: 179 | P167: 0.7748917749 | Q167: 0.9690158934 | R167: As expected | T167: Primary | U167: 9253005 | V167: Baston C.E. Primary | W167: 162 | X167: 1 | Y167: 0.006172839506 | Z167: 2 | AA167: 0.01234567901 | AB167: 17 | AC167: 0.1049382716 | AD167: 38 | AE167: 0.2345679012 | AF167: 104 | AG167: 0.6419753086 | AH167: 0.9511135755 | AI167: As expected | AJ167: 9253005 | AK167: Primary | AL167: 9253005 | AM167: Baston C.E. Primary | AN167: 162 | AO167: 0 | AP167: 0 | AQ167: 6 | AR167: 0.03703703704 | AS167: 26 | AT167: 0.1604938272 | AU167: 31 | AV167: 0.1913580247 | AW167: 99 | AX167: 0.6111111111 | AY167: 0.948942297 | AZ167: At risk of persistent absence
C168: Primary | D168: 9253005 | E168: Baston C.E. Primary | F168: 189 | G168: 0 | H168: 0 | I168: 5 | J168: 0.02645502646 | K168: 14 | L168: 0.07407407407 | M168: 24 | N168: 0.126984127 | O168: 146 | P168: 0.7724867725 | Q168: 0.9694362018 | R168: As expected | T168: Primary | U168: 9253007 | V168: BILLINGHAY C E PRIMARY SCHOOL | W168: 156 | X168: 1 | Y168: 0.00641025641 | Z168: 7 | AA168: 0.04487179487 | AB168: 35 | AC168: 0.2243589744 | AD168: 37 | AE168: 0.2371794872 | AF168: 76 | AG168: 0.4871794872 | AH168: 0.9305752061 | AI168: At risk of persistent absence | AJ168: 9253007 | AK168: Primary | AL168: 9253007 | AM168: BILLINGHAY C E PRIMARY SCHOOL | AN168: 148 | AO168: 0 | AP168: 0 | AQ168: 13 | AR168: 0.08783783784 | AS168: 36 | AT168: 0.2432432432 | AU168: 45 | AV168: 0.3040540541 | AW168: 54 | AX168: 0.3648648649 | AY168: 0.9178481825 | AZ168: At risk of persistent absence
C169: Primary | D169: 9253007 | E169: BILLINGHAY C E PRIMARY SCHOOL | F169: 159 | G169: 0 | H169: 0 | I169: 6 | J169: 0.03773584906 | K169: 15 | L169: 0.09433962264 | M169: 19 | N169: 0.1194968553 | O169: 119 | P169: 0.748427673 | Q169: 0.9579548102 | R169: As expected | T169: Primary | U169: 9253009 | V169: Branston Church of England Infant Academy | W169: 90 | X169: 0 | Y169: 0 | Z169: 1 | AA169: 0.01111111111 | AB169: 9 | AC169: 0.1 | AD169: 19 | AE169: 0.2111111111 | AF169: 61 | AG169: 0.6777777778 | AH169: 0.9556372549 | AI169: As expected | AJ169: 9253009 | AK169: Primary | AL169: 9253009 | AM169: Branston Church of England Infant Academy | AN169: 90 | AO169: 0 | AP169: 0 | AQ169: 2 | AR169: 0.02222222222 | AS169: 11 | AT169: 0.1222222222 | AU169: 19 | AV169: 0.2111111111 | AW169: 58 | AX169: 0.6444444444 | AY169: 0.9539937353 | AZ169: As expected
C170: Primary | D170: 9253009 | E170: Branston Church of England Infant Academy | F170: 132 | G170: 0 | H170: 0 | I170: 14 | J170: 0.1060606061 | K170: 17 | L170: 0.1287878788 | M170: 11 | N170: 0.08333333333 | O170: 90 | P170: 0.6818181818 | Q170: 0.9420594837 | R170: At risk of persistent absence | T170: Primary | U170: 9253015 | V170: Coleby CE Controlled Primary School | W170: 42 | X170: 0 | Y170: 0 | Z170: 1 | AA170: 0.02380952381 | AB170: 2 | AC170: 0.04761904762 | AD170: 3 | AE170: 0.07142857143 | AF170: 36 | AG170: 0.8571428571 | AH170: 0.9759733427 | AI170: As expected | AJ170: 9253015 | AK170: Primary | AL170: 9253015 | AM170: Coleby CE Controlled Primary School | AN170: 42 | AO170: 0 | AP170: 0 | AQ170: 2 | AR170: 0.04761904762 | AS170: 1 | AT170: 0.02380952381 | AU170: 6 | AV170: 0.1428571429 | AW170: 33 | AX170: 0.7857142857 | AY170: 0.9649383765 | AZ170: As expected
C171: Primary | D171: 9253015 | E171: Coleby CE Controlled Primary School | F171: 57 | G171: 0 | H171: 0 | I171: 4 | J171: 0.0701754386 | K171: 22 | L171: 0.3859649123 | M171: 2 | N171: 0.0350877193 | O171: 29 | P171: 0.5087719298 | Q171: 0.9225260417 | R171: At risk of persistent absence | T171: Primary | U171: 9253017 | V171: DENTON C.E. SCHOOL | W171: 53 | X171: 2 | Y171: 0.03773584906 | Z171: 0 | AA171: 0 | AB171: 13 | AC171: 0.2452830189 | AD171: 8 | AE171: 0.1509433962 | AF171: 30 | AG171: 0.5660377358 | AH171: 0.9495961711 | AI171: At risk of persistent absence | AJ171: 9253017 | AK171: Primary | AL171: 9253017 | AM171: DENTON C.E. SCHOOL | AN171: 53 | AO171: 0 | AP171: 0 | AQ171: 0 | AR171: 0 | AS171: 10 | AT171: 0.1886792453 | AU171: 7 | AV171: 0.1320754717 | AW171: 36 | AX171: 0.679245283 | AY171: 0.9559042114 | AZ171: As expected
C172: Primary | D172: 9253017 | E172: DENTON C.E. SCHOOL | F172: 65 | G172: 1 | H172: 0.01538461538 | I172: 5 | J172: 0.07692307692 | K172: 7 | L172: 0.1076923077 | M172: 4 | N172: 0.06153846154 | O172: 47 | P172: 0.7230769231 | Q172: 0.9405737705 | R172: At risk of persistent absence | T172: Primary | U172: 9253018 | V172: Digby Church of England School | W172: 55 | X172: 0 | Y172: 0 | Z172: 2 | AA172: 0.03636363636 | AB172: 13 | AC172: 0.2363636364 | AD172: 9 | AE172: 0.1636363636 | AF172: 31 | AG172: 0.5636363636 | AH172: 0.9425381264 | AI172: At risk of persistent absence | AJ172: 9253018 | AK172: Primary | AL172: 9253018 | AM172: Digby Church of England School | AN172: 56 | AO172: 0 | AP172: 0 | AQ172: 1 | AR172: 0.01785714286 | AS172: 15 | AT172: 0.2678571429 | AU172: 16 | AV172: 0.2857142857 | AW172: 24 | AX172: 0.4285714286 | AY172: 0.9330721003 | AZ172: At risk of persistent absence
C173: Primary | D173: 9253018 | E173: Digby Church of England School | F173: 60 | G173: 4 | H173: 0.06666666667 | I173: 2 | J173: 0.03333333333 | K173: 10 | L173: 0.1666666667 | M173: 2 | N173: 0.03333333333 | O173: 42 | P173: 0.7 | Q173: 0.9070431472 | R173: Persistent absence | T173: Primary | U173: 9253021 | V173: Dunston St Peter's Church of England Primary School | W173: 63 | X173: 0 | Y173: 0 | Z173: 4 | AA173: 0.06349206349 | AB173: 13 | AC173: 0.2063492063 | AD173: 14 | AE173: 0.2222222222 | AF173: 32 | AG173: 0.5079365079 | AH173: 0.9382716049 | AI173: At risk of persistent absence | AJ173: 9253021 | AK173: Primary | AL173: 9253021 | AM173: Dunston St Peter's Church of England Primary School | AN173: 63 | AO173: 0 | AP173: 0 | AQ173: 2 | AR173: 0.03174603175 | AS173: 17 | AT173: 0.2698412698 | AU173: 14 | AV173: 0.2222222222 | AW173: 30 | AX173: 0.4761904762 | AY173: 0.930814115 | AZ173: At risk of persistent absence
C174: Primary | D174: 9253021 | E174: Dunston St Peter's Church of England Primary School | F174: 71 | G174: 0 | H174: 0 | I174: 0 | J174: 0 | K174: 15 | L174: 0.2112676056 | M174: 6 | N174: 0.08450704225 | O174: 50 | P174: 0.7042253521 | Q174: 0.9569920844 | R174: As expected | T174: Primary | U174: 9253022 | V174: The Edenham Church of England School | W174: 91 | X174: 0 | Y174: 0 | Z174: 3 | AA174: 0.03296703297 | AB174: 12 | AC174: 0.1318681319 | AD174: 19 | AE174: 0.2087912088 | AF174: 57 | AG174: 0.6263736264 | AH174: 0.9552908683 | AI174: As expected | AJ174: 9253022 | AK174: Primary | AL174: 9253022 | AM174: The Edenham Church of England School | AN174: 93 | AO174: 0 | AP174: 0 | AQ174: 1 | AR174: 0.01075268817 | AS174: 20 | AT174: 0.2150537634 | AU174: 20 | AV174: 0.2150537634 | AW174: 52 | AX174: 0.5591397849 | AY174: 0.9445293107 | AZ174: At risk of persistent absence
C175: Primary | D175: 9253022 | E175: The Edenham Church of England School | F175: 94 | G175: 1 | H175: 0.01063829787 | I175: 8 | J175: 0.08510638298 | K175: 13 | L175: 0.1382978723 | M175: 7 | N175: 0.07446808511 | O175: 65 | P175: 0.6914893617 | Q175: 0.938578884 | R175: At risk of persistent absence | T175: Primary | U175: 9253026 | V175: Grantham St Anne's CofE Primary School | W175: 184 | X175: 0 | Y175: 0 | Z175: 6 | AA175: 0.03260869565 | AB175: 24 | AC175: 0.1304347826 | AD175: 32 | AE175: 0.1739130435 | AF175: 122 | AG175: 0.6630434783 | AH175: 0.9520052062 | AI175: As expected | AJ175: 9253026 | AK175: Primary | AL175: 9253026 | AM175: Grantham St Anne's CofE Primary School | AN175: 183 | AO175: 0 | AP175: 0 | AQ175: 3 | AR175: 0.01639344262 | AS175: 25 | AT175: 0.1366120219 | AU175: 41 | AV175: 0.2240437158 | AW175: 114 | AX175: 0.6229508197 | AY175: 0.954820434 | AZ175: As expected
C176: Primary | D176: 9253026 | E176: Grantham St Anne's CofE Primary School | F176: 213 | G176: 0 | H176: 0 | I176: 12 | J176: 0.05633802817 | K176: 25 | L176: 0.117370892 | M176: 24 | N176: 0.1126760563 | O176: 152 | P176: 0.7136150235 | Q176: 0.9524019004 | R176: As expected | T176: Primary | U176: 9253029 | V176: Grantham Gonerby Hill Foot Church of England Primary | W176: 272 | X176: 1 | Y176: 0.003676470588 | Z176: 9 | AA176: 0.03308823529 | AB176: 34 | AC176: 0.125 | AD176: 44 | AE176: 0.1617647059 | AF176: 184 | AG176: 0.6764705882 | AH176: 0.9512664139 | AI176: As expected | AJ176: 9253029 | AK176: Primary | AL176: 9253029 | AM176: Grantham Gonerby Hill Foot Church of England Primary | AN176: 272 | AO176: 1 | AP176: 0.003676470588 | AQ176: 3 | AR176: 0.01102941176 | AS176: 26 | AT176: 0.09558823529 | AU176: 65 | AV176: 0.2389705882 | AW176: 177 | AX176: 0.6507352941 | AY176: 0.9559422557 | AZ176: As expected
C177: Primary | D177: 9253029 | E177: Grantham Gonerby Hill Foot Church of England Primary | F177: 317 | G177: 1 | H177: 0.003154574132 | I177: 21 | J177: 0.06624605678 | K177: 42 | L177: 0.1324921136 | M177: 34 | N177: 0.1072555205 | O177: 219 | P177: 0.690851735 | Q177: 0.9485337072 | R177: At risk of persistent absence | T177: Primary | U177: 9253031 | V177: Harlaxton CE Primary | W177: 172 | X177: 1 | Y177: 0.005813953488 | Z177: 3 | AA177: 0.01744186047 | AB177: 33 | AC177: 0.1918604651 | AD177: 42 | AE177: 0.2441860465 | AF177: 93 | AG177: 0.5406976744 | AH177: 0.9436625991 | AI177: At risk of persistent absence | AJ177: 9253031 | AK177: Primary | AL177: 9253031 | AM177: Harlaxton CE Primary | AN177: 168 | AO177: 0 | AP177: 0 | AQ177: 2 | AR177: 0.0119047619 | AS177: 21 | AT177: 0.125 | AU177: 41 | AV177: 0.244047619 | AW177: 104 | AX177: 0.619047619 | AY177: 0.9573607221 | AZ177: As expected
C178: Primary | D178: 9253031 | E178: Harlaxton CE Primary | F178: 207 | G178: 3 | H178: 0.01449275362 | I178: 5 | J178: 0.02415458937 | K178: 27 | L178: 0.1304347826 | M178: 18 | N178: 0.08695652174 | O178: 154 | P178: 0.7439613527 | Q178: 0.9603492179 | R178: As expected | T178: Primary | U178: 9253033 | V178: Heckington St Andrew's CofE Primary School | W178: 154 | X178: 0 | Y178: 0 | Z178: 8 | AA178: 0.05194805195 | AB178: 27 | AC178: 0.1753246753 | AD178: 27 | AE178: 0.1753246753 | AF178: 92 | AG178: 0.5974025974 | AH178: 0.9432344199 | AI178: At risk of persistent absence | AJ178: 9253033 | AK178: Primary | AL178: 9253033 | AM178: Heckington St Andrew's CofE Primary School | AN178: 155 | AO178: 0 | AP178: 0 | AQ178: 6 | AR178: 0.03870967742 | AS178: 36 | AT178: 0.2322580645 | AU178: 26 | AV178: 0.1677419355 | AW178: 87 | AX178: 0.5612903226 | AY178: 0.9390425046 | AZ178: At risk of persistent absence
C179: Primary | D179: 9253033 | E179: Heckington St Andrew's CofE Primary School | F179: 173 | G179: 0 | H179: 0 | I179: 9 | J179: 0.05202312139 | K179: 19 | L179: 0.1098265896 | M179: 20 | N179: 0.1156069364 | O179: 125 | P179: 0.7225433526 | Q179: 0.9514500537 | R179: As expected | T179: Primary | U179: 9253036 | V179: Kirkby la Thorpe Primary Academy | W179: 104 | X179: 0 | Y179: 0 | Z179: 4 | AA179: 0.03846153846 | AB179: 11 | AC179: 0.1057692308 | AD179: 21 | AE179: 0.2019230769 | AF179: 68 | AG179: 0.6538461538 | AH179: 0.9564964353 | AI179: As expected | AJ179: 9253036 | AK179: Primary | AL179: 9253036 | AM179: Kirkby la Thorpe Primary Academy | AN179: 105 | AO179: 1 | AP179: 0.009523809524 | AQ179: 1 | AR179: 0.009523809524 | AS179: 13 | AT179: 0.1238095238 | AU179: 16 | AV179: 0.1523809524 | AW179: 74 | AX179: 0.7047619048 | AY179: 0.954590985 | AZ179: As expected
C180: Primary | D180: 9253036 | E180: Kirkby la Thorpe Primary Academy | F180: 124 | G180: 0 | H180: 0 | I180: 5 | J180: 0.04032258065 | K180: 12 | L180: 0.09677419355 | M180: 10 | N180: 0.08064516129 | O180: 97 | P180: 0.7822580645 | Q180: 0.9641464146 | R180: As expected | T180: Primary | U180: 9253037 | V180: LEASINGHAM ST. ANDREW'S C.E. PRIMARY | W180: 183 | X180: 1 | Y180: 0.005464480874 | Z180: 5 | AA180: 0.02732240437 | AB180: 16 | AC180: 0.08743169399 | AD180: 46 | AE180: 0.2513661202 | AF180: 115 | AG180: 0.6284153005 | AH180: 0.9523906908 | AI180: As expected | AJ180: 9253037 | AK180: Primary | AL180: 9253037 | AM180: LEASINGHAM ST. ANDREW'S C.E. PRIMARY | AN180: 183 | AO180: 1 | AP180: 0.005464480874 | AQ180: 2 | AR180: 0.01092896175 | AS180: 19 | AT180: 0.1038251366 | AU180: 46 | AV180: 0.2513661202 | AW180: 115 | AX180: 0.6284153005 | AY180: 0.953507109 | AZ180: As expected
C181: Primary | D181: 9253037 | E181: LEASINGHAM ST. ANDREW'S C.E. PRIMARY | F181: 207 | G181: 1 | H181: 0.004830917874 | I181: 8 | J181: 0.038647343 | K181: 19 | L181: 0.09178743961 | M181: 33 | N181: 0.1594202899 | O181: 146 | P181: 0.7053140097 | Q181: 0.9586614173 | R181: As expected | T181: Primary | U181: 9253040 | V181: Long Bennington Church of England Academy | W181: 241 | X181: 1 | Y181: 0.004149377593 | Z181: 5 | AA181: 0.02074688797 | AB181: 17 | AC181: 0.07053941909 | AD181: 47 | AE181: 0.1950207469 | AF181: 171 | AG181: 0.7095435685 | AH181: 0.9587619341 | AI181: As expected | AJ181: 9253040 | AK181: Primary | AL181: 9253040 | AM181: Long Bennington Church of England Academy | AN181: 237 | AO181: 2 | AP181: 0.008438818565 | AQ181: 6 | AR181: 0.0253164557 | AS181: 17 | AT181: 0.07172995781 | AU181: 45 | AV181: 0.1898734177 | AW181: 167 | AX181: 0.7046413502 | AY181: 0.9563957753 | AZ181: As expected
C182: Primary | D182: 9253040 | E182: Long Bennington Church of England Academy | F182: 279 | G182: 0 | H182: 0 | I182: 8 | J182: 0.02867383513 | K182: 32 | L182: 0.1146953405 | M182: 31 | N182: 0.1111111111 | O182: 208 | P182: 0.7455197133 | Q182: 0.9630492676 | R182: As expected | T182: Primary | U182: 9253041 | V182: MARTIN MRS.MARY KING'S CE.PRIMARY SCHOOL | W182: 96 | X182: 1 | Y182: 0.01041666667 | Z182: 3 | AA182: 0.03125 | AB182: 19 | AC182: 0.1979166667 | AD182: 16 | AE182: 0.1666666667 | AF182: 57 | AG182: 0.59375 | AH182: 0.9384191176 | AI182: At risk of persistent absence | AJ182: 9253041 | AK182: Primary | AL182: 9253041 | AM182: MARTIN MRS.MARY KING'S CE.PRIMARY SCHOOL | AN182: 94 | AO182: 1 | AP182: 0.01063829787 | AQ182: 3 | AR182: 0.03191489362 | AS182: 9 | AT182: 0.09574468085 | AU182: 15 | AV182: 0.1595744681 | AW182: 66 | AX182: 0.7021276596 | AY182: 0.9500371471 | AZ182: As expected
C183: Primary | D183: 9253041 | E183: MARTIN MRS.MARY KING'S CE.PRIMARY SCHOOL | F183: 104 | G183: 0 | H183: 0 | I183: 1 | J183: 0.009615384615 | K183: 7 | L183: 0.06730769231 | M183: 14 | N183: 0.1346153846 | O183: 82 | P183: 0.7884615385 | Q183: 0.9672863783 | R183: As expected | T183: Primary | U183: 9253044 | V183: The Morton Church of England (Controlled) Primary School | W183: 165 | X183: 2 | Y183: 0.01212121212 | Z183: 8 | AA183: 0.04848484848 | AB183: 25 | AC183: 0.1515151515 | AD183: 32 | AE183: 0.1939393939 | AF183: 98 | AG183: 0.5939393939 | AH183: 0.9383879719 | AI183: At risk of persistent absence | AJ183: 9253044 | AK183: Primary | AL183: 9253044 | AM183: The Morton Church of England (Controlled) Primary School | AN183: 167 | AO183: 1 | AP183: 0.005988023952 | AQ183: 5 | AR183: 0.02994011976 | AS183: 21 | AT183: 0.125748503 | AU183: 29 | AV183: 0.1736526946 | AW183: 111 | AX183: 0.6646706587 | AY183: 0.9531415835 | AZ183: As expected
C184: Primary | D184: 9253044 | E184: The Morton Church of England (Controlled) Primary School | F184: 161 | G184: 1 | H184: 0.006211180124 | I184: 13 | J184: 0.08074534161 | K184: 24 | L184: 0.149068323 | M184: 20 | N184: 0.1242236025 | O184: 103 | P184: 0.6397515528 | Q184: 0.9378034682 | R184: At risk of persistent absence | T184: Primary | U184: 9253045 | V184: Navenby Church of England Primary School | W184: 168 | X184: 0 | Y184: 0 | Z184: 4 | AA184: 0.02380952381 | AB184: 14 | AC184: 0.08333333333 | AD184: 31 | AE184: 0.1845238095 | AF184: 119 | AG184: 0.7083333333 | AH184: 0.958552401 | AI184: As expected | AJ184: 9253045 | AK184: Primary | AL184: 9253045 | AM184: Navenby Church of England Primary School | AN184: 169 | AO184: 0 | AP184: 0 | AQ184: 5 | AR184: 0.02958579882 | AS184: 21 | AT184: 0.124260355 | AU184: 43 | AV184: 0.2544378698 | AW184: 100 | AX184: 0.5917159763 | AY184: 0.9505358615 | AZ184: As expected
C185: Primary | D185: 9253045 | E185: Navenby Church of England Primary School | F185: 197 | G185: 0 | H185: 0 | I185: 7 | J185: 0.03553299492 | K185: 17 | L185: 0.08629441624 | M185: 16 | N185: 0.08121827411 | O185: 157 | P185: 0.7969543147 | Q185: 0.9626458412 | R185: As expected | T185: Primary | U185: 9253047 | V185: North Hykeham All Saints CE Primary | W185: 173 | X185: 2 | Y185: 0.01156069364 | Z185: 8 | AA185: 0.04624277457 | AB185: 32 | AC185: 0.1849710983 | AD185: 28 | AE185: 0.161849711 | AF185: 103 | AG185: 0.5953757225 | AH185: 0.9362332532 | AI185: At risk of persistent absence | AJ185: 9253047 | AK185: Primary | AL185: 9253047 | AM185: North Hykeham All Saints CE Primary | AN185: 175 | AO185: 2 | AP185: 0.01142857143 | AQ185: 6 | AR185: 0.03428571429 | AS185: 21 | AT185: 0.12 | AU185: 43 | AV185: 0.2457142857 | AW185: 103 | AX185: 0.5885714286 | AY185: 0.9442273001 | AZ185: At risk of persistent absence
C186: Primary | D186: 9253047 | E186: North Hykeham All Saints CE Primary | F186: 202 | G186: 6 | H186: 0.0297029703 | I186: 11 | J186: 0.05445544554 | K186: 17 | L186: 0.08415841584 | M186: 24 | N186: 0.1188118812 | O186: 144 | P186: 0.7128712871 | Q186: 0.9420945696 | R186: At risk of persistent absence | T186: Primary | U186: 9253050 | V186: Potterhanworth C.E. Primary School | W186: 111 | X186: 0 | Y186: 0 | Z186: 1 | AA186: 0.009009009009 | AB186: 18 | AC186: 0.1621621622 | AD186: 23 | AE186: 0.2072072072 | AF186: 69 | AG186: 0.6216216216 | AH186: 0.9529793003 | AI186: As expected | AJ186: 9253050 | AK186: Primary | AL186: 9253050 | AM186: Potterhanworth C.E. Primary School | AN186: 112 | AO186: 1 | AP186: 0.008928571429 | AQ186: 2 | AR186: 0.01785714286 | AS186: 17 | AT186: 0.1517857143 | AU186: 36 | AV186: 0.3214285714 | AW186: 56 | AX186: 0.5 | AY186: 0.939140625 | AZ186: At risk of persistent absence
C187: Primary | D187: 9253050 | E187: Potterhanworth C.E. Primary School | F187: 125 | G187: 0 | H187: 0 | I187: 3 | J187: 0.024 | K187: 24 | L187: 0.192 | M187: 12 | N187: 0.096 | O187: 86 | P187: 0.688 | Q187: 0.9504920966 | R187: As expected | T187: Primary | U187: 9253052 | V187: Ropsley Church of England Primary | W187: 98 | X187: 0 | Y187: 0 | Z187: 0 | AA187: 0 | AB187: 9 | AC187: 0.09183673469 | AD187: 18 | AE187: 0.1836734694 | AF187: 71 | AG187: 0.7244897959 | AH187: 0.9642103677 | AI187: As expected | AJ187: 9253052 | AK187: Primary | AL187: 9253052 | AM187: Ropsley Church of England Primary | AN187: 97 | AO187: 0 | AP187: 0 | AQ187: 1 | AR187: 0.01030927835 | AS187: 14 | AT187: 0.1443298969 | AU187: 24 | AV187: 0.2474226804 | AW187: 58 | AX187: 0.5979381443 | AY187: 0.9485856609 | AZ187: At risk of persistent absence
C188: Primary | D188: 9253052 | E188: Ropsley Church of England Primary | F188: 112 | G188: 0 | H188: 0 | I188: 1 | J188: 0.008928571429 | K188: 11 | L188: 0.09821428571 | M188: 9 | N188: 0.08035714286 | O188: 91 | P188: 0.8125 | Q188: 0.9692460317 | R188: As expected | T188: Primary | U188: 9253056 | V188: Saint Lawrence Church of England Primary School | W188: 179 | X188: 0 | Y188: 0 | Z188: 4 | AA188: 0.02234636872 | AB188: 17 | AC188: 0.09497206704 | AD188: 34 | AE188: 0.1899441341 | AF188: 124 | AG188: 0.6927374302 | AH188: 0.9570083423 | AI188: As expected | AJ188: 9253056 | AK188: Primary | AL188: 9253056 | AM188: Saint Lawrence Church of England Primary School | AN188: 180 | AO188: 1 | AP188: 0.005555555556 | AQ188: 2 | AR188: 0.01111111111 | AS188: 27 | AT188: 0.15 | AU188: 49 | AV188: 0.2722222222 | AW188: 101 | AX188: 0.5611111111 | AY188: 0.9467810322 | AZ188: At risk of persistent absence
C189: Primary | D189: 9253056 | E189: Saint Lawrence Church of England Primary School | F189: 202 | G189: 2 | H189: 0.009900990099 | I189: 18 | J189: 0.08910891089 | K189: 30 | L189: 0.1485148515 | M189: 25 | N189: 0.1237623762 | O189: 127 | P189: 0.6287128713 | Q189: 0.9321598827 | R189: At risk of persistent absence | T189: Primary | U189: 9253066 | V189: Swinderby All Saints CE Primary School | W189: 71 | X189: 0 | Y189: 0 | Z189: 1 | AA189: 0.01408450704 | AB189: 10 | AC189: 0.1408450704 | AD189: 12 | AE189: 0.1690140845 | AF189: 48 | AG189: 0.676056338 | AH189: 0.9539573 | AI189: As expected | AJ189: 9253066 | AK189: Primary | AL189: 9253066 | AM189: Swinderby All Saints CE Primary School | AN189: 73 | AO189: 0 | AP189: 0 | AQ189: 2 | AR189: 0.02739726027 | AS189: 5 | AT189: 0.06849315068 | AU189: 13 | AV189: 0.1780821918 | AW189: 53 | AX189: 0.7260273973 | AY189: 0.9623501199 | AZ189: As expected
C190: Primary | D190: 9253066 | E190: Swinderby All Saints CE Primary School | F190: 77 | G190: 0 | H190: 0 | I190: 4 | J190: 0.05194805195 | K190: 10 | L190: 0.1298701299 | M190: 7 | N190: 0.09090909091 | O190: 56 | P190: 0.7272727273 | Q190: 0.9514189514 | R190: As expected | T190: Primary | U190: 9253068 | V190: ST. MICHAEL'S CE PRIMARY SCHOOL | W190: 168 | X190: 1 | Y190: 0.005952380952 | Z190: 3 | AA190: 0.01785714286 | AB190: 23 | AC190: 0.1369047619 | AD190: 43 | AE190: 0.255952381 | AF190: 98 | AG190: 0.5833333333 | AH190: 0.9445495753 | AI190: At risk of persistent absence | AJ190: 9253068 | AK190: Primary | AL190: 9253068 | AM190: ST. MICHAEL'S CE PRIMARY SCHOOL | AN190: 168 | AO190: 1 | AP190: 0.005952380952 | AQ190: 3 | AR190: 0.01785714286 | AS190: 17 | AT190: 0.1011904762 | AU190: 34 | AV190: 0.2023809524 | AW190: 113 | AX190: 0.6726190476 | AY190: 0.9521784232 | AZ190: As expected
C191: Primary | D191: 9253068 | E191: ST. MICHAEL'S CE PRIMARY SCHOOL | F191: 197 | G191: 2 | H191: 0.01015228426 | I191: 16 | J191: 0.08121827411 | K191: 24 | L191: 0.1218274112 | M191: 16 | N191: 0.08121827411 | O191: 139 | P191: 0.7055837563 | Q191: 0.9431239389 | R191: At risk of persistent absence | T191: Primary | U191: 9253070 | V191: The Uffington Church of England Primary School | W191: 77 | X191: 0 | Y191: 0 | Z191: 1 | AA191: 0.01298701299 | AB191: 10 | AC191: 0.1298701299 | AD191: 18 | AE191: 0.2337662338 | AF191: 48 | AG191: 0.6233766234 | AH191: 0.957568581 | AI191: As expected | AJ191: 9253070 | AK191: Primary | AL191: 9253070 | AM191: The Uffington Church of England Primary School | AN191: 80 | AO191: 0 | AP191: 0 | AQ191: 1 | AR191: 0.0125 | AS191: 15 | AT191: 0.1875 | AU191: 19 | AV191: 0.2375 | AW191: 45 | AX191: 0.5625 | AY191: 0.9508083141 | AZ191: As expected
C192: Primary | D192: 9253070 | E192: The Uffington Church of England Primary School | F192: 101 | G192: 0 | H192: 0 | I192: 5 | J192: 0.0495049505 | K192: 13 | L192: 0.1287128713 | M192: 6 | N192: 0.05940594059 | O192: 77 | P192: 0.7623762376 | Q192: 0.9560498221 | R192: As expected | T192: Primary | U192: 9253071 | V192: WELBOURN CE PRIMARY SCHOOL | W192: 51 | X192: 0 | Y192: 0 | Z192: 3 | AA192: 0.05882352941 | AB192: 9 | AC192: 0.1764705882 | AD192: 10 | AE192: 0.1960784314 | AF192: 29 | AG192: 0.568627451 | AH192: 0.9369760479 | AI192: At risk of persistent absence | AJ192: 9253071 | AK192: Primary | AL192: 9253071 | AM192: WELBOURN CE PRIMARY SCHOOL | AN192: 52 | AO192: 0 | AP192: 0 | AQ192: 2 | AR192: 0.03846153846 | AS192: 13 | AT192: 0.25 | AU192: 11 | AV192: 0.2115384615 | AW192: 26 | AX192: 0.5 | AY192: 0.9407233758 | AZ192: At risk of persistent absence
C193: Primary | D193: 9253071 | E193: WELBOURN CE PRIMARY SCHOOL | F193: 63 | G193: 1 | H193: 0.01587301587 | I193: 7 | J193: 0.1111111111 | K193: 17 | L193: 0.2698412698 | M193: 9 | N193: 0.1428571429 | O193: 29 | P193: 0.4603174603 | Q193: 0.9131718842 | R193: At risk of persistent absence | T193: Primary | U193: 9253077 | V193: St Gilbert's C of E Primary School | W193: 271 | X193: 3 | Y193: 0.0110701107 | Z193: 11 | AA193: 0.0405904059 | AB193: 59 | AC193: 0.2177121771 | AD193: 58 | AE193: 0.2140221402 | AF193: 140 | AG193: 0.5166051661 | AH193: 0.9318944185 | AI193: At risk of persistent absence | AJ193: 9253077 | AK193: Primary | AL193: 9253077 | AM193: St Gilbert's C of E Primary School | AN193: 268 | AO193: 2 | AP193: 0.007462686567 | AQ193: 8 | AR193: 0.02985074627 | AS193: 24 | AT193: 0.08955223881 | AU193: 51 | AV193: 0.1902985075 | AW193: 183 | AX193: 0.6828358209 | AY193: 0.9556711082 | AZ193: As expected
C194: Primary | D194: 9253077 | E194: St Gilbert's C of E Primary School | F194: 313 | G194: 1 | H194: 0.003194888179 | I194: 11 | J194: 0.03514376997 | K194: 24 | L194: 0.07667731629 | M194: 28 | N194: 0.08945686901 | O194: 249 | P194: 0.7955271565 | Q194: 0.9648507196 | R194: As expected | T194: Primary | U194: 9253078 | V194: Claypole Church of England School | W194: 142 | X194: 0 | Y194: 0 | Z194: 0 | AA194: 0 | AB194: 16 | AC194: 0.1126760563 | AD194: 29 | AE194: 0.2042253521 | AF194: 97 | AG194: 0.6830985915 | AH194: 0.9614999209 | AI194: As expected | AJ194: 9253078 | AK194: Primary | AL194: 9253078 | AM194: Claypole Church of England School | AN194: 140 | AO194: 0 | AP194: 0 | AQ194: 1 | AR194: 0.007142857143 | AS194: 17 | AT194: 0.1214285714 | AU194: 25 | AV194: 0.1785714286 | AW194: 97 | AX194: 0.6928571429 | AY194: 0.9616955446 | AZ194: As expected
C195: Primary | D195: 9253078 | E195: Claypole Church of England School | F195: 153 | G195: 0 | H195: 0 | I195: 6 | J195: 0.03921568627 | K195: 21 | L195: 0.137254902 | M195: 23 | N195: 0.1503267974 | O195: 103 | P195: 0.6732026144 | Q195: 0.9545344326 | R195: As expected | T195: Primary | U195: 9253085 | V195: St Thomas CofE Primary Academy | W195: 353 | X195: 1 | Y195: 0.00283286119 | Z195: 11 | AA195: 0.03116147309 | AB195: 59 | AC195: 0.1671388102 | AD195: 84 | AE195: 0.2379603399 | AF195: 198 | AG195: 0.5609065156 | AH195: 0.9409515264 | AI195: At risk of persistent absence | AJ195: 9253085 | AK195: Primary | AL195: 9253085 | AM195: St Thomas CofE Primary Academy | AN195: 351 | AO195: 2 | AP195: 0.005698005698 | AQ195: 7 | AR195: 0.01994301994 | AS195: 44 | AT195: 0.1253561254 | AU195: 69 | AV195: 0.1965811966 | AW195: 229 | AX195: 0.6524216524 | AY195: 0.9547262313 | AZ195: As expected
C196: Primary | D196: 9253085 | E196: St Thomas CofE Primary Academy | F196: 413 | G196: 6 | H196: 0.01452784504 | I196: 20 | J196: 0.04842615012 | K196: 57 | L196: 0.1380145278 | M196: 45 | N196: 0.1089588378 | O196: 284 | P196: 0.6876513317 | Q196: 0.9419419419 | R196: At risk of persistent absence | T196: Primary | U196: 9253088 | V196: Gedney Hill C of E Primary School | W196: 64 | X196: 2 | Y196: 0.03125 | Z196: 2 | AA196: 0.03125 | AB196: 20 | AC196: 0.3125 | AD196: 18 | AE196: 0.28125 | AF196: 22 | AG196: 0.34375 | AH196: 0.918238243 | AI196: At risk of persistent absence | AJ196: 9253088 | AK196: Primary | AL196: 9253088 | AM196: Gedney Hill C of E Primary School | AN196: 64 | AO196: 1 | AP196: 0.015625 | AQ196: 1 | AR196: 0.015625 | AS196: 9 | AT196: 0.140625 | AU196: 20 | AV196: 0.3125 | AW196: 33 | AX196: 0.515625 | AY196: 0.9415841584 | AZ196: At risk of persistent absence
C197: Primary | D197: 9253088 | E197: Gedney Hill C of E Primary School | F197: 71 | G197: 2 | H197: 0.02816901408 | I197: 3 | J197: 0.04225352113 | K197: 9 | L197: 0.1267605634 | M197: 12 | N197: 0.1690140845 | O197: 45 | P197: 0.6338028169 | Q197: 0.9422675026 | R197: At risk of persistent absence | T197: Primary | U197: 9253089 | V197: Holbeach St Marks CE Primary School | W197: 34 | X197: 0 | Y197: 0 | Z197: 2 | AA197: 0.05882352941 | AB197: 3 | AC197: 0.08823529412 | AD197: 6 | AE197: 0.1764705882 | AF197: 23 | AG197: 0.6764705882 | AH197: 0.9526967286 | AI197: As expected | AJ197: 9253089 | AK197: Primary | AL197: 9253089 | AM197: Holbeach St Marks CE Primary School | AN197: 35 | AO197: 0 | AP197: 0 | AQ197: 2 | AR197: 0.05714285714 | AS197: 10 | AT197: 0.2857142857 | AU197: 10 | AV197: 0.2857142857 | AW197: 13 | AX197: 0.3714285714 | AY197: 0.9246178176 | AZ197: At risk of persistent absence
C198: Primary | D198: 9253089 | E198: Holbeach St Marks CE Primary School | F198: 38 | G198: 0 | H198: 0 | I198: 1 | J198: 0.02631578947 | K198: 7 | L198: 0.1842105263 | M198: 0 | N198: 0 | O198: 30 | P198: 0.7894736842 | Q198: 0.9519136408 | R198: As expected | T198: Primary | U198: 9253091 | V198: Pinchbeck East C of E Primary Academy | W198: 350 | X198: 1 | Y198: 0.002857142857 | Z198: 13 | AA198: 0.03714285714 | AB198: 60 | AC198: 0.1714285714 | AD198: 80 | AE198: 0.2285714286 | AF198: 196 | AG198: 0.56 | AH198: 0.9437070647 | AI198: At risk of persistent absence | AJ198: 9253091 | AK198: Primary | AL198: 9253091 | AM198: Pinchbeck East C of E Primary Academy | AN198: 350 | AO198: 0 | AP198: 0 | AQ198: 7 | AR198: 0.02 | AS198: 36 | AT198: 0.1028571429 | AU198: 60 | AV198: 0.1714285714 | AW198: 247 | AX198: 0.7057142857 | AY198: 0.9613133618 | AZ198: As expected
C199: Primary | D199: 9253091 | E199: Pinchbeck East C of E Primary Academy | F199: 400 | G199: 0 | H199: 0 | I199: 17 | J199: 0.0425 | K199: 42 | L199: 0.105 | M199: 37 | N199: 0.0925 | O199: 304 | P199: 0.76 | Q199: 0.9624363131 | R199: As expected | T199: Primary | U199: 9253092 | V199: St Bartholomews CE Primary School | W199: 89 | X199: 0 | Y199: 0 | Z199: 8 | AA199: 0.08988764045 | AB199: 24 | AC199: 0.2696629213 | AD199: 19 | AE199: 0.2134831461 | AF199: 38 | AG199: 0.4269662921 | AH199: 0.915698414 | AI199: At risk of persistent absence | AJ199: 9253092 | AK199: Primary | AL199: 9253092 | AM199: St Bartholomews CE Primary School | AN199: 94 | AO199: 2 | AP199: 0.02127659574 | AQ199: 5 | AR199: 0.05319148936 | AS199: 11 | AT199: 0.1170212766 | AU199: 19 | AV199: 0.2021276596 | AW199: 57 | AX199: 0.6063829787 | AY199: 0.9315055762 | AZ199: At risk of persistent absence
C200: Primary | D200: 9253092 | E200: St Bartholomews CE Primary School | F200: 100 | G200: 1 | H200: 0.01 | I200: 7 | J200: 0.07 | K200: 15 | L200: 0.15 | M200: 7 | N200: 0.07 | O200: 70 | P200: 0.7 | Q200: 0.9498670718 | R200: At risk of persistent absence | T200: Primary | U200: 9253093 | V200: Quadring Cowley and Brown's Primary School | W200: 92 | X200: 0 | Y200: 0 | Z200: 1 | AA200: 0.01086956522 | AB200: 11 | AC200: 0.1195652174 | AD200: 26 | AE200: 0.2826086957 | AF200: 54 | AG200: 0.5869565217 | AH200: 0.9543781015 | AI200: As expected | AJ200: 9253093 | AK200: Primary | AL200: 9253093 | AM200: Quadring Cowley and Brown's Primary School | AN200: 94 | AO200: 0 | AP200: 0 | AQ200: 3 | AR200: 0.03191489362 | AS200: 14 | AT200: 0.1489361702 | AU200: 18 | AV200: 0.1914893617 | AW200: 59 | AX200: 0.6276595745 | AY200: 0.9551988053 | AZ200: As expected
C201: Primary | D201: 9253093 | E201: Quadring Cowley and Brown's Primary School | F201: 107 | G201: 0 | H201: 0 | I201: 4 | J201: 0.03738317757 | K201: 12 | L201: 0.1121495327 | M201: 14 | N201: 0.1308411215 | O201: 77 | P201: 0.7196261682 | Q201: 0.9597802977 | R201: As expected | T201: Primary | U201: 9253096 | V201: Weston Hills C. E. Primary School | W201: 116 | X201: 0 | Y201: 0 | Z201: 3 | AA201: 0.02586206897 | AB201: 11 | AC201: 0.09482758621 | AD201: 18 | AE201: 0.1551724138 | AF201: 84 | AG201: 0.724137931 | AH201: 0.9622690947 | AI201: As expected | AJ201: 9253096 | AK201: Primary | AL201: 9253096 | AM201: Weston Hills C. E. Primary School | AN201: 116 | AO201: 1 | AP201: 0.008620689655 | AQ201: 4 | AR201: 0.03448275862 | AS201: 20 | AT201: 0.1724137931 | AU201: 24 | AV201: 0.2068965517 | AW201: 67 | AX201: 0.5775862069 | AY201: 0.9493862706 | AZ201: At risk of persistent absence
C202: Primary | D202: 9253096 | E202: Weston Hills C. E. Primary School | F202: 134 | G202: 1 | H202: 0.007462686567 | I202: 3 | J202: 0.0223880597 | K202: 5 | L202: 0.03731343284 | M202: 8 | N202: 0.05970149254 | O202: 117 | P202: 0.8731343284 | Q202: 0.9748603352 | R202: As expected | T202: Primary | U202: 9253097 | V202: Whaplode Church of England Primary School | W202: 173 | X202: 2 | Y202: 0.01156069364 | Z202: 7 | AA202: 0.04046242775 | AB202: 34 | AC202: 0.1965317919 | AD202: 20 | AE202: 0.1156069364 | AF202: 110 | AG202: 0.6358381503 | AH202: 0.9407147194 | AI202: At risk of persistent absence | AJ202: 9253097 | AK202: Primary | AL202: 9253097 | AM202: Whaplode Church of England Primary School | AN202: 177 | AO202: 0 | AP202: 0 | AQ202: 2 | AR202: 0.01129943503 | AS202: 34 | AT202: 0.1920903955 | AU202: 31 | AV202: 0.1751412429 | AW202: 110 | AX202: 0.6214689266 | AY202: 0.9485441767 | AZ202: At risk of persistent absence
... 166 more rows

Sheet School List (hidden)
A1: List of open schools in Lincolnshire - Detailed
A3: Click in cell and use drop-down arrow on right to select school | B3: DfE Number | C3: Ofsted URN | D3: District Name | E3: Post Code | F3: Main Phase | G3: Sub Phase | H3: Intake Type (Secondary Schools Only) | I3: Sixth Form ? | J3: School Type | K3: Open Date
A4: Acorn Free School | B4: 9251106 | C4: 139774 | D4: Countywide | E4: LN5 9TL | F4: PRU / AP | G4: PRU / AP | H4: - | I4: - | J4: Free School - Alternative Provision | K4: 2013-09-02
A5: Alford Primary School | B5: 9252142 | C5: 120440 | D5: East Lindsey District Council | E5: LN13 9BJ | F5: Primary | G5: Primary | H5: - | I5: - | J5: Maintained | K5: -
A6: Allington with Sedgebrook Church of England Primary School | B6: 9253000 | C6: 120511 | D6: South Kesteven District Council | E6: NG32 2DY | F6: Primary | G6: Primary | H6: - | I6: - | J6: Maintained | K6: -
A7: Ancaster CofE Primary School | B7: 9253001 | C7: 120512 | D7: South Kesteven District Council | E7: NG32 3QQ | F7: Primary | G7: Primary | H7: - | I7: - | J7: Maintained | K7: -
A8: Aspiration House School | B8: 9256058 | C8: 148189 | D8: Boston Borough Council | E8: PE22 0NX | F8: Not applicable | G8: Not applicable | H8: Special | I8: No | J8: Independent | K8: 2021-01-29
A9: Ayscoughfee Hall School | B9: 9256020 | C9: 120731 | D9: South Holland District Council | E9: PE11 2TE | F9: Not applicable | G9: Not applicable | I9: No | J9: Independent | K9: 1957-10-28
A10: Barkston and Syston CofE Primary School | B10: 9255222 | C10: 120689 | D10: South Kesteven District Council | E10: NG32 2NB | F10: Primary | G10: Primary | H10: - | I10: - | J10: Maintained | K10: -
A11: Barrowby Church of England Primary School | B11: 9253004 | C11: 120513 | D11: South Kesteven District Council | E11: NG32 1BX | F11: Primary | G11: Primary | H11: - | I11: - | J11: Maintained | K11: -
A12: Bassingham Primary School | B12: 9252002 | C12: 145437 | D12: North Kesteven District Council | E12: LN5 9HQ | F12: Primary | G12: Primary | H12: - | I12: - | J12: Academy | K12: 2018-03-01
A13: Baston CE Primary School | B13: 9253005 | C13: 120514 | D13: South Kesteven District Council | E13: PE6 9PB | F13: Primary | G13: Primary | H13: - | I13: - | J13: Maintained | K13: -
A14: Beacon Primary Academy | B14: 9252014 | C14: 139702 | D14: East Lindsey District Council | E14: PE25 2RN | F14: Primary | G14: Primary | H14: - | I14: - | J14: Academy | K14: 2014-09-01
A15: Bicker Preparatory School and Early Years | B15: 9256041 | C15: 130283 | D15: Boston Borough Council | E15: PE20 3DW | F15: Not applicable | G15: Not applicable | I15: No | J15: Independent | K15: 1996-01-23
A16: Billingborough Primary School | B16: 9252003 | C16: 120371 | D16: South Kesteven District Council | E16: NG34 0NX | F16: Primary | G16: Primary | H16: - | I16: - | J16: Maintained | K16: -
A17: Binbrook CofE Primary School | B17: 9253116 | C17: 120565 | D17: East Lindsey District Council | E17: LN8 6DU | F17: Primary | G17: Primary | H17: - | I17: - | J17: Maintained | K17: -
A18: Blyton Cum Laughton Church of England School | B18: 9253350 | C18: 120619 | D18: West Lindsey District Council | E18: DN21 3JX | F18: Primary | G18: Primary | H18: - | I18: - | J18: Maintained | K18: -
A19: Boston Haven High Academy | B19: 9254072 | C19: 138754 | D19: Boston Borough Council | E19: PE21 9HB | F19: Secondary | G19: Secondary | H19: Selective Area | I19: No | J19: Academy | K19: 2012-09-01
A20: Boston Hawthorn Tree School | B20: 9252113 | C20: 120424 | D20: Boston Borough Council | E20: PE21 0PT | F20: Primary | G20: Primary | H20: - | I20: - | J20: Maintained | K20: -
A21: Boston High School | B21: 9254022 | C21: 139140 | D21: Boston Borough Council | E21: PE21 9PF | F21: Secondary | G21: Secondary | H21: Grammar | I21: Yes | J21: Academy | K21: 2013-01-01
A22: Boston Nursery School | B22: 9251012 | C22: 126564 | D22: Boston Borough Council | E22: PE21 0LJ | F22: Nursery | G22: Nursery | H22: - | I22: - | J22: Maintained | K22: -
A23: Boston Park Academy | B23: 9252237 | C23: 139191 | D23: Boston Borough Council | E23: PE21 9LQ | F23: Primary | G23: Primary | H23: - | I23: - | J23: Academy | K23: 2013-01-01
A24: Boston Pioneers Free School Academy | B24: 9252010 | C24: 139597 | D24: Boston Borough Council | E24: PE21 8SS | F24: Primary | G24: Primary | H24: - | I24: - | J24: Free School | K24: 2013-09-03
A25: Boston St Mary's RC Primary Voluntary Academy | B25: 9253342 | C25: 146241 | D25: Boston Borough Council | E25: PE21 9PX | F25: Primary | G25: Primary | H25: - | I25: - | J25: Academy | K25: 2018-09-01
A26: Boston St Nicholas CE Primary | B26: 9252073 | C26: 147447 | D26: Boston Borough Council | E26: PE21 0EF | F26: Primary | G26: Primary | H26: - | I26: - | J26: Academy | K26: 2019-09-01
A27: Boston St Thomas CofE Primary | B27: 9253085 | C27: 146869 | D27: Boston Borough Council | E27: PE21 7RZ | F27: Primary | G27: Primary | H27: - | I27: - | J27: Academy | K27: 2019-04-01
A28: Boston The John Fielding Special School | B28: 9257010 | C28: 142666 | D28: Boston Borough Council | E28: PE21 9PX | F28: Special | G28: Special | H28: - | I28: - | J28: Academy | K28: 2016-03-01
A29: Boston Tower Road Academy | B29: 9255221 | C29: 136793 | D29: Boston Borough Council | E29: PE21 9PX | F29: Primary | G29: Primary | H29: - | I29: - | J29: Academy | K29: 2011-06-01
A30: Boston West Academy | B30: 9252116 | C30: 138291 | D30: Boston Borough Council | E30: PE21 7QG | F30: Primary | G30: Primary | H30: - | I30: - | J30: Academy | K30: 2012-07-01
A31: Bourne Abbey Church of England Primary Academy | B31: 9253510 | C31: 136354 | D31: South Kesteven District Council | E31: PE10 9EP | F31: Primary | G31: Primary | H31: - | I31: - | J31: Academy | K31: 2010-12-01
A32: Bourne Academy | B32: 9254000 | C32: 137572 | D32: South Kesteven District Council | E32: PE10 9DT | F32: Secondary | G32: Secondary | H32: Selective Area | I32: Yes | J32: Academy | K32: 2011-09-01
A33: Bourne Elsea Park Church of England Primary Academy | B33: 9252016 | C33: 140214 | D33: South Kesteven District Council | E33: PE10 0WP | F33: Primary | G33: Primary | H33: - | I33: - | J33: Academy | K33: 2014-09-01
A34: Bourne Grammar School | B34: 9254501 | C34: 137793 | D34: South Kesteven District Council | E34: PE10 9JE | F34: Secondary | G34: Secondary | H34: Grammar | I34: Yes | J34: Academy | K34: 2012-01-01
A35: Bourne Westfield Primary Academy | B35: 9252072 | C35: 137599 | D35: South Kesteven District Council | E35: PE10 9QS | F35: Primary | G35: Primary | H35: - | I35: - | J35: Academy | K35: 2011-11-01
A36: Bourne Willoughby Academy | B36: 9257028 | C36: 147414 | D36: South Kesteven District Council | E36: PE10 9JD | F36: Special | G36: Special | H36: - | I36: - | J36: Academy | K36: 2019-09-01
A37: Bracebridge Heath St John's Primary Academy | B37: 9252009 | C37: 137794 | D37: North Kesteven District Council | E37: LN4 2LD | F37: Primary | G37: Primary | H37: - | I37: - | J37: Academy | K37: 2012-01-01
A38: Branston Church of England Infant Academy | B38: 9253009 | C38: 144122 | D38: North Kesteven District Council | E38: LN4 1PR | F38: Primary | G38: Infant | H38: - | I38: - | J38: Academy | K38: 2017-07-01
A39: Branston Community Academy | B39: 9255418 | C39: 136358 | D39: North Kesteven District Council | E39: LN4 1LH | F39: Secondary | G39: Secondary | H39: Comprehensive | I39: Yes | J39: Academy | K39: 2010-12-01
A40: Branston Junior Academy | B40: 9252074 | C40: 138486 | D40: North Kesteven District Council | E40: LN4 1LH | F40: Primary | G40: Junior | H40: - | I40: - | J40: Academy | K40: 2012-08-01
A41: Brant Broughton Church of England and Methodist Primary School | B41: 9253163 | C41: 120594 | D41: North Kesteven District Council | E41: LN5 0RP | F41: Primary | G41: Primary | H41: - | I41: - | J41: Maintained | K41: -
A42: Bridge House Independent School | B42: 9256005 | C42: 139264 | D42: Boston Borough Council | E42: PE21 7NL | F42: Not applicable | G42: Not applicable | I42: Yes | J42: Independent | K42: 2013-01-17
A43: Bucknall Primary School | B43: 9252146 | C43: 120443 | D43: East Lindsey District Council | E43: LN10 5DT | F43: Primary | G43: Primary | H43: - | I43: - | J43: Maintained | K43: -
A44: Build-a-Future Independent School | B44: 9256009 | C44: 145932 | D44: East Lindsey District Council | E44: LN9 5PT | F44: Not applicable | G44: Not applicable | I44: No | J44: Independent | K44: 2018-08-31
A45: Burgh le Marsh The St Peter and St Paul C of E Primary School | B45: 9253118 | C45: 120566 | D45: East Lindsey District Council | E45: PE24 5ED | F45: Primary | G45: Primary | H45: - | I45: - | J45: Maintained | K45: -
A46: Burton Hathow Preparatory School | B46: 9256004 | C46: 139235 | D46: West Lindsey District Council | E46: LN1 2BB | F46: Not applicable | G46: Not applicable | I46: No | J46: Independent | K46: 2013-01-09
A47: Bythams Primary School | B47: 9252243 | C47: 120506 | D47: South Kesteven District Council | E47: NG33 4PX | F47: Primary | G47: Primary | H47: - | I47: - | J47: Maintained | K47: -
A48: Caistor CofE and Methodist Primary School | B48: 9253156 | C48: 120590 | D48: West Lindsey District Council | E48: LN7 6LY | F48: Primary | G48: Primary | H48: - | I48: - | J48: Maintained | K48: -
A49: Caistor Grammar School | B49: 9255406 | C49: 136350 | D49: West Lindsey District Council | E49: LN7 6QJ | F49: Secondary | G49: Secondary | H49: Grammar | I49: Yes | J49: Academy | K49: 2010-12-01
A50: Caistor Yarborough Academy | B50: 9254049 | C50: 136958 | D50: West Lindsey District Council | E50: LN7 6QZ | F50: Secondary | G50: Secondary | H50: Selective Area | I50: No | J50: Academy | K50: 2011-08-01
A51: Carlton Road Academy | B51: 9252234 | C51: 138751 | D51: Boston Borough Council | E51: PE21 8QX | F51: Primary | G51: Primary | H51: - | I51: - | J51: Academy | K51: 2012-09-01
A52: Castle Futures | B52: 9256018 | C52: 147170 | D52: City of Lincoln Council | E52: LN2 2JN | F52: Not applicable | G52: Not applicable | I52: No | J52: Independent | K52: 2019-08-12
A53: Castle Wood Academy | B53: 9252018 | C53: 140329 | D53: West Lindsey District Council | E53: DN21 1EH | F53: Primary | G53: Primary | H53: - | I53: - | J53: Academy | K53: 2015-09-01
A54: Caythorpe Primary School | B54: 9252012 | C54: 144594 | D54: South Kesteven District Council | E54: NG32 3DR | F54: Primary | G54: Primary | H54: - | I54: - | J54: Academy | K54: 2017-12-01
A55: Chapel St Leonards Primary School | B55: 9252045 | C55: 145489 | D55: East Lindsey District Council | E55: PE24 5LS | F55: Primary | G55: Primary | H55: - | I55: - | J55: Academy | K55: 2018-03-01
A56: Charles Read Academy | B56: 9254017 | C56: 136479 | D56: South Kesteven District Council | E56: NG33 4NT | F56: Secondary | G56: Secondary | H56: Selective Area | I56: No | J56: Academy | K56: 2011-02-01
A57: Cherry Willingham Primary Academy | B57: 9252241 | C57: 146205 | D57: West Lindsey District Council | E57: LN3 4BD | F57: Primary | G57: Primary | H57: - | I57: - | J57: Academy | K57: 2019-09-01
A58: Cherry Willingham The Priory Pembroke Academy | B58: 9254041 | C58: 145052 | D58: West Lindsey District Council | E58: LN3 4JP | F58: Secondary | G58: Secondary | H58: Comprehensive | I58: No | J58: Academy | K58: 2017-09-01
A59: Coleby Church of England Primary School | B59: 9253015 | C59: 120517 | D59: North Kesteven District Council | E59: LN5 0AJ | F59: Primary | G59: Primary | H59: - | I59: - | J59: Maintained | K59: -
A60: Coningsby St Michael's Church of England Primary School | B60: 9253119 | C60: 145527 | D60: East Lindsey District Council | E60: LN4 4SJ | F60: Primary | G60: Primary | H60: - | I60: - | J60: Academy | K60: 2018-03-01
A61: Copthill Independent Day School & Nursery | B61: 9256035 | C61: 120741 | D61: South Kesteven District Council | E61: PE9 3AD | F61: Not applicable | G61: Not applicable | I61: No | J61: Independent | K61: 1987-03-25
A62: Corby Glen Community Primary School | B62: 9252013 | C62: 120374 | D62: South Kesteven District Council | E62: NG33 4NW | F62: Primary | G62: Primary | H62: - | I62: - | J62: Maintained | K62: -
A63: Corringham CofE Primary School | B63: 9253120 | C63: 120568 | D63: West Lindsey District Council | E63: DN21 5QS | F63: Primary | G63: Primary | H63: - | I63: - | J63: Maintained | K63: -
A64: Cowley Academy | B64: 9254057 | C64: 138755 | D64: South Holland District Council | E64: PE11 4TF | F64: Secondary | G64: Secondary | H64: Selective Area | I64: No | J64: Academy | K64: 2012-09-01
A65: Cranwell Primary School | B65: 9255207 | C65: 120674 | D65: North Kesteven District Council | E65: NG34 8HH | F65: Primary | G65: Primary | H65: - | I65: - | J65: Maintained | K65: -
A66: Crowland South View Community Primary School | B66: 9252084 | C66: 120406 | D66: South Holland District Council | E66: PE6 0JA | F66: Primary | G66: Primary | H66: - | I66: - | J66: Maintained | K66: -
A67: Deeping St James Community Primary School | B67: 9252062 | C67: 120396 | D67: South Kesteven District Council | E67: PE6 8PZ | F67: Primary | G67: Primary | H67: - | I67: - | J67: Maintained | K67: -
A68: Deeping St James Linchfield Academy | B68: 9252079 | C68: 147677 | D68: South Kesteven District Council | E68: PE6 8EY | F68: Primary | G68: Primary | H68: - | I68: - | J68: Academy | K68: 2020-09-01
A69: Deeping St Nicholas Primary School | B69: 9252085 | C69: 120407 | D69: South Holland District Council | E69: PE11 3DG | F69: Primary | G69: Primary | H69: - | I69: - | J69: Maintained | K69: -
A70: Denton CofE School | B70: 9253017 | C70: 120518 | D70: South Kesteven District Council | E70: NG32 1LG | F70: Primary | G70: Primary | H70: - | I70: - | J70: Maintained | K70: -
A71: Digby Church of England School | B71: 9253018 | C71: 120519 | D71: North Kesteven District Council | E71: LN4 3LZ | F71: Primary | G71: Primary | H71: - | I71: - | J71: Maintained | K71: -
A72: Digby The Tedder Primary School | B72: 9252017 | C72: 120375 | D72: North Kesteven District Council | E72: LN4 3JY | F72: Primary | G72: Primary | H72: - | I72: - | J72: Maintained | K72: -
A73: Dudley House School | B73: 9256016 | C73: 120728 | D73: South Kesteven District Council | E73: NG31 9AA | F73: Not applicable | G73: Not applicable | I73: No | J73: Independent | K73: 1966-09-27
A74: Dunholme St Chad's Church of England Primary School | B74: 9253121 | C74: 120569 | D74: West Lindsey District Council | E74: LN2 3NE | F74: Primary | G74: Primary | H74: - | I74: - | J74: Maintained | K74: -
A75: Dunston St Peter's Church of England Primary School | B75: 9253021 | C75: 120520 | D75: North Kesteven District Council | E75: LN4 2EH | F75: Primary | G75: Primary | H75: - | I75: - | J75: Maintained | K75: -
A76: Eagle Community Primary School | B76: 9252019 | C76: 120376 | D76: North Kesteven District Council | E76: LN6 9EJ | F76: Primary | G76: Primary | H76: - | I76: - | J76: Maintained | K76: -
A77: Faldingworth Community Primary School | B77: 9252151 | C77: 120445 | D77: West Lindsey District Council | E77: LN8 3SF | F77: Primary | G77: Primary | H77: - | I77: - | J77: Maintained | K77: -
A78: Fishtoft Academy | B78: 9252007 | C78: 139266 | D78: Boston Borough Council | E78: PE21 0SF | F78: Primary | G78: Primary | H78: - | I78: - | J78: Academy | K78: 2013-02-01
A79: Fiskerton Church of England Primary School | B79: 9253122 | C79: 120570 | D79: West Lindsey District Council | E79: LN3 4HU | F79: Primary | G79: Primary | H79: - | I79: - | J79: Maintained | K79: -
A80: Fleet Wood Lane School | B80: 9252087 | C80: 120408 | D80: South Holland District Council | E80: PE12 8NN | F80: Primary | G80: Primary | H80: - | I80: - | J80: Maintained | K80: -
A81: Friskney All Saints Church of England (Aided) Primary School | B81: 9253353 | C81: 148405 | D81: East Lindsey District Council | E81: PE22 8RD | F81: Primary | G81: Primary | H81: - | I81: - | J81: Academy | K81: 2021-05-01
A82: Frithville Primary School | B82: 9252152 | C82: 146586 | D82: East Lindsey District Council | E82: PE22 7EX | F82: Primary | G82: Primary | H82: - | I82: - | J82: Academy | K82: 2018-12-01
A83: Fulstow Community Primary School | B83: 9252153 | C83: 120447 | D83: East Lindsey District Council | E83: LN11 0XL | F83: Primary | G83: Primary | H83: - | I83: - | J83: Maintained | K83: -
A84: Gainsborough Benjamin Adlard Primary School | B84: 9252247 | C84: 138063 | D84: West Lindsey District Council | E84: DN21 1DB | F84: Primary | G84: Primary | H84: - | I84: - | J84: Academy | K84: 2012-04-01
A85: Gainsborough St George's Church of England Community Primary School | B85: 9253169 | C85: 131490 | D85: West Lindsey District Council | E85: DN21 1YN | F85: Primary | G85: Primary | H85: - | I85: - | J85: Maintained | K85: -
A86: Gainsborough The Queen Elizabeth's High School | B86: 9254065 | C86: 120655 | D86: West Lindsey District Council | E86: DN21 2ST | F86: Secondary | G86: Secondary | H86: Grammar | I86: Yes | J86: Maintained | K86: -
A87: Gedney Church End Primary School | B87: 9252088 | C87: 120409 | D87: South Holland District Council | E87: PE12 0BU | F87: Primary | G87: Primary | H87: - | I87: - | J87: Maintained | K87: -
A88: Gedney Drove End Primary School | B88: 9252089 | C88: 120410 | D88: South Holland District Council | E88: PE12 9PD | F88: Primary | G88: Primary | H88: - | I88: - | J88: Maintained | K88: -
A89: George Johnson Education Centre | B89: 9256021 | C89: 147221 | D89: North Kesteven District Council | E89: LN6 3QN | F89: Not applicable | G89: Not applicable | I89: No | J89: Independent | K89: 2019-08-30
A90: Gipsey Bridge Academy | B90: 9252157 | C90: 139296 | D90: East Lindsey District Council | E90: PE22 7BP | F90: Primary | G90: Primary | H90: - | I90: - | J90: Academy | K90: 2013-02-01
A91: Good Apple Independent School | B91: 9256007 | C91: 145023 | D91: West Lindsey District Council | E91: DN21 2NS | F91: Not applicable | G91: Not applicable | I91: No | J91: Independent | K91: 2017-11-28
A92: Gosberton Academy | B92: 9252043 | C92: 144491 | D92: South Holland District Council | E92: PE11 4NW | F92: Primary | G92: Primary | H92: - | I92: - | J92: Academy | K92: 2016-11-01
A93: Gosberton Clough and Risegate Community Primary School | B93: 9252091 | C93: 120412 | D93: South Holland District Council | E93: PE11 4JP | F93: Primary | G93: Primary | H93: - | I93: - | J93: Maintained | K93: -
A94: Gosberton House Academy | B94: 9257008 | C94: 143257 | D94: South Holland District Council | E94: PE11 4EW | F94: Special | G94: Special | H94: - | I94: - | J94: Academy | K94: 2016-09-01
A95: Grainthorpe Junior School | B95: 9252158 | C95: 120450 | D95: East Lindsey District Council | E95: LN11 7JY | F95: Primary | G95: Junior | H95: - | I95: - | J95: Maintained | K95: -
A96: Grantham Ambergate Sports College | B96: 9257002 | C96: 141253 | D96: South Kesteven District Council | E96: NG31 7LP | F96: Special | G96: Special | H96: - | I96: - | J96: Academy | K96: 2014-09-01
A97: Grantham Belmont Community Primary School | B97: 9252070 | C97: 120401 | D97: South Kesteven District Council | E97: NG31 9LR | F97: Primary | G97: Primary | H97: - | I97: - | J97: Maintained | K97: -
A98: Grantham Belton Lane Community Primary School | B98: 9252054 | C98: 120392 | D98: South Kesteven District Council | E98: NG31 9PP | F98: Primary | G98: Primary | H98: - | I98: - | J98: Maintained | K98: -
A99: Grantham Cliffedale Primary School | B99: 9252055 | C99: 120393 | D99: South Kesteven District Council | E99: NG31 8DP | F99: Primary | G99: Primary | H99: - | I99: - | J99: Maintained | K99: -
A100: Grantham Esland Isaac Newton School | B100: 9256055 | C100: 147703 | D100: South Kesteven District Council | E100: NG31 9RT | F100: Not applicable | G100: Not applicable | H100: Special | I100: No | J100: Independent | K100: 2020-08-18
A101: Grantham Greenfields Academy | B101: 9257029 | C101: 139316 | D101: South Kesteven District Council | E101: NG31 7US | F101: Special | G101: Special | H101: - | I101: - | J101: Academy | K101: 2013-03-01
A102: Grantham Huntingtower Community Primary Academy | B102: 9252020 | C102: 139618 | D102: South Kesteven District Council | E102: NG31 7AU | F102: Primary | G102: Primary | H102: - | I102: - | J102: Academy | K102: 2013-05-01
A103: Grantham Kesteven and Grantham Girls' School | B103: 9254004 | C103: 138638 | D103: South Kesteven District Council | E103: NG31 9AU | F103: Secondary | G103: Secondary | H103: Grammar | I103: Yes | J103: Academy | K103: 2012-09-01
A104: Grantham Poplar Farm School | B104: 9252048 | C104: 145902 | D104: South Kesteven District Council | E104: NG31 8XF | F104: Primary | G104: Primary | H104: - | I104: - | J104: Free School | K104: 2018-09-04
A105: Grantham Preparatory International School | B105: 9256031 | C105: 120738 | D105: South Kesteven District Council | E105: NG31 7UF | F105: Not applicable | G105: Not applicable | I105: No | J105: Independent | K105: 1981-10-14
A106: Grantham Springwell Alternative Academy | B106: 9251119 | C106: 147197 | D106: South Kesteven District Council | E106: NG31 9LD | F106: PRU / AP | G106: PRU / AP | H106: - | I106: - | J106: Free School - Alternative Provision | K106: 2019-06-10
A107: Grantham St Anne's Church of England Primary School | B107: 9253026 | C107: 120522 | D107: South Kesteven District Council | E107: NG31 9ED | F107: Primary | G107: Primary | H107: - | I107: - | J107: Maintained | K107: -
A108: Grantham The Gonerby Hill Foot Church of England Primary School | B108: 9253029 | C108: 120524 | D108: South Kesteven District Council | E108: NG31 8HQ | F108: Primary | G108: Primary | H108: - | I108: - | J108: Maintained | K108: -
A109: Grantham The Harrowby Church of England Infant School | B109: 9253310 | C109: 138283 | D109: South Kesteven District Council | E109: NG31 9LJ | F109: Primary | G109: Infant | H109: - | I109: - | J109: Academy | K109: 2012-07-01
A110: Grantham The Isaac Newton Primary School | B110: 9252024 | C110: 141100 | D110: South Kesteven District Council | E110: NG31 7DG | F110: Primary | G110: Primary | H110: - | I110: - | J110: Academy | K110: 2014-12-01
A111: Grantham The King's School | B111: 9255402 | C111: 137166 | D111: South Kesteven District Council | E111: NG31 6RP | F111: Secondary | G111: Secondary | H111: Grammar | I111: Yes | J111: Academy | K111: 2011-08-01
A112: Grantham The Little Gonerby Church of England Infant School | B112: 9253311 | C112: 138816 | D112: South Kesteven District Council | E112: NG31 9AZ | F112: Primary | G112: Infant | H112: - | I112: - | J112: Academy | K112: 2012-10-01
A113: Grantham St Wulfrums Church of England Primary School | B113: 9253308 | C113: 138282 | D113: South Kesteven District Council | E113: NG31 6SR | F113: Primary | G113: Junior | H113: - | I113: - | J113: Academy | K113: 2012-07-01
A114: Grantham The Saint Mary's Catholic Voluntary Academy | B114: 9253330 | C114: 146226 | D114: South Kesteven District Council | E114: NG31 9AX | F114: Primary | G114: Primary | H114: - | I114: - | J114: Academy | K114: 2018-09-01
A115: Grantham Walton Academy | B115: 9254019 | C115: 136624 | D115: South Kesteven District Council | E115: NG31 7JR | F115: Secondary | G115: Secondary | H115: Selective Area | I115: Yes | J115: Academy | K115: 2011-04-01
A116: Grantham Wyndham Park Nursery School | B116: 9251001 | C116: 120364 | D116: South Kesteven District Council | E116: NG31 9BB | F116: Nursery | G116: Nursery | H116: - | I116: - | J116: Maintained | K116: -
A117: Grasby All Saints Church of England Primary School | B117: 9253123 | C117: 120571 | D117: West Lindsey District Council | E117: DN38 6AU | F117: Primary | G117: Primary | H117: - | I117: - | J117: Maintained | K117: -
A118: Great Gonerby The St Sebastian's Church of England Primary School | B118: 9253313 | C118: 120601 | D118: South Kesteven District Council | E118: NG31 8LB | F118: Primary | G118: Primary | H118: - | I118: - | J118: Maintained | K118: -
A119: Great Ponton Church of England School | B119: 9253314 | C119: 120602 | D119: South Kesteven District Council | E119: NG33 5DT | F119: Primary | G119: Primary | H119: - | I119: - | J119: Maintained | K119: -
A120: Great Steeping Primary School | B120: 9252159 | C120: 120451 | D120: East Lindsey District Council | E120: PE23 5PT | F120: Primary | G120: Primary | H120: - | I120: - | J120: Maintained | K120: -
A121: Greenwich House School | B121: 9256038 | C121: 120743 | D121: East Lindsey District Council | E121: LN11 0HE | F121: Not applicable | G121: Not applicable | I121: No | J121: Independent | K121: 1990-10-31
A122: Grimoldby Primary School | B122: 9255217 | C122: 120684 | D122: East Lindsey District Council | E122: LN11 8SW | F122: Primary | G122: Primary | H122: - | I122: - | J122: Maintained | K122: -
A123: Halton Holegate CofE Primary School | B123: 9253125 | C123: 120573 | D123: East Lindsey District Council | E123: PE23 5PB | F123: Primary | G123: Primary | H123: - | I123: - | J123: Maintained | K123: -
A124: Handel House Preparatory School | B124: 9256023 | C124: 120733 | D124: West Lindsey District Council | E124: DN21 2JB | F124: Not applicable | G124: Not applicable | I124: No | J124: Independent | K124: 1957-10-18
A125: Heckington St Andrew's Church of England School | B125: 9253033 | C125: 120526 | D125: North Kesteven District Council | E125: NG34 9RX | F125: Primary | G125: Primary | H125: - | I125: - | J125: Maintained | K125: -
A126: Heighington Millfield Primary Academy | B126: 9252075 | C126: 137201 | D126: North Kesteven District Council | E126: LN4 1RQ | F126: Primary | G126: Primary | H126: - | I126: - | J126: Academy | K126: 2011-08-01
A127: Helpringham School | B127: 9252025 | C127: 120379 | D127: North Kesteven District Council | E127: NG34 0RD | F127: Primary | G127: Primary | H127: - | I127: - | J127: Maintained | K127: -
A128: Hemswell Cliff Primary School | B128: 9252210 | C128: 120491 | D128: West Lindsey District Council | E128: DN21 5XS | F128: Primary | G128: Primary | H128: - | I128: - | J128: Maintained | K128: -
A129: Hogsthorpe Primary Academy | B129: 9252161 | C129: 138749 | D129: East Lindsey District Council | E129: PE24 5PT | F129: Primary | G129: Primary | H129: - | I129: - | J129: Academy | K129: 2012-09-01
A130: Holbeach Bank Primary Academy | B130: 9252047 | C130: 145734 | D130: South Holland District Council | E130: PE12 8BX | F130: Primary | G130: Primary | H130: - | I130: - | J130: Academy | K130: 2018-06-01
A131: Holbeach Primary Academy | B131: 9252093 | C131: 141260 | D131: South Holland District Council | E131: PE12 7LZ | F131: Primary | G131: Primary | H131: - | I131: - | J131: Academy | K131: 2014-09-01
A132: Holton le Clay Infant School | B132: 9252162 | C132: 120453 | D132: East Lindsey District Council | E132: DN36 5AQ | F132: Primary | G132: Infant | H132: - | I132: - | J132: Maintained | K132: -
A133: Holton Sleaford Independent School | B133: 9256059 | C133: 148356 | D133: North Kesteven District Council | E133: NG34 7DT | F133: Not applicable | G133: Not applicable | H133: Special | I133: No | J133: Independent | K133: 2021-02-12
A134: Holton-Le-Clay Junior School | B134: 9252229 | C134: 120497 | D134: East Lindsey District Council | E134: DN36 5DR | F134: Primary | G134: Junior | H134: - | I134: - | J134: Maintained | K134: -
A135: Horbling Brown's Church of England Primary School | B135: 9253317 | C135: 143258 | D135: South Kesteven District Council | E135: NG34 0PL | F135: Primary | G135: Primary | H135: - | I135: - | J135: Academy | K135: 2016-09-01
A136: Horncastle Community Primary School | B136: 9252244 | C136: 120507 | D136: East Lindsey District Council | E136: LN9 5EH | F136: Primary | G136: Primary | H136: - | I136: - | J136: Maintained | K136: -
A137: Horncastle Queen Elizabeth's Grammar School | B137: 9255411 | C137: 138665 | D137: East Lindsey District Council | E137: LN9 5AD | F137: Secondary | G137: Secondary | H137: Grammar | I137: Yes | J137: Academy | K137: 2012-09-01
A138: Horncastle The Banovallum School | B138: 9254050 | C138: 141581 | D138: East Lindsey District Council | E138: LN9 6DA | F138: Secondary | G138: Secondary | H138: Selective Area | I138: No | J138: Academy | K138: 2014-12-01
A139: Huttoft Primary School | B139: 9255209 | C139: 138808 | D139: East Lindsey District Council | E139: LN13 9RE | F139: Primary | G139: Primary | H139: - | I139: - | J139: Academy | K139: 2012-10-01
A140: Hykeham Manor Farm Academy | B140: 9252036 | C140: 141556 | D140: North Kesteven District Council | E140: LN6 9ST | F140: Primary | G140: Primary | H140: - | I140: - | J140: Academy | K140: 2016-09-01
A141: Ingham Primary School | B141: 9252166 | C141: 120454 | D141: West Lindsey District Council | E141: LN1 2XT | F141: Primary | G141: Primary | H141: - | I141: - | J141: Maintained | K141: -
A142: Ingoldmells Academy | B142: 9252004 | C142: 138444 | D142: East Lindsey District Council | E142: PE25 1QE | F142: Primary | G142: Primary | H142: - | I142: - | J142: Academy | K142: 2012-09-01
A143: Ingoldsby Academy | B143: 9252035 | C143: 141390 | D143: South Kesteven District Council | E143: NG33 4HA | F143: Primary | G143: Primary | H143: - | I143: - | J143: Academy | K143: 2015-03-01
A144: John Spendluffe Foundation Technology College | B144: 9254048 | C144: 136968 | D144: East Lindsey District Council | E144: LN13 9BL | F144: Secondary | G144: Secondary | H144: Selective Area | I144: No | J144: Academy | K144: 2011-08-01
A145: Keelby Primary Academy | B145: 9252168 | C145: 141793 | D145: West Lindsey District Council | E145: DN41 8EF | F145: Primary | G145: Primary | H145: - | I145: - | J145: Academy | K145: 2015-03-01
A146: Kelsey Primary School | B146: 9252182 | C146: 120469 | D146: West Lindsey District Council | E146: LN7 6EJ | F146: Primary | G146: Primary | H146: - | I146: - | J146: Maintained | K146: -
A147: Kesteven and Sleaford High School Selective Academy | B147: 9254005 | C147: 137667 | D147: North Kesteven District Council | E147: NG34 7RS | F147: Secondary | G147: Secondary | H147: Grammar | I147: Yes | J147: Academy | K147: 2011-11-01
A148: Kirkstone House School | B148: 9256017 | C148: 120729 | D148: South Kesteven District Council | E148: PE6 9PA | F148: Not applicable | G148: Not applicable | I148: Yes | J148: Independent | K148: 1967-05-02
A149: Kirton Primary School | B149: 9252094 | C149: 120415 | D149: Boston Borough Council | E149: PE20 1HY | F149: Primary | G149: Primary | H149: - | I149: - | J149: Maintained | K149: -
A150: Kisimul School | B150: 9256034 | C150: 120740 | D150: North Kesteven District Council | E150: LN6 9LU | F150: Not applicable | G150: Not applicable | I150: Yes | J150: Independent | K150: 1977-10-10
A151: Langtoft Primary School | B151: 9252028 | C151: 120381 | D151: South Kesteven District Council | E151: PE6 9NB | F151: Primary | G151: Primary | H151: - | I151: - | J151: Maintained | K151: -
A152: Lea Frances Olive Anderson Church of England Primary School | B152: 9253361 | C152: 120625 | D152: West Lindsey District Council | E152: DN21 5EP | F152: Primary | G152: Primary | H152: - | I152: - | J152: Maintained | K152: -
A153: Leadenham Church of England Primary School | B153: 9253319 | C153: 120604 | D153: North Kesteven District Council | E153: LN5 0QB | F153: Primary | G153: Primary | H153: - | I153: - | J153: Maintained | K153: -
A154: Legbourne East Wold Church of England Primary School | B154: 9253168 | C154: 120597 | D154: East Lindsey District Council | E154: LN11 8LD | F154: Primary | G154: Primary | H154: - | I154: - | J154: Maintained | K154: -
A155: Legsby Primary School | B155: 9252169 | C155: 120457 | D155: West Lindsey District Council | E155: LN8 3QW | F155: Primary | G155: Primary | H155: - | I155: - | J155: Maintained | K155: -
A156: Lincoln Athena School | B156: 9257032 | C156: 131277 | D156: City of Lincoln Council | E156: LN5 8EL | F156: Special | G156: Special | H156: - | I156: - | J156: Maintained | K156: -
A157: Lincoln Birchwood Junior School | B157: 9252245 | C157: 120508 | D157: City of Lincoln Council | E157: LN6 0NL | F157: Primary | G157: Junior | H157: - | I157: - | J157: Maintained | K157: -
A158: Lincoln Bracebridge Infant and Nursery School | B158: 9252122 | C158: 139142 | D158: City of Lincoln Council | E158: LN5 8QG | F158: Primary | G158: Infant | H158: - | I158: - | J158: Academy | K158: 2013-01-01
A159: Lincoln Carlton Academy | B159: 9252006 | C159: 138970 | D159: City of Lincoln Council | E159: LN2 4AG | F159: Primary | G159: Primary | H159: - | I159: - | J159: Academy | K159: 2013-10-01
A160: Lincoln Castle Academy | B160: 9255407 | C160: 136537 | D160: City of Lincoln Council | E160: LN1 3SP | F160: Secondary | G160: Secondary | H160: Comprehensive | I160: Yes | J160: Academy | K160: 2011-04-01
A161: Lincoln Christ's Hospital School | B161: 9255408 | C161: 137447 | D161: City of Lincoln Council | E161: LN2 4PN | F161: Secondary | G161: Secondary | H161: Comprehensive | I161: Yes | J161: Academy | K161: 2011-09-01
A162: Lincoln Ermine Primary Academy | B162: 9252078 | C162: 147530 | D162: City of Lincoln Council | E162: LN2 2HG | F162: Primary | G162: Primary | H162: - | I162: - | J162: Academy | K162: 2019-09-01
A163: Lincoln Fortuna School | B163: 9257031 | C163: 134229 | D163: City of Lincoln Council | E163: LN6 0FB | F163: Special | G163: Special | H163: - | I163: - | J163: Maintained | K163: -
A164: Lincoln Hartsholme Academy | B164: 9252058 | C164: 146559 | D164: City of Lincoln Council | E164: LN6 0DE | F164: Primary | G164: Primary | H164: - | I164: - | J164: Academy | K164: 2018-11-01
A165: Lincoln Leslie Manser Primary School | B165: 9252246 | C165: 120509 | D165: City of Lincoln Council | E165: LN6 0FB | F165: Primary | G165: Primary | H165: - | I165: - | J165: Maintained | K165: -
A166: Lincoln Minster School | B166: 9256012 | C166: 120724 | D166: City of Lincoln Council | E166: LN2 5RW | F166: Not applicable | G166: Not applicable | I166: Yes | J166: Independent | K166: 1951-12-18
A167: Lincoln Monks Abbey Primary School | B167: 9252124 | C167: 120429 | D167: City of Lincoln Council | E167: LN2 5PF | F167: Primary | G167: Primary | H167: - | I167: - | J167: Maintained | K167: -
A168: Lincoln Mount Street Academy | B168: 9255227 | C168: 137551 | D168: City of Lincoln Council | E168: LN1 3JG | F168: Primary | G168: Infant | H168: - | I168: - | J168: Academy | K168: 2011-10-01
A169: Lincoln Our Lady of Lincoln Catholic Primary School | B169: 9253347 | C169: 139622 | D169: City of Lincoln Council | E169: LN2 2HE | F169: Primary | G169: Primary | H169: - | I169: - | J169: Academy | K169: 2013-05-01
A170: Lincoln Sir Francis Hill Community Primary School | B170: 9252120 | C170: 120427 | D170: City of Lincoln Council | E170: LN6 7UE | F170: Primary | G170: Primary | H170: - | I170: - | J170: Maintained | K170: -
A171: Lincoln Springwell Alternative Academy | B171: 9251117 | C171: 147195 | D171: City of Lincoln Council | E171: LN2 4EL | F171: PRU / AP | G171: PRU / AP | H171: - | I171: - | J171: Free School - Alternative Provision | K171: 2019-06-10
A172: Lincoln The Kingsdown Nursery School | B172: 9251010 | C172: 126562 | D172: City of Lincoln Council | E172: LN6 0FB | F172: Nursery | G172: Nursery | H172: - | I172: - | J172: Maintained | K172: -
A173: Lincoln The Lancaster School | B173: 9255219 | C173: 120686 | D173: City of Lincoln Council | E173: LN6 0QQ | F173: Primary | G173: Infant | H173: - | I173: - | J173: Maintained | K173: -
A174: Lincoln The Meadows Primary School | B174: 9253507 | C174: 132179 | D174: City of Lincoln Council | E174: LN5 9BB | F174: Primary | G174: Primary | H174: - | I174: - | J174: Maintained | K174: -
A175: Lincoln The Pilgrim School | B175: 9257012 | C175: 120753 | D175: Countywide | E175: LN6 0DE | F175: Special | G175: Special | H175: - | I175: - | J175: Maintained | K175: -
A176: Lincoln The Priory Academy LSST | B176: 9256907 | C176: 135565 | D176: City of Lincoln Council | E176: LN5 8PW | F176: Secondary | G176: Secondary | H176: Comprehensive | I176: Yes | J176: Academy | K176: 2008-09-01
A177: Lincoln The Priory City of Lincoln Academy | B177: 9256906 | C177: 135564 | D177: City of Lincoln Council | E177: LN6 0EP | F177: Secondary | G177: Secondary | H177: Comprehensive | I177: Yes | J177: Academy | K177: 2008-09-01
A178: Lincoln The Priory Witham Academy | B178: 9256905 | C178: 135563 | D178: City of Lincoln Council | E178: LN6 7DT | F178: All-Through | G178: All-Through | H178: Comprehensive | I178: Yes | J178: Academy | K178: 2008-09-01
A179: Lincoln The Saint Hugh's Catholic Primary Voluntary Academy | B179: 9253346 | C179: 139627 | D179: City of Lincoln Council | E179: LN6 0SH | F179: Primary | G179: Primary | H179: - | I179: - | J179: Academy | K179: 2013-05-01
A180: Lincoln The St Faith and St Martin Church of England Junior School | B180: 9253107 | C180: 120561 | D180: City of Lincoln Council | E180: LN1 1LW | F180: Primary | G180: Junior | H180: - | I180: - | J180: Maintained | K180: -
A181: Lincoln The St Faith's Church of England Infant and Nursery School | B181: 9253108 | C181: 120562 | D181: City of Lincoln Council | E181: LN1 1QS | F181: Primary | G181: Infant | H181: - | I181: - | J181: Maintained | K181: -
A182: Lincoln The St Francis Special School | B182: 9257016 | C182: 120755 | D182: City of Lincoln Council | E182: LN1 3TJ | F182: Special | G182: Special | H182: - | I182: - | J182: Maintained | K182: -
A183: Lincoln UTC | B183: 9254008 | C183: 140950 | D183: City of Lincoln Council | E183: LN2 1PF | F183: Secondary | G183: Secondary | H183: Comprehensive | I183: Yes | J183: Free School | K183: 2014-09-01
A184: Lincoln Westgate Academy | B184: 9255224 | C184: 137451 | D184: City of Lincoln Council | E184: LN1 3BQ | F184: Primary | G184: Junior | H184: - | I184: - | J184: Academy | K184: 2011-09-01
A185: Lincoln Woodlands Infant and Nursery School | B185: 9252135 | C185: 120436 | D185: City of Lincoln Council | E185: LN6 0PF | F185: Primary | G185: Infant | H185: - | I185: - | J185: Maintained | K185: -
A186: Long Bennington Church of England Academy | B186: 9253040 | C186: 138057 | D186: South Kesteven District Council | E186: NG23 5EH | F186: Primary | G186: Primary | H186: - | I186: - | J186: Academy | K186: 2012-04-01
A187: Long Sutton County Primary School | B187: 9252095 | C187: 147566 | D187: South Holland District Council | E187: PE12 9EP | F187: Primary | G187: Primary | H187: - | I187: - | J187: Academy | K187: 2019-11-01
A188: Louth Academy | B188: 9254039 | C188: 144968 | D188: East Lindsey District Council | E188: LN11 9AW | F188: Secondary | G188: Secondary | H188: Selective Area | I188: No | J188: Academy | K188: 2017-09-01
A189: Louth Eastfield Infants and Nursery Academy | B189: 9252170 | C189: 146505 | D189: East Lindsey District Council | E189: LN11 8DQ | F189: Primary | G189: Infant | H189: - | I189: - | J189: Academy | K189: 2018-11-01
A190: Louth Kidgate Primary Academy | B190: 9252171 | C190: 138637 | D190: East Lindsey District Council | E190: LN11 9BX | F190: Primary | G190: Primary | H190: - | I190: - | J190: Academy | K190: 2012-09-01
A191: Louth King Edward VI Grammar School | B191: 9255405 | C191: 142262 | D191: East Lindsey District Council | E191: LN11 9LL | F191: Secondary | G191: Secondary | H191: Grammar | I191: Yes | J191: Academy | K191: 2015-09-01
A192: Louth Lacey Gardens Junior Academy | B192: 9255206 | C192: 146499 | D192: East Lindsey District Council | E192: LN11 8DH | F192: Primary | G192: Junior | H192: - | I192: - | J192: Academy | K192: 2018-11-01
A193: Louth St Michael's Church of England School | B193: 9253128 | C193: 120574 | D193: East Lindsey District Council | E193: LN11 9AR | F193: Primary | G193: Primary | H193: - | I193: - | J193: Maintained | K193: -
A194: Lutton St Nicholas Primary School | B194: 9252105 | C194: 120421 | D194: South Holland District Council | E194: PE12 9HN | F194: Primary | G194: Primary | H194: - | I194: - | J194: Maintained | K194: -
A195: Mablethorpe Primary Academy | B195: 9252005 | C195: 138445 | D195: East Lindsey District Council | E195: LN12 1EW | F195: Primary | G195: Primary | H195: - | I195: - | J195: Academy | K195: 2012-09-01
A196: Mablethorpe Springwell Alternative Academy | B196: 9251118 | C196: 147196 | D196: East Lindsey District Council | E196: LN12 2DF | F196: PRU / AP | G196: PRU / AP | H196: - | I196: - | J196: Free School - Alternative Provision | K196: 2019-09-02
A197: Market Deeping Community Primary School | B197: 9252065 | C197: 120398 | D197: South Kesteven District Council | E197: PE6 8JE | F197: Primary | G197: Primary | H197: - | I197: - | J197: Maintained | K197: -
A198: Market Deeping William Hildyard Church of England Primary and Nursery School | B198: 9255228 | C198: 120695 | D198: South Kesteven District Council | E198: PE6 8HZ | F198: Primary | G198: Primary | H198: - | I198: - | J198: Maintained | K198: -
A199: Market Rasen De Aston School | B199: 9254514 | C199: 136491 | D199: West Lindsey District Council | E199: LN8 3RF | F199: Secondary | G199: Secondary | H199: Comprehensive | I199: Yes | J199: Academy | K199: 2011-03-01
A200: Marshchapel Infant School | B200: 9252174 | C200: 120461 | D200: East Lindsey District Council | E200: DN36 5SX | F200: Primary | G200: Infant | H200: - | I200: - | J200: Maintained | K200: -
A201: Martin Mrs Mary King's CofE Primary School | B201: 9253041 | C201: 120530 | D201: North Kesteven District Council | E201: LN4 3RB | F201: Primary | G201: Primary | H201: - | I201: - | J201: Maintained | K201: -
... 190 more rows

Sheet Import T1 (hidden)
A1: Term 1
A2: ='23-24 Term 1'!C4:I4 -> Swinderby All Saints Church of England Primary School | B2: 0 | C2: 0 | D2: 0 | E2: 0 | F2: 0 | G2: 0
A3: ='23-24 Term 1'!C5:G5 -> Zoe Longstaff | B3: 0 | C3: 0 | D3: 0 | E3: 0
A4: ='23-24 Term 1'!J5 -> Yes
A5: ='23-24 Term 1'!C6:J6 -> Michelle Waddell | B5: 0 | C5: 0 | D5: 0 | E5: 0 | F5: 0 | G5: 0 | H5: 0
A6: ='23-24 Term 1'!C7:J7 -> Tracey Sims | B6: 0 | C6: 0 | D6: 0 | E6: 0 | F6: 0 | G6: 0 | H6: 0
A7: ='23-24 Term 1'!C8:F8 -> zoe.longstaff@swinderby.lincs.sch.uk | B7: 0 | C7: 0 | D7: 0
A8: ='23-24 Term 1'!H8:J8 -> 00:00:00 | B8: 0 | C8: 0
A9: ='23-24 Term 1'!H10 -> Primary
A10: ='23-24 Term 1'!H11 -> Maintained
A11: ='23-24 Term 1'!B14:E14 -> Monitor attendance of all EHCP, SEN, PP & other vulnerable children | B11: 0 | C11: 0 | D11: 0
A12: ='23-24 Term 1'!B15:E15 -> Weekly monitoring of attendance & actions accordingly | B12: 0 | C12: 0 | D12: 0
A13: ='23-24 Term 1'!B16:E16 -> Half termly attendance letters to all children | B13: 0 | C13: 0 | D13: 0
A14: ='23-24 Term 1'!B17:E17 -> Reduce the number of Persistent Absentees with the school | B14: 0 | C14: 0 | D14: 0
A15: ='23-24 Term 1'!B18:E18 -> 0 | B15: 0 | C15: 0 | D15: 0
A16: ='23-24 Term 1'!B19:E19 -> 0 | B16: 0 | C16: 0 | D16: 0
A17: ='23-24 Term 1'!B20:E20 -> 0 | B17: 0 | C17: 0 | D17: 0
A18: ='23-24 Term 1'!F23 -> Yes
A19: ='23-24 Term 1'!F24 -> Yes
A20: ='23-24 Term 1'!F25 -> Yes
A21: ='23-24 Term 1'!C32 -> 0
A22: ='23-24 Term 1'!D32 -> 1
A23: ='23-24 Term 1'!E32 -> 5
A24: ='23-24 Term 1'!F32 -> 5
A25: ='23-24 Term 1'!G32 -> 81
A26: ='23-24 Term 1'!I33 -> 96.49
A27: ='23-24 Term 1'!B34 -> All Lincs PRI Schools
A28: ='23-24 Term 1'!C45:J45 -> * Looking at any potential patterns of absence * Reporting on newsletters, on the school website, directly to parents and staff (individual classes & whole school) * Contacting parents when children absent, bringing children into school (if missed bus for e.g.), administer any medicine * Half termly letters to all pupils * Staff updated regularly | B28: 0 | C28: 0 | D28: 0 | E28: 0 | F28: 0 | G28: 0 | H28: 0
A29: ='23-24 Term 1'!C46:J46 -> * 1x child off with COVID * 1x child with anxiety around school. Working with parents. In school daily but late * 1x child on TAC - child brought into school by HT if needs be. * 1x Y6 child - warning letters have been issued and parents invited in for meeting with Head * 1x Y6 child had a lot of illness at start of year. No concerns as attendance has been high throughout previous years | B29: 0 | C29: 0 | D29: 0 | E29: 0 | F29: 0 | G29: 0 | H29: 0
A30: ='23-24 Term 1'!C47:J47 -> * 1x YR child temporary timetable at very start of academic year (first 2 weeks only) and illness * 2x children with unauthorised holiday. Fined and paid immediately * 2x children with unauthorised holiday, did not fine due to higher attendance previous year but warning letter. Younger sibling not of compulsory school age * * | B30: 0 | C30: 0 | D30: 0 | E30: 0 | F30: 0 | G30: 0 | H30: 0
A31: ='23-24 Term 1'!C48:J48 -> * 1x EHCP child, complex medical needs. School to complete Early Help Assessment to support parents. Referral to WTT, Specialist nurse. * * * * | B31: 0 | C31: 0 | D31: 0 | E31: 0 | F31: 0 | G31: 0 | H31: 0
A32: ='23-24 Term 1'!C49:J49 -> * * * * * | B32: 0 | C32: 0 | D32: 0 | E32: 0 | F32: 0 | G32: 0 | H32: 0
A33: ='23-24 Term 1'!C53:J53 -> * 90.4%. Complex medical needs. School to complete Early Help Assessment to support parents. Referral to WTT and Special nurse * * * * | B33: 0 | C33: 0 | D33: 0 | E33: 0 | F33: 0 | G33: 0 | H33: 0
A34: ='23-24 Term 1'!C54:J54 -> * * * * * | B34: 0 | C34: 0 | D34: 0 | E34: 0 | F34: 0 | G34: 0 | H34: 0
A35: ='23-24 Term 1'!C55:J55 -> * 1x Y5 child - school refuser. EP involvement, TAC, community Paediatrics and Healthy Minds * * * * | B35: 0 | C35: 0 | D35: 0 | E35: 0 | F35: 0 | G35: 0 | H35: 0
A36: ='23-24 Term 1'!C57:J57 -> * * * * * | B36: 0 | C36: 0 | D36: 0 | E36: 0 | F36: 0 | G36: 0 | H36: 0
A37: ='23-24 Term 1'!C58:J58 -> * No Concerns * * * * | B37: 0 | C37: 0 | D37: 0 | E37: 0 | F37: 0 | G37: 0 | H37: 0
A38: ='23-24 Term 1'!C59:J59 -> * No Concerns * * * * | B38: 0 | C38: 0 | D38: 0 | E38: 0 | F38: 0 | G38: 0 | H38: 0
A39: ='23-24 Term 1'!C60:J60 -> * 1x Y1 child left July 2023 to be home schooled. This was due to religious reasons. Reported to LCC * * * * | B39: 0 | C39: 0 | D39: 0 | E39: 0 | F39: 0 | G39: 0 | H39: 0
A40: ='23-24 Term 1'!C61:E61 -> 0 | B40: 0 | C40: 0
A41: ='23-24 Term 1'!I61:J61 -> 0 | B41: 0
A42: ='23-24 Term 1'!B65:J65 -> * High levels of monitoring * Effective use of attendance policy * Rigorour and consistent approach to following up concerns * Introduction of fining * Making good use of external agencies to support families and pupils | B42: 0 | C42: 0 | D42: 0 | E42: 0 | F42: 0 | G42: 0 | H42: 0 | I42: 0
A43: ='23-24 Term 1'!B69:J69 -> Continue to be vigilant and rigorous in application of attendance policy | B43: 0 | C43: 0 | D43: 0 | E43: 0 | F43: 0 | G43: 0 | H43: 0 | I43: 0
A44: ='23-24 Term 1'!B70:J70 -> Monitor the impact of fining | B44: 0 | C44: 0 | D44: 0 | E44: 0 | F44: 0 | G44: 0 | H44: 0 | I44: 0
A45: ='23-24 Term 1'!B71:J71 -> Ensure families needing support are placed on Early Help Form and help sought | B45: 0 | C45: 0 | D45: 0 | E45: 0 | F45: 0 | G45: 0 | H45: 0 | I45: 0
A46: ='23-24 Term 1'!B72:J72 -> 0 | B46: 0 | C46: 0 | D46: 0 | E46: 0 | F46: 0 | G46: 0 | H46: 0 | I46: 0
A47: ='23-24 Term 1'!B73:J73 -> 0 | B47: 0 | C47: 0 | D47: 0 | E47: 0 | F47: 0 | G47: 0 | H47: 0 | I47: 0
A48: ='23-24 Term 1'!B74:J74 -> 0 | B48: 0 | C48: 0 | D48: 0 | E48: 0 | F48: 0 | G48: 0 | H48: 0 | I48: 0
A49: ='23-24 Term 1'!B75:J75 -> 0 | B49: 0 | C49: 0 | D49: 0 | E49: 0 | F49: 0 | G49: 0 | H49: 0 | I49: 0
A52: Line to import below 23-23 T1
A53: =A1 -> Term 1 | B53: =A2 -> Swinderby All Saints Church of England Primary School | C53: =A3 -> Zoe Longstaff | D53: =A4 -> Yes | E53: =A5 -> Michelle Waddell | F53: =A6 -> Tracey Sims | G53: =A7 -> zoe.longstaff@swinderby.lincs.sch.uk | H53: =A8 -> 00:00:00 | I53: =A9 -> Primary | J53: =A10 -> Maintained | K53: =A11 -> Monitor attendance of all EHCP, SEN, PP & other vulnerable children | L53: =A12 -> Weekly monitoring of attendance & actions accordingly | M53: =A13 -> Half termly attendance letters to all children | N53: =A14 -> Reduce the number of Persistent Absentees with the school | O53: =A15 -> 0 | P53: =A16 -> 0 | Q53: =A17 -> 0 | R53: =A18 -> Yes | S53: =A19 -> Yes | T53: =A20 -> Yes | U53: =A21 -> 0 | V53: =A22 -> 1 | W53: =A23 -> 5 | X53: =A24 -> 5 | Y53: =A25 -> 81 | Z53: =A26 -> 96.49 | AA53: =A27 -> All Lincs PRI Schools | AB53: =A28 -> * Looking at any potential patterns of absence * Reporting on newsletters, on the school website, directly to parents and staff (individual classes & whole school) * Contacting parents when children absent, bringing children into school (if missed bus for e.g.), administer any medicine * Half termly letters to all pupils * Staff updated regularly | AC53: =A29 -> * 1x child off with COVID * 1x child with anxiety around school. Working with parents. In school daily but late * 1x child on TAC - child brought into school by HT if needs be. * 1x Y6 child - warning letters have been issued and parents invited in for meeting with Head * 1x Y6 child had a lot of illness at start of year. No concerns as attendance has been high throughout previous years | AD53: =A30 -> * 1x YR child temporary timetable at very start of academic year (first 2 weeks only) and illness * 2x children with unauthorised holiday. Fined and paid immediately * 2x children with unauthorised holiday, did not fine due to higher attendance previous year but warning letter. Younger sibling not of compulsory school age * * | AE53: =A31 -> * 1x EHCP child, complex medical needs. School to complete Early Help Assessment to support parents. Referral to WTT, Specialist nurse. * * * * | AF53: =A32 -> * * * * * | AG53: =A33 -> * 90.4%. Complex medical needs. School to complete Early Help Assessment to support parents. Referral to WTT and Special nurse * * * * | AH53: =A34 -> * * * * * | AI53: =A35 -> * 1x Y5 child - school refuser. EP involvement, TAC, community Paediatrics and Healthy Minds * * * * | AJ53: =A36 -> * * * * * | AK53: =A37 -> * No Concerns * * * * | AL53: =A38 -> * No Concerns * * * * | AM53: =A39 -> * 1x Y1 child left July 2023 to be home schooled. This was due to religious reasons. Reported to LCC * * * * | AN53: =A40 -> 0 | AO53: =A41 -> 0 | AP53: =A42 -> * High levels of monitoring * Effective use of attendance policy * Rigorour and consistent approach to following up concerns * Introduction of fining * Making good use of external agencies to support families and pupils | AQ53: =A43 -> Continue to be vigilant and rigorous in application of attendance policy | AR53: =A44 -> Monitor the impact of fining | AS53: =A45 -> Ensure families needing support are placed on Early Help Form and help sought | AT53: =A46 -> 0 | AU53: =A47 -> 0 | AV53: =A48 -> 0 | AW53: =A49 -> 0

Sheet Import T2 (hidden)
A1: Term 2
A2: ='23-24 Term 2'!C4:I4 -> Click in cell and use drop-down arrow on right to select school | B2: 0 | C2: 0 | D2: 0 | E2: 0 | F2: 0 | G2: 0
A3: ='23-24 Term 2'!C5:G5 -> 0 | B3: 0 | C3: 0 | D3: 0 | E3: 0
A4: ='23-24 Term 2'!J5 -> Select
A5: ='23-24 Term 2'!C6:J6 -> 0 | B5: 0 | C5: 0 | D5: 0 | E5: 0 | F5: 0 | G5: 0 | H5: 0
A6: ='23-24 Term 2'!C7:J7 -> 0 | B6: 0 | C6: 0 | D6: 0 | E6: 0 | F6: 0 | G6: 0 | H6: 0
A7: ='23-24 Term 2'!C8:F8 -> 0 | B7: 0 | C7: 0 | D7: 0
A8: ='23-24 Term 2'!H8:J8 -> 00:00:00 | B8: 0 | C8: 0
A9: ='23-24 Term 2'!H10 -> 
A10: ='23-24 Term 2'!H11 -> 
A11: ='23-24 Term 2'!B14:E14 -> 0 | B11: 0 | C11: 0 | D11: 0
A12: ='23-24 Term 2'!B15:E15 -> 0 | B12: 0 | C12: 0 | D12: 0
A13: ='23-24 Term 2'!B16:E16 -> 0 | B13: 0 | C13: 0 | D13: 0
A14: ='23-24 Term 2'!B17:E17 -> 0 | B14: 0 | C14: 0 | D14: 0
A15: ='23-24 Term 2'!B18:E18 -> 0 | B15: 0 | C15: 0 | D15: 0
A16: ='23-24 Term 2'!B19:E19 -> 0 | B16: 0 | C16: 0 | D16: 0
A17: ='23-24 Term 2'!B20:E20 -> 0 | B17: 0 | C17: 0 | D17: 0
A18: ='23-24 Term 2'!F23 -> Select
A19: ='23-24 Term 2'!F24 -> Select
A20: ='23-24 Term 2'!F25 -> Select
A21: ='23-24 Term 2'!C32 -> 0
A22: ='23-24 Term 2'!D32 -> 0
A23: ='23-24 Term 2'!E32 -> 0
A24: ='23-24 Term 2'!F32 -> 0
A25: ='23-24 Term 2'!G32 -> 0
A26: ='23-24 Term 2'!I33 -> 0
A27: ='23-24 Term 2'!B34 -> ** Select Phase **
A28: ='23-24 Term 2'!C45:J45 -> * * * * * | B28: 0 | C28: 0 | D28: 0 | E28: 0 | F28: 0 | G28: 0 | H28: 0
A29: ='23-24 Term 2'!C46:J46 -> * * * * * | B29: 0 | C29: 0 | D29: 0 | E29: 0 | F29: 0 | G29: 0 | H29: 0
A30: ='23-24 Term 2'!C47:J47 -> * * * * * | B30: 0 | C30: 0 | D30: 0 | E30: 0 | F30: 0 | G30: 0 | H30: 0
A31: ='23-24 Term 2'!C48:J48 -> * * * * * | B31: 0 | C31: 0 | D31: 0 | E31: 0 | F31: 0 | G31: 0 | H31: 0
A32: ='23-24 Term 2'!C49:J49 -> * * * * * | B32: 0 | C32: 0 | D32: 0 | E32: 0 | F32: 0 | G32: 0 | H32: 0
A33: ='23-24 Term 2'!C53:J53 -> * * * * * | B33: 0 | C33: 0 | D33: 0 | E33: 0 | F33: 0 | G33: 0 | H33: 0
A34: ='23-24 Term 2'!C54:J54 -> * * * * * | B34: 0 | C34: 0 | D34: 0 | E34: 0 | F34: 0 | G34: 0 | H34: 0
A35: ='23-24 Term 2'!C55:J55 -> * * * * * | B35: 0 | C35: 0 | D35: 0 | E35: 0 | F35: 0 | G35: 0 | H35: 0
A36: ='23-24 Term 2'!C57:J57 -> * * * * * | B36: 0 | C36: 0 | D36: 0 | E36: 0 | F36: 0 | G36: 0 | H36: 0
A37: ='23-24 Term 2'!C58:J58 -> * * * * * | B37: 0 | C37: 0 | D37: 0 | E37: 0 | F37: 0 | G37: 0 | H37: 0
A38: ='23-24 Term 2'!C59:J59 -> * * * * * | B38: 0 | C38: 0 | D38: 0 | E38: 0 | F38: 0 | G38: 0 | H38: 0
A39: ='23-24 Term 2'!C60:J60 -> * * * * * | B39: 0 | C39: 0 | D39: 0 | E39: 0 | F39: 0 | G39: 0 | H39: 0
A40: ='23-24 Term 2'!C61:E61 -> 0 | B40: 0 | C40: 0
A41: ='23-24 Term 2'!I61:J61 -> 0 | B41: 0
A42: ='23-24 Term 2'!B65:J65 -> * * * * * | B42: 0 | C42: 0 | D42: 0 | E42: 0 | F42: 0 | G42: 0 | H42: 0 | I42: 0
A43: ='23-24 Term 2'!B69:J69 -> 0 | B43: 0 | C43: 0 | D43: 0 | E43: 0 | F43: 0 | G43: 0 | H43: 0 | I43: 0
A44: ='23-24 Term 2'!B70:J70 -> 0 | B44: 0 | C44: 0 | D44: 0 | E44: 0 | F44: 0 | G44: 0 | H44: 0 | I44: 0
A45: ='23-24 Term 2'!B71:J71 -> 0 | B45: 0 | C45: 0 | D45: 0 | E45: 0 | F45: 0 | G45: 0 | H45: 0 | I45: 0
A46: ='23-24 Term 2'!B72:J72 -> 0 | B46: 0 | C46: 0 | D46: 0 | E46: 0 | F46: 0 | G46: 0 | H46: 0 | I46: 0
A47: ='23-24 Term 2'!B73:J73 -> 0 | B47: 0 | C47: 0 | D47: 0 | E47: 0 | F47: 0 | G47: 0 | H47: 0 | I47: 0
A48: ='23-24 Term 2'!B74:J74 -> 0 | B48: 0 | C48: 0 | D48: 0 | E48: 0 | F48: 0 | G48: 0 | H48: 0 | I48: 0
A49: ='23-24 Term 2'!B75:J75 -> 0 | B49: 0 | C49: 0 | D49: 0 | E49: 0 | F49: 0 | G49: 0 | H49: 0 | I49: 0
A52: Line to import below 23-23 T2
A53: =A1 -> Term 2 | B53: =A2 -> Click in cell and use drop-down arrow on right to select school | C53: =A3 -> 0 | D53: =A4 -> Select | E53: =A5 -> 0 | F53: =A6 -> 0 | G53: =A7 -> 0 | H53: =A8 -> 00:00:00 | I53: =A9 ->  | J53: =A10 ->  | K53: =A11 -> 0 | L53: =A12 -> 0 | M53: =A13 -> 0 | N53: =A14 -> 0 | O53: =A15 -> 0 | P53: =A16 -> 0 | Q53: =A17 -> 0 | R53: =A18 -> Select | S53: =A19 -> Select | T53: =A20 -> Select | U53: =A21 -> 0 | V53: =A22 -> 0 | W53: =A23 -> 0 | X53: =A24 -> 0 | Y53: =A25 -> 0 | Z53: =A26 -> 0 | AA53: =A27 -> ** Select Phase ** | AB53: =A28 -> * * * * * | AC53: =A29 -> * * * * * | AD53: =A30 -> * * * * * | AE53: =A31 -> * * * * * | AF53: =A32 -> * * * * * | AG53: =A33 -> * * * * * | AH53: =A34 -> * * * * * | AI53: =A35 -> * * * * * | AJ53: =A36 -> * * * * * | AK53: =A37 -> * * * * * | AL53: =A38 -> * * * * * | AM53: =A39 -> * * * * * | AN53: =A40 -> 0 | AO53: =A41 -> 0 | AP53: =A42 -> * * * * * | AQ53: =A43 -> 0 | AR53: =A44 -> 0 | AS53: =A45 -> 0 | AT53: =A46 -> 0 | AU53: =A47 -> 0 | AV53: =A48 -> 0 | AW53: =A49 -> 0

Sheet Import T3 (hidden)
A1: Term 3
A2: ='23-24 Term 3'!C4:I4 -> Click in cell and use drop-down arrow on right to select school | B2: 0 | C2: 0 | D2: 0 | E2: 0 | F2: 0 | G2: 0
A3: ='23-24 Term 3'!C5:G5 -> 0 | B3: 0 | C3: 0 | D3: 0 | E3: 0
A4: ='23-24 Term 3'!J5 -> Select
A5: ='23-24 Term 3'!C6:J6 -> 0 | B5: 0 | C5: 0 | D5: 0 | E5: 0 | F5: 0 | G5: 0 | H5: 0
A6: ='23-24 Term 3'!C7:J7 -> 0 | B6: 0 | C6: 0 | D6: 0 | E6: 0 | F6: 0 | G6: 0 | H6: 0
A7: ='23-24 Term 3'!C8:F8 -> 0 | B7: 0 | C7: 0 | D7: 0
A8: ='23-24 Term 3'!H8:J8 -> 00:00:00 | B8: 0 | C8: 0
A9: ='23-24 Term 3'!H10 -> 
A10: ='23-24 Term 3'!H11 -> 
A11: ='23-24 Term 3'!B14:E14 -> 0 | B11: 0 | C11: 0 | D11: 0
A12: ='23-24 Term 3'!B15:E15 -> 0 | B12: 0 | C12: 0 | D12: 0
A13: ='23-24 Term 3'!B16:E16 -> 0 | B13: 0 | C13: 0 | D13: 0
A14: ='23-24 Term 3'!B17:E17 -> 0 | B14: 0 | C14: 0 | D14: 0
A15: ='23-24 Term 3'!B18:E18 -> 0 | B15: 0 | C15: 0 | D15: 0
A16: ='23-24 Term 3'!B19:E19 -> 0 | B16: 0 | C16: 0 | D16: 0
A17: ='23-24 Term 3'!B20:E20 -> 0 | B17: 0 | C17: 0 | D17: 0
A18: ='23-24 Term 3'!F23 -> Select
A19: ='23-24 Term 3'!F24 -> Select
A20: ='23-24 Term 3'!F25 -> Select
A21: ='23-24 Term 3'!C32 -> 0
A22: ='23-24 Term 3'!D32 -> 0
A23: ='23-24 Term 3'!E32 -> 0
A24: ='23-24 Term 3'!F32 -> 0
A25: ='23-24 Term 3'!G32 -> 0
A26: ='23-24 Term 3'!I33 -> 0
A27: ='23-24 Term 3'!B34 -> ** Select Phase **
A28: ='23-24 Term 3'!C45:J45 -> * * * * * | B28: 0 | C28: 0 | D28: 0 | E28: 0 | F28: 0 | G28: 0 | H28: 0
A29: ='23-24 Term 3'!C46:J46 -> * * * * * | B29: 0 | C29: 0 | D29: 0 | E29: 0 | F29: 0 | G29: 0 | H29: 0
A30: ='23-24 Term 3'!C47:J47 -> * * * * * | B30: 0 | C30: 0 | D30: 0 | E30: 0 | F30: 0 | G30: 0 | H30: 0
A31: ='23-24 Term 3'!C48:J48 -> * * * * * | B31: 0 | C31: 0 | D31: 0 | E31: 0 | F31: 0 | G31: 0 | H31: 0
A32: ='23-24 Term 3'!C49:J49 -> * * * * * | B32: 0 | C32: 0 | D32: 0 | E32: 0 | F32: 0 | G32: 0 | H32: 0
A33: ='23-24 Term 3'!C53:J53 -> * * * * * | B33: 0 | C33: 0 | D33: 0 | E33: 0 | F33: 0 | G33: 0 | H33: 0
A34: ='23-24 Term 3'!C54:J54 -> * * * * * | B34: 0 | C34: 0 | D34: 0 | E34: 0 | F34: 0 | G34: 0 | H34: 0
A35: ='23-24 Term 3'!C55:J55 -> * * * * * | B35: 0 | C35: 0 | D35: 0 | E35: 0 | F35: 0 | G35: 0 | H35: 0
A36: ='23-24 Term 3'!C57:J57 -> * * * * * | B36: 0 | C36: 0 | D36: 0 | E36: 0 | F36: 0 | G36: 0 | H36: 0
A37: ='23-24 Term 3'!C58:J58 -> * * * * * | B37: 0 | C37: 0 | D37: 0 | E37: 0 | F37: 0 | G37: 0 | H37: 0
A38: ='23-24 Term 3'!C59:J59 -> * * * * * | B38: 0 | C38: 0 | D38: 0 | E38: 0 | F38: 0 | G38: 0 | H38: 0
A39: ='23-24 Term 3'!C60:J60 -> * * * * * | B39: 0 | C39: 0 | D39: 0 | E39: 0 | F39: 0 | G39: 0 | H39: 0
A40: ='23-24 Term 3'!C61:E61 -> 0 | B40: 0 | C40: 0
A41: ='23-24 Term 3'!I61:J61 -> 0 | B41: 0
A42: ='23-24 Term 3'!B65:J65 -> * * * * * | B42: 0 | C42: 0 | D42: 0 | E42: 0 | F42: 0 | G42: 0 | H42: 0 | I42: 0
A43: ='23-24 Term 3'!B69:J69 -> 0 | B43: 0 | C43: 0 | D43: 0 | E43: 0 | F43: 0 | G43: 0 | H43: 0 | I43: 0
A44: ='23-24 Term 3'!B70:J70 -> 0 | B44: 0 | C44: 0 | D44: 0 | E44: 0 | F44: 0 | G44: 0 | H44: 0 | I44: 0
A45: ='23-24 Term 3'!B71:J71 -> 0 | B45: 0 | C45: 0 | D45: 0 | E45: 0 | F45: 0 | G45: 0 | H45: 0 | I45: 0
A46: ='23-24 Term 3'!B72:J72 -> 0 | B46: 0 | C46: 0 | D46: 0 | E46: 0 | F46: 0 | G46: 0 | H46: 0 | I46: 0
A47: ='23-24 Term 3'!B73:J73 -> 0 | B47: 0 | C47: 0 | D47: 0 | E47: 0 | F47: 0 | G47: 0 | H47: 0 | I47: 0
A48: ='23-24 Term 3'!B74:J74 -> 0 | B48: 0 | C48: 0 | D48: 0 | E48: 0 | F48: 0 | G48: 0 | H48: 0 | I48: 0
A49: ='23-24 Term 3'!B75:J75 -> 0 | B49: 0 | C49: 0 | D49: 0 | E49: 0 | F49: 0 | G49: 0 | H49: 0 | I49: 0
A52: Line to import below 23-23 T3
A53: =A1 -> Term 3 | B53: =A2 -> Click in cell and use drop-down arrow on right to select school | C53: =A3 -> 0 | D53: =A4 -> Select | E53: =A5 -> 0 | F53: =A6 -> 0 | G53: =A7 -> 0 | H53: =A8 -> 00:00:00 | I53: =A9 ->  | J53: =A10 ->  | K53: =A11 -> 0 | L53: =A12 -> 0 | M53: =A13 -> 0 | N53: =A14 -> 0 | O53: =A15 -> 0 | P53: =A16 -> 0 | Q53: =A17 -> 0 | R53: =A18 -> Select | S53: =A19 -> Select | T53: =A20 -> Select | U53: =A21 -> 0 | V53: =A22 -> 0 | W53: =A23 -> 0 | X53: =A24 -> 0 | Y53: =A25 -> 0 | Z53: =A26 -> 0 | AA53: =A27 -> ** Select Phase ** | AB53: =A28 -> * * * * * | AC53: =A29 -> * * * * * | AD53: =A30 -> * * * * * | AE53: =A31 -> * * * * * | AF53: =A32 -> * * * * * | AG53: =A33 -> * * * * * | AH53: =A34 -> * * * * * | AI53: =A35 -> * * * * * | AJ53: =A36 -> * * * * * | AK53: =A37 -> * * * * * | AL53: =A38 -> * * * * * | AM53: =A39 -> * * * * * | AN53: =A40 -> 0 | AO53: =A41 -> 0 | AP53: =A42 -> * * * * * | AQ53: =A43 -> 0 | AR53: =A44 -> 0 | AS53: =A45 -> 0 | AT53: =A46 -> 0 | AU53: =A47 -> 0 | AV53: =A48 -> 0 | AW53: =A49 -> 0
